Workbook

Sheet Data
B1: CONFIGURATION FILE - GENERATION TOOL VERSION 2.1 June 2011 (Only fill Yellow cells) Usage: Smart Nodes as a PSTN and/or Analog extensions gateway for IPPBX Includes Generic, Brekeke, 3CX, Snom One, PBXnSIP and TrixBox (Please remember to enable macros)
B2: ATTRIBUTE | C2: VALUE | D2: COMMENT
B3: GENERAL DATA
B4: Tool Version | C4: =+D44 -> V2_1 06222011 | D4: <---Current Version
B5: Number of analog Trunk lines (FXO) | C5: 12 | D5: Number of FXO ports to be configured. This number must be not greater that the physical FXO available ports
B6: Number of analog extension lines (FXS) | C6: 0 | D6: Number of FXS ports to be configured. This number must be not greater that the physical FXO available ports
B7: Router present (2 Ethernet)? | C7: N | D7: Use Y for all Smartnode with 2 Ethernet ports
B8: In which side is the IP PBX? | C8: LAN | D8: LAN Side is always Ethernet 0 0 / WAN side is always Ethernet 0 1
B9: SNTP Server address | C9: 1.1.1.1 | D9: Enter IP addres or name for the SNTP Server
B10: DNS Server address | C10: 8.8.8.8 | D10: Enter IP addres or name for the DNS Server. Leave it empty if DNS will be provided by DHCP
B11: Name and location of the config file to generate | C11: PattonSample | D11: Enter the name of the file to generate (no extension needed)
B12: Directory where to save config files | C12: C:/temp/
B13: NETWORK DATA
B14: LAN Interface Data
B15: IP Address | C15: 10.10.1.10 | D15: <--- IP Address or dhcp
B16: IP Mask | C16: 255.255.255.0 | D16: <-- If IP is dhcp, leave it blank
B18: WAN Interface Data
B19: IP Address | C19: dhcp | D19: <--- IP Address or dhcp
B20: IP Mask | D20: <-- If IP is dhcp, leave it blank
B22: Default Gateway | D22: Make sure the IP address belongs to any of the know networks in LAN of WAN interfaces
B23: IP-PBX/SIP PROXY DATA
B24: IP-PBX Ip Address / Name / Domain | C24: 10.10.50.23 | D24: This is the IP PBX or Registrar Server address where extensions and trunks will be authenticated
B25: IP-PBX SIP Port | C25: 5060 | D25: This is the SIP port used to communicate to the IPPBX or Registrar
B26: Realm | D26: Enter de associated domain or realm for this PBX (in 3CX is forced to 3CXPhoneSystem)
B27: LOCALIZATION DATA
B28: Country | C28: United States | D28: Select country from pulldown
B29: Tone Set | C29: =+VLOOKUP($C$28,Table2[],2) -> Tone_Set_US | D29: This field is automatically calculated!!!
B30: Call Progress | C30: =+VLOOKUP($C$28,Table2[],3) -> profile call-progress-tone defaultDialtone flush-play-list play 1 1000 350 -13 440 -13 profile call-progress-tone defaultAlertingtone flush-play-list play 1 1000 440 -19 480 -19 pause 2 3000 profile call-progress-tone defaultBusytone flush-play-list play 1 500 480 -24 620 -24 pause 2 500 profile call-progress-tone defaultReleasetone flush-play-list play 1 250 480 -24 620 -24 pause 2 250 profile call-progress-tone defaultCongestiontone flush-play-list play 1 250 480 -24 620 -24 pause 2 250 | D30: This field is automatically calculated!!!
B31: FXO Profile | C31: =+VLOOKUP($C$28,Table2[],4) -> use profile fxo us | D31: This field is automatically calculated!!!
B32: FXS Profile | C32: =+VLOOKUP($C$28,Table2[],5) -> use profile fxs us | D32: This field is automatically calculated!!!
B33: GENERAL EXTENSIONS DATA
B34: First extension | C34: 101 | D34: Enter the first extension number to use
B35: Extension Increment | C35: 1 | D35: Enter incremental factor to caculate the rest of extension number (i.e 2 means 101, 103, 105, …..) - Valid numbers from 1 to 10
B36: First SIP port for extensions | C36: 5060 | D36: Enter the registration port to be used for the first extension. All the remaning ports will be calculated at incrementals of 2 (range from 5060 to 16999)
B37: First SIP port for lines | C37: 5060 | D37: Enter the registration port to be used for the first line. All the remaning ports will be calculated at incrementals of 2 (range from 5060 to 16999)
B38: Digit Collection Timeout | C38: 2 | D38: Enter Blank, 2, 5 or 7 seconds (If blank, no digit collection timeout is used)
B39: Delivery Announcemets? | C39: Y | D39: Announcements by the telephone company, such as "The mobile you are calling is not available", can be removed from calls by this device. Please note that if you choose the "Deliver Announcements" setting, some functions (such as forwarding to an outside number from a Ring Group or a Queues) may fail or perform unpredictably.
B40: Wait for caller ID on incoming | C40: Y | D40: Incoming calls may require up to 2 ring sequences to deliver the Caller ID. Select whether you want to collect Caller ID information at the cost of delaying the first ring on incoming calls
B41: Caller ID Format (FXS) | C41: etsi | D41: Select Caller ID format for FXS ports
B42: Caller ID Presenttation (FXS) | C42: pre-ring | D42: Select how do you want to present caller id (mid ring, pre-ring or none)
C44: VERSION: | D44: V2_1 06222011
C45: File: | D45: =+CONCATENATE(C12,C11,".cfg") -> C:/temp/PattonSample.cfg
C47: YESNO TABLE | D47: Country
C48: Y | D48: Argentina
C49: N | D49: Australia
D50: Austria 420Hz
C51: VALID E1/T1 PORTS | D51: Austria 450Hz
C52: 0 | D52: Belgium
C53: 1 | D53: Brazil
C54: 4 | D54: Cyprus
D55: Czech Republic
C56: TYPE IF DIGITAL | D56: Denmark
C57: T1 | D57: Finland
C58: E1 | D58: France
D59: Germany
C60: IPPBX LOCATION | D60: Greece
C61: LAN | D61: Holland
C62: WAN | D62: India
D63: Ireland
C64: TIMEOUT | D64: Italy
D65: Japan
C66: 2 | D66: New Zeland
C67: 5 | D67: Norway
C68: 7 | D68: Poland
D69: Portugal
D70: Russia
C71: IPPBX | D71: South Africa
C72: Generic | D72: Spain
C73: Brekeke | D73: Sweden
C74: 3CX | D74: Switzerland
C75: SNOMONE | D75: Turkey
C76: PBXnSIP | D76: United Kindom
C77: TRIXBOX | D77: United States
C79: 3CX
C82: CALLER ID FMT
C83: bell
C84: etsi
C86: CALLER ID PRESENT
C87: mid-ring
C88: pre-ring
C89: (none)

Sheet REFERENCE
B39: VARIABLE USED | C39: EXPLANATION
B40: IF_FXS_n | C40: Logical FXS interface number "n". (i.e. IF_FXS_1, for the interfeace associated to physical FXS port 0). Each physical FXS port 0,1,2,3, …., n, will be "bind" to a logical FXS interface 1,2,3,4,….n+1.
B41: IF_FXO-n | C41: Logical FXO interface number "n". (i.e. IF_FXO_1, for the interfeace associated to physical FXO port 0). Each physical FXO port 0,1,2,3, …., n, will be "bind" to a logical FXO interface 1,2,3,4,….n+1.
B42: IF_SIP_PBX | C42: Sip Interface used to associate all trafic related to extensions (FXS users) and the IP PBX.
B43: IF_IP_LAN | C43: Logical interface associated to a physical Ethernet port, usually this is the default port. This port usually refers to the local network.
B44: IF_IP_WAN | C44: Logical interface associated to a physical Ethernet port, usually this is the second por. This port usually refers to the Wide Area Network.
B45: RT_DIGITCOLLECTION | C45: All dialed call from extensions will be passed thur a digit collection routing table. This routing table can validate dialed digits. It will also pass the dialed number thur a Mapping table (MT_EXT_TO_NAME) to add the used name is the signaling.
B46: MT_EXT_TO_NAME | C46: Mapping Table used to add the extension user name and last name to the signaling.
B47: GW_SIP_n | C47: One gateway is being defined per each one of the available lines (FXO's). GW_SIP_n corresponds to line "n", being n=1,2,3,…..
B48: GW_SIP_ALL_EXTENSIONS | C48: I common Gateway is used for all Extensions.
B49: RT_TO_FXS | C49: This table is used to route calls to specific extension number
B50: AS_ALL_LINES | C50: Authentication services associated to all lines
B51: AS_ALL_EXTENSIONS | C51: Authentication services associated to all extensions
B52: LS_n | C52: Location Service assciated to line "n"
B53: LS_ALL_EXTENSIONS | C53: Location services associated to all extensions.

Sheet Extension Table
A1: Extension | B1: Port | C1: Line # | D1: User F Name | E1: User L Name | F1: Auth_User | G1: Auth_PWD
A2: =+Data!$C$34 -> 101 | B2: =+Data!$C$36 -> 5060 | C2: 1 | D2: Fname user 1 | E2: Lname user 1 | F2: =+Table10[[#This Row],[Extension]] -> 101 | G2: =+Table10[[#This Row],[Auth_User]] -> 101
A3: =+A2+Data!$C$35 -> 102 | B3: =+B2+2 -> 5062 | C3: =+C2+1 -> 2 | D3: Fname user 2 | E3: Lname user 2 | F3: =+Table10[[#This Row],[Extension]] -> 102 | G3: =+Table10[[#This Row],[Auth_User]] -> 102
A4: =+A3+Data!$C$35 -> 103 | B4: =+B3+2 -> 5064 | C4: =+C3+1 -> 3 | F4: =+Table10[[#This Row],[Extension]] -> 103 | G4: =+Table10[[#This Row],[Auth_User]] -> 103
A5: =+A4+Data!$C$35 -> 104 | B5: 5066 | C5: 4 | F5: =+Table10[[#This Row],[Extension]] -> 104 | G5: =+Table10[[#This Row],[Auth_User]] -> 104
A6: =+A5+Data!$C$35 -> 105 | B6: 5068 | C6: 5 | F6: =+Table10[[#This Row],[Extension]] -> 105 | G6: =+Table10[[#This Row],[Auth_User]] -> 105
A7: =+A6+Data!$C$35 -> 106 | B7: 5070 | C7: 6 | F7: =+Table10[[#This Row],[Extension]] -> 106 | G7: =+Table10[[#This Row],[Auth_User]] -> 106
A8: =+A7+Data!$C$35 -> 107 | B8: 5072 | C8: 7 | F8: =+Table10[[#This Row],[Extension]] -> 107 | G8: =+Table10[[#This Row],[Auth_User]] -> 107
A9: =+A8+Data!$C$35 -> 108 | B9: 5074 | C9: 8 | F9: =+Table10[[#This Row],[Extension]] -> 108 | G9: =+Table10[[#This Row],[Auth_User]] -> 108
A10: =+A9+Data!$C$35 -> 109 | B10: 5076 | C10: 9 | F10: =+Table10[[#This Row],[Extension]] -> 109 | G10: =+Table10[[#This Row],[Auth_User]] -> 109
A11: =+A10+Data!$C$35 -> 110 | B11: 5078 | C11: 10 | F11: =+Table10[[#This Row],[Extension]] -> 110 | G11: =+Table10[[#This Row],[Auth_User]] -> 110
A12: =+A11+Data!$C$35 -> 111 | B12: 5080 | C12: 11 | F12: =+Table10[[#This Row],[Extension]] -> 111 | G12: =+Table10[[#This Row],[Auth_User]] -> 111
A13: =+A12+Data!$C$35 -> 112 | B13: 5082 | C13: 12 | F13: =+Table10[[#This Row],[Extension]] -> 112 | G13: =+Table10[[#This Row],[Auth_User]] -> 112
A14: =+A13+Data!$C$35 -> 113 | B14: 5084 | C14: 13 | F14: =+Table10[[#This Row],[Extension]] -> 113 | G14: =+Table10[[#This Row],[Auth_User]] -> 113
A15: =+A14+Data!$C$35 -> 114 | B15: 5086 | C15: 14 | F15: =+Table10[[#This Row],[Extension]] -> 114 | G15: =+Table10[[#This Row],[Auth_User]] -> 114
A16: =+A15+Data!$C$35 -> 115 | B16: 5088 | C16: 15 | F16: =+Table10[[#This Row],[Extension]] -> 115 | G16: =+Table10[[#This Row],[Auth_User]] -> 115
A17: =+A16+Data!$C$35 -> 116 | B17: 5090 | C17: 16 | F17: =+Table10[[#This Row],[Extension]] -> 116 | G17: =+Table10[[#This Row],[Auth_User]] -> 116
A18: =+A17+Data!$C$35 -> 117 | B18: 5092 | C18: 17 | F18: =+Table10[[#This Row],[Extension]] -> 117 | G18: =+Table10[[#This Row],[Auth_User]] -> 117
A19: =+A18+Data!$C$35 -> 118 | B19: 5094 | C19: 18 | F19: =+Table10[[#This Row],[Extension]] -> 118 | G19: =+Table10[[#This Row],[Auth_User]] -> 118
A20: =+A19+Data!$C$35 -> 119 | B20: 5096 | C20: 19 | F20: =+Table10[[#This Row],[Extension]] -> 119 | G20: =+Table10[[#This Row],[Auth_User]] -> 119
A21: =+A20+Data!$C$35 -> 120 | B21: 5098 | C21: 20 | F21: =+Table10[[#This Row],[Extension]] -> 120 | G21: =+Table10[[#This Row],[Auth_User]] -> 120
A22: =+A21+Data!$C$35 -> 121 | B22: 5100 | C22: 21 | F22: =+Table10[[#This Row],[Extension]] -> 121 | G22: =+Table10[[#This Row],[Auth_User]] -> 121
A23: =+A22+Data!$C$35 -> 122 | B23: 5102 | C23: 22 | F23: =+Table10[[#This Row],[Extension]] -> 122 | G23: =+Table10[[#This Row],[Auth_User]] -> 122
A24: =+A23+Data!$C$35 -> 123 | B24: 5104 | C24: 23 | F24: =+Table10[[#This Row],[Extension]] -> 123 | G24: =+Table10[[#This Row],[Auth_User]] -> 123
A25: =+A24+Data!$C$35 -> 124 | B25: 5106 | C25: 24 | F25: =+Table10[[#This Row],[Extension]] -> 124 | G25: =+Table10[[#This Row],[Auth_User]] -> 124
A26: =+A25+Data!$C$35 -> 125 | B26: 5108 | C26: 25 | F26: =+Table10[[#This Row],[Extension]] -> 125 | G26: =+Table10[[#This Row],[Auth_User]] -> 125
A27: =+A26+Data!$C$35 -> 126 | B27: 5110 | C27: 26 | F27: =+Table10[[#This Row],[Extension]] -> 126 | G27: =+Table10[[#This Row],[Auth_User]] -> 126
A28: =+A27+Data!$C$35 -> 127 | B28: 5112 | C28: 27 | F28: =+Table10[[#This Row],[Extension]] -> 127 | G28: =+Table10[[#This Row],[Auth_User]] -> 127
A29: =+A28+Data!$C$35 -> 128 | B29: 5114 | C29: 28 | F29: =+Table10[[#This Row],[Extension]] -> 128 | G29: =+Table10[[#This Row],[Auth_User]] -> 128
A30: =+A29+Data!$C$35 -> 129 | B30: 5116 | C30: 29 | F30: =+Table10[[#This Row],[Extension]] -> 129 | G30: =+Table10[[#This Row],[Auth_User]] -> 129
A31: =+A30+Data!$C$35 -> 130 | B31: 5118 | C31: 30 | F31: =+Table10[[#This Row],[Extension]] -> 130 | G31: =+Table10[[#This Row],[Auth_User]] -> 130
A32: =+A31+Data!$C$35 -> 131 | B32: 5120 | C32: 31 | F32: =+Table10[[#This Row],[Extension]] -> 131 | G32: =+Table10[[#This Row],[Auth_User]] -> 131
A33: =+A32+Data!$C$35 -> 132 | B33: 5122 | C33: 32 | F33: =+Table10[[#This Row],[Extension]] -> 132 | G33: =+Table10[[#This Row],[Auth_User]] -> 132
A34: =+A33+Data!$C$35 -> 133 | B34: 5124 | C34: 33 | F34: =+Table10[[#This Row],[Extension]] -> 133 | G34: =+Table10[[#This Row],[Auth_User]] -> 133
A35: =+A34+Data!$C$35 -> 134 | B35: 5126 | C35: 34 | F35: =+Table10[[#This Row],[Extension]] -> 134 | G35: =+Table10[[#This Row],[Auth_User]] -> 134
A36: =+A35+Data!$C$35 -> 135 | B36: 5128 | C36: 35 | F36: =+Table10[[#This Row],[Extension]] -> 135 | G36: =+Table10[[#This Row],[Auth_User]] -> 135
A37: =+A36+Data!$C$35 -> 136 | B37: 5130 | C37: 36 | F37: =+Table10[[#This Row],[Extension]] -> 136 | G37: =+Table10[[#This Row],[Auth_User]] -> 136

Sheet Line Table
A1: SEQUENCE | B1: LINE # | C1: Early Media | D1: Wait Caller ID | E1: Auth_ID | F1: Auth_PWD | G1: SIP PORT
A2: 1 | B2: 10002 | C2: =+IF(Data!$C$39="Y","early-connect ","no early-connect ") -> early-connect | D2: =+IF(Data!$C$40="Y","ring-number on-caller-id ","ring-number 1") -> ring-number on-caller-id | E2: =+'Line Table'!$B2 -> 10002 | F2: =+'Line Table'!$E2 -> 10002 | G2: =+Data!$C$37 -> 5060
A3: =+A2+1 -> 2 | B3: =+B2+1 -> 10003 | C3: =+IF(Data!$C$39="Y","early-connect ","no early-connect ") -> early-connect | D3: =+IF(Data!$C$40="Y","ring-number on-caller-id ","ring-number 1") -> ring-number on-caller-id | E3: =+'Line Table'!$B3 -> 10003 | F3: =+'Line Table'!$E3 -> 10003 | G3: =+G2+2 -> 5062
A4: =+A3+1 -> 3 | B4: =+B3+1 -> 10004 | C4: =+IF(Data!$C$39="Y","early-connect ","no early-connect ") -> early-connect | D4: =+IF(Data!$C$40="Y","ring-number on-caller-id ","ring-number 1") -> ring-number on-caller-id | E4: =+'Line Table'!$B4 -> 10004 | F4: =+'Line Table'!$E4 -> 10004 | G4: =+G3+2 -> 5064
A5: 4 | B5: 10005 | C5: =+IF(Data!$C$39="Y","early-connect ","no early-connect ") -> early-connect | D5: =+IF(Data!$C$40="Y","ring-number on-caller-id ","ring-number 1") -> ring-number on-caller-id | E5: =+'Line Table'!$B5 -> 10005 | F5: =+'Line Table'!$E5 -> 10005 | G5: 5066
A6: 5 | B6: 10006 | C6: =+IF(Data!$C$39="Y","early-connect ","no early-connect ") -> early-connect | D6: =+IF(Data!$C$40="Y","ring-number on-caller-id ","ring-number 1") -> ring-number on-caller-id | E6: =+'Line Table'!$B6 -> 10006 | F6: =+'Line Table'!$E6 -> 10006 | G6: 5068
A7: 6 | B7: 10007 | C7: =+IF(Data!$C$39="Y","early-connect ","no early-connect ") -> early-connect | D7: =+IF(Data!$C$40="Y","ring-number on-caller-id ","ring-number 1") -> ring-number on-caller-id | E7: =+'Line Table'!$B7 -> 10007 | F7: =+'Line Table'!$E7 -> 10007 | G7: 5070
A8: 7 | B8: 10008 | C8: =+IF(Data!$C$39="Y","early-connect ","no early-connect ") -> early-connect | D8: =+IF(Data!$C$40="Y","ring-number on-caller-id ","ring-number 1") -> ring-number on-caller-id | E8: =+'Line Table'!$B8 -> 10008 | F8: =+'Line Table'!$E8 -> 10008 | G8: 5072
A9: 8 | B9: 10009 | C9: =+IF(Data!$C$39="Y","early-connect ","no early-connect ") -> early-connect | D9: =+IF(Data!$C$40="Y","ring-number on-caller-id ","ring-number 1") -> ring-number on-caller-id | E9: =+'Line Table'!$B9 -> 10009 | F9: =+'Line Table'!$E9 -> 10009 | G9: 5074
A10: 9 | B10: 10010 | C10: =+IF(Data!$C$39="Y","early-connect ","no early-connect ") -> early-connect | D10: =+IF(Data!$C$40="Y","ring-number on-caller-id ","ring-number 1") -> ring-number on-caller-id | E10: =+'Line Table'!$B10 -> 10010 | F10: =+'Line Table'!$E10 -> 10010 | G10: 5076
A11: 10 | B11: 10011 | C11: =+IF(Data!$C$39="Y","early-connect ","no early-connect ") -> early-connect | D11: =+IF(Data!$C$40="Y","ring-number on-caller-id ","ring-number 1") -> ring-number on-caller-id | E11: =+'Line Table'!$B11 -> 10011 | F11: =+'Line Table'!$E11 -> 10011 | G11: 5078
A12: 11 | B12: 10012 | C12: =+IF(Data!$C$39="Y","early-connect ","no early-connect ") -> early-connect | D12: =+IF(Data!$C$40="Y","ring-number on-caller-id ","ring-number 1") -> ring-number on-caller-id | E12: =+'Line Table'!$B12 -> 10012 | F12: =+'Line Table'!$E12 -> 10012 | G12: 5080
A13: 12 | B13: 10013 | C13: =+IF(Data!$C$39="Y","early-connect ","no early-connect ") -> early-connect | D13: =+IF(Data!$C$40="Y","ring-number on-caller-id ","ring-number 1") -> ring-number on-caller-id | E13: =+'Line Table'!$B13 -> 10013 | F13: =+'Line Table'!$E13 -> 10013 | G13: 5082
A14: 13 | B14: 10014 | C14: =+IF(Data!$C$39="Y","early-connect ","no early-connect ") -> early-connect | D14: =+IF(Data!$C$40="Y","ring-number on-caller-id ","ring-number 1") -> ring-number on-caller-id | E14: =+'Line Table'!$B14 -> 10014 | F14: =+'Line Table'!$E14 -> 10014 | G14: 5084
A15: 14 | B15: 10015 | C15: =+IF(Data!$C$39="Y","early-connect ","no early-connect ") -> early-connect | D15: =+IF(Data!$C$40="Y","ring-number on-caller-id ","ring-number 1") -> ring-number on-caller-id | E15: =+'Line Table'!$B15 -> 10015 | F15: =+'Line Table'!$E15 -> 10015 | G15: 5086
A16: 15 | B16: 10016 | C16: =+IF(Data!$C$39="Y","early-connect ","no early-connect ") -> early-connect | D16: =+IF(Data!$C$40="Y","ring-number on-caller-id ","ring-number 1") -> ring-number on-caller-id | E16: =+'Line Table'!$B16 -> 10016 | F16: =+'Line Table'!$E16 -> 10016 | G16: 5088
A17: 16 | B17: 10017 | C17: =+IF(Data!$C$39="Y","early-connect ","no early-connect ") -> early-connect | D17: =+IF(Data!$C$40="Y","ring-number on-caller-id ","ring-number 1") -> ring-number on-caller-id | E17: =+'Line Table'!$B17 -> 10017 | F17: =+'Line Table'!$E17 -> 10017 | G17: 5090
A18: 17 | B18: 10018 | C18: =+IF(Data!$C$39="Y","early-connect ","no early-connect ") -> early-connect | D18: =+IF(Data!$C$40="Y","ring-number on-caller-id ","ring-number 1") -> ring-number on-caller-id | E18: =+'Line Table'!$B18 -> 10018 | F18: =+'Line Table'!$E18 -> 10018 | G18: 5092
A19: 18 | B19: 10019 | C19: =+IF(Data!$C$39="Y","early-connect ","no early-connect ") -> early-connect | D19: =+IF(Data!$C$40="Y","ring-number on-caller-id ","ring-number 1") -> ring-number on-caller-id | E19: =+'Line Table'!$B19 -> 10019 | F19: =+'Line Table'!$E19 -> 10019 | G19: 5094
A20: 19 | B20: 10020 | C20: =+IF(Data!$C$39="Y","early-connect ","no early-connect ") -> early-connect | D20: =+IF(Data!$C$40="Y","ring-number on-caller-id ","ring-number 1") -> ring-number on-caller-id | E20: =+'Line Table'!$B20 -> 10020 | F20: =+'Line Table'!$E20 -> 10020 | G20: 5096
A21: 20 | B21: 10021 | C21: =+IF(Data!$C$39="Y","early-connect ","no early-connect ") -> early-connect | D21: =+IF(Data!$C$40="Y","ring-number on-caller-id ","ring-number 1") -> ring-number on-caller-id | E21: =+'Line Table'!$B21 -> 10021 | F21: =+'Line Table'!$E21 -> 10021 | G21: 5098
A22: 21 | B22: 10022 | C22: =+IF(Data!$C$39="Y","early-connect ","no early-connect ") -> early-connect | D22: =+IF(Data!$C$40="Y","ring-number on-caller-id ","ring-number 1") -> ring-number on-caller-id | E22: =+'Line Table'!$B22 -> 10022 | F22: =+'Line Table'!$E22 -> 10022 | G22: 5100
A23: 22 | B23: 10023 | C23: =+IF(Data!$C$39="Y","early-connect ","no early-connect ") -> early-connect | D23: =+IF(Data!$C$40="Y","ring-number on-caller-id ","ring-number 1") -> ring-number on-caller-id | E23: =+'Line Table'!$B23 -> 10023 | F23: =+'Line Table'!$E23 -> 10023 | G23: 5102
A24: 23 | B24: 10024 | C24: =+IF(Data!$C$39="Y","early-connect ","no early-connect ") -> early-connect | D24: =+IF(Data!$C$40="Y","ring-number on-caller-id ","ring-number 1") -> ring-number on-caller-id | E24: =+'Line Table'!$B24 -> 10024 | F24: =+'Line Table'!$E24 -> 10024 | G24: 5104
A25: 24 | B25: 10025 | C25: =+IF(Data!$C$39="Y","early-connect ","no early-connect ") -> early-connect | D25: =+IF(Data!$C$40="Y","ring-number on-caller-id ","ring-number 1") -> ring-number on-caller-id | E25: =+'Line Table'!$B25 -> 10025 | F25: =+'Line Table'!$E25 -> 10025 | G25: 5106
A26: 25 | B26: 10026 | C26: =+IF(Data!$C$39="Y","early-connect ","no early-connect ") -> early-connect | D26: =+IF(Data!$C$40="Y","ring-number on-caller-id ","ring-number 1") -> ring-number on-caller-id | E26: =+'Line Table'!$B26 -> 10026 | F26: =+'Line Table'!$E26 -> 10026 | G26: 5108
A27: 26 | B27: 10027 | C27: =+IF(Data!$C$39="Y","early-connect ","no early-connect ") -> early-connect | D27: =+IF(Data!$C$40="Y","ring-number on-caller-id ","ring-number 1") -> ring-number on-caller-id | E27: =+'Line Table'!$B27 -> 10027 | F27: =+'Line Table'!$E27 -> 10027 | G27: 5110
A28: 27 | B28: 10028 | C28: =+IF(Data!$C$39="Y","early-connect ","no early-connect ") -> early-connect | D28: =+IF(Data!$C$40="Y","ring-number on-caller-id ","ring-number 1") -> ring-number on-caller-id | E28: =+'Line Table'!$B28 -> 10028 | F28: =+'Line Table'!$E28 -> 10028 | G28: 5112
A29: 28 | B29: 10029 | C29: =+IF(Data!$C$39="Y","early-connect ","no early-connect ") -> early-connect | D29: =+IF(Data!$C$40="Y","ring-number on-caller-id ","ring-number 1") -> ring-number on-caller-id | E29: =+'Line Table'!$B29 -> 10029 | F29: =+'Line Table'!$E29 -> 10029 | G29: 5114
A30: 29 | B30: 10030 | C30: =+IF(Data!$C$39="Y","early-connect ","no early-connect ") -> early-connect | D30: =+IF(Data!$C$40="Y","ring-number on-caller-id ","ring-number 1") -> ring-number on-caller-id | E30: =+'Line Table'!$B30 -> 10030 | F30: =+'Line Table'!$E30 -> 10030 | G30: 5116
A31: 30 | B31: 10031 | C31: =+IF(Data!$C$39="Y","early-connect ","no early-connect ") -> early-connect | D31: =+IF(Data!$C$40="Y","ring-number on-caller-id ","ring-number 1") -> ring-number on-caller-id | E31: =+'Line Table'!$B31 -> 10031 | F31: =+'Line Table'!$E31 -> 10031 | G31: 5118
A32: 31 | B32: 10032 | C32: =+IF(Data!$C$39="Y","early-connect ","no early-connect ") -> early-connect | D32: =+IF(Data!$C$40="Y","ring-number on-caller-id ","ring-number 1") -> ring-number on-caller-id | E32: =+'Line Table'!$B32 -> 10032 | F32: =+'Line Table'!$E32 -> 10032 | G32: 5120
A33: 32 | B33: 10033 | C33: =+IF(Data!$C$39="Y","early-connect ","no early-connect ") -> early-connect | D33: =+IF(Data!$C$40="Y","ring-number on-caller-id ","ring-number 1") -> ring-number on-caller-id | E33: =+'Line Table'!$B33 -> 10033 | F33: =+'Line Table'!$E33 -> 10033 | G33: 5122

Sheet Product Table (hidden)
C2: SERIES | D2: MODEL | E2: FXS | F2: FXO | G2: E1 | H2: SIP CHANNELS | I2: ROUTER | J2: DUAL PS | K2: KEY
C3: SN4110 | D3: SN4112/JS | E3: 2 | F3: 0 | G3: 0 | H3: 2 | I3: N | J3: N
C4: SN4110 | D4: SN4112/JO | E4: 0 | F4: 2 | G4: 0 | H4: 2 | I4: N | J4: N
C5: SN4110 | D5: SN4114/JS | E5: 4 | F5: 0 | G5: 0 | H5: 4 | I5: N | J5: N
C6: SN4110 | D6: SN4114/JO | E6: 0 | F6: 4 | G6: 0 | H6: 4 | I6: N | J6: N
C7: SN4110 | D7: SN4114/2JS2JO | E7: 2 | F7: 2 | G7: 0 | H7: 4 | I7: N | J7: N
C8: SN4110 | D8: SN4118/JS | E8: 8 | F8: 0 | G8: 0 | H8: 8 | I8: N | J8: N
C9: SN4110 | D9: SN4118/4JS4JO | E9: 4 | F9: 4 | G9: 0 | H9: 8 | I9: N | J9: N
C10: SN4522 | D10: SN4522/JS | E10: 2 | F10: 0 | G10: 0 | H10: 2 | I10: Y | J10: N
C11: SN4522 | D11: SN4522/JO | E11: 0 | F11: 2 | G11: 0 | H11: 2 | I11: Y | J11: N
C12: SN4524 | D12: SN4524/JS | E12: 4 | F12: 0 | G12: 0 | H12: 4 | I12: Y | J12: N
C13: SN4524 | D13: SN4524/JO | E13: 0 | F13: 4 | G13: 0 | H13: 4 | I13: Y | J13: N
C14: SN4524 | D14: SN4524/2JS2JO | E14: 2 | F14: 2 | G14: 0 | H14: 4 | I14: Y | J14: N
C15: SN4528 | D15: SN4528/JS | E15: 8 | F15: 0 | G15: 0 | H15: 8 | I15: Y | J15: N
C16: SN4528 | D16: SN4528/4JS4JO | E16: 4 | F16: 4 | G16: 0 | H16: 8 | I16: Y | J16: N
C17: SN4300 | D17: SN4316/JS | E17: 16 | F17: 0 | G17: 0 | H17: 16 | I17: N | J17: N
C18: SN4300 | D18: SN4324/JS | E18: 24 | F18: 0 | G18: 0 | H18: 24 | I18: N | J18: N
C19: SN4300 | D19: SN4332/JS | E19: 32 | F19: 0 | G19: 0 | H19: 32 | I19: N | J19: N
C20: SN4400 | D20: SN4412/JS | E20: 12 | F20: 0 | G20: 0 | H20: 12 | I20: Y | J20: N
C21: SN4400 | D21: SN4416/JS | E21: 16 | F21: 0 | G21: 0 | H21: 16 | I21: Y | J21: N
C22: SN4400 | D22: SN4424/JS | E22: 24 | F22: 0 | G22: 0 | H22: 24 | I22: Y | J22: N
C23: SN4400 | D23: SN4432/JS | E23: 32 | F23: 0 | G23: 0 | H23: 32 | I23: Y | J23: N
C24: SN4900 | D24: SN4912/JS | E24: 12 | F24: 0 | G24: 0 | H24: 12 | I24: Y | J24: Y
C25: SN4900 | D25: SN4916/JS | E25: 16 | F25: 0 | G25: 0 | H25: 16 | I25: Y | J25: Y
C26: SN4900 | D26: SN4924/JS | E26: 24 | F26: 0 | G26: 0 | H26: 24 | I26: Y | J26: Y
C27: SN4900 | D27: SN4932/JS | E27: 32 | F27: 0 | G27: 0 | H27: 32 | I27: Y | J27: Y
C28: SN4900 | D28: SN4912/JO | E28: 0 | F28: 12 | G28: 0 | H28: 12 | I28: Y | J28: Y
C29: SN4900 | D29: SN4916/JO | E29: 0 | F29: 16 | G29: 0 | H29: 16 | I29: Y | J29: Y
C30: SN4900 | D30: SN4924/JO | E30: 0 | F30: 24 | G30: 0 | H30: 24 | I30: Y | J30: Y
C31: SN4900 | D31: SN4932/JO | E31: 0 | F31: 32 | G31: 0 | H31: 32 | I31: Y | J31: Y
C32: SN4960 | D32: SN4960/1E15V | E32: 0 | F32: 0 | G32: 1 | H32: 15 | I32: Y | J32: N
C33: SN4960 | D33: SN4960/1E24V | E33: 0 | F33: 0 | G33: 1 | H33: 24 | I33: Y | J33: N
C34: SN4960 | D34: SN4960/1E30V | E34: 0 | F34: 0 | G34: 1 | H34: 30 | I34: Y | J34: N
C35: SN4960 | D35: SN4960/4E15V | E35: 0 | F35: 0 | G35: 4 | H35: 15 | I35: Y | J35: N
C36: SN4960 | D36: SN4960/4E24V | E36: 0 | F36: 0 | G36: 4 | H36: 23 | I36: Y | J36: N
C37: SN4960 | D37: SN4960/4E30V | E37: 0 | F37: 0 | G37: 4 | H37: 30 | I37: Y | J37: N
C38: SN4960 | D38: SN4960/4E48V | E38: 0 | F38: 0 | G38: 4 | H38: 48 | I38: Y | J38: N
C39: SN4960 | D39: SN4960/4E60V | E39: 0 | F39: 0 | G39: 4 | H39: 60 | I39: Y | J39: N
C40: SN4960 | D40: SN4960/4E96V | E40: 0 | F40: 0 | G40: 4 | H40: 96 | I40: Y | J40: N
C41: SN4960 | D41: SN4960/4E120V | E41: 0 | F41: 0 | G41: 4 | H41: 120 | I41: Y | J41: N

Sheet Tone_set_table (hidden)
B2: Country | C2: Tone Set | D2: Call Progress | E2: FXO Profile | F2: FXS profile | G2: Column1 | H2: Column2 | I2: Column3
B3: Argentina | C3: Tone_Set_AR | D3: profile call-progress-tone defaultDialtone flush-play-list play 1 1000 425 -6 profile call-progress-tone defaultAlertingtone flush-play-list play 1 1000 425 -13 pause 2 4000 profile call-progress-tone defaultBusytone flush-play-list play 1 300 425 -7 pause 2 200 profile call-progress-tone defaultReleasetone flush-play-list play 1 300 425 -7 pause 2 400 profile call-progress-tone defaultCongestiontone flush-play-list play 1 300 425 -7 pause 2 400 | E3: use profile fxo etsi | F3: use profile fxs etsi | G3: =+SUBSTITUTE(Table2[[#This Row],[Call Progress]],CHAR(10),CONCATENATE(CHAR(13),CHAR(10))) -> profile call-progress-tone defaultDialtone flush-play-list play 1 1000 425 -6 profile call-progress-tone defaultAlertingtone flush-play-list play 1 1000 425 -13 pause 2 4000 profile call-progress-tone defaultBusytone flush-play-list play 1 300 425 -7 pause 2 200 profile call-progress-tone defaultReleasetone flush-play-list play 1 300 425 -7 pause 2 400 profile call-progress-tone defaultCongestiontone flush-play-list play 1 300 425 -7 pause 2 400 | H3: profile call-progress-tone defaultDialtone flush-play-list play 1 1000 425 -6 profile call-progress-tone defaultAlertingtone flush-play-list play 1 1000 425 -13 pause 2 4000 profile call-progress-tone defaultBusytone flush-play-list play 1 300 425 -7 pause 2 200 profile call-progress-tone defaultReleasetone flush-play-list play 1 300 425 -7 pause 2 400 profile call-progress-tone defaultCongestiontone flush-play-list play 1 300 425 -7 pause 2 400 | I3: profile call-progress-tone defaultDialtone flush-play-list play 1 1000 425 -6 profile call-progress-tone defaultAlertingtone flush-play-list play 1 1000 425 -13 pause 2 4000 profile call-progress-tone defaultBusytone flush-play-list play 1 300 425 -7 pause 2 200 profile call-progress-tone defaultReleasetone flush-play-list play 1 300 425 -7 pause 2 400 profile call-progress-tone defaultCongestiontone flush-play-list play 1 300 425 -7 pause 2 400
B4: Australia | C4: Tone_Set_AU | D4: profile call-progress-tone defaultDialtone flush-play-list play 1 1000 425 -6 450 -6 profile call-progress-tone defaultAlertingtone flush-play-list play 1 400 425 -13 450 -13 pause 2 200 play 1 400 425 -13 450 -13 pause 2 2000 profile call-progress-tone defaultBusytone flush-play-list play 1 375 425 -7 pause 2 375 profile call-progress-tone defaultReleasetone flush-play-list play 1 375 425 -7 pause 2 375 profile call-progress-tone defaultCongestiontone flush-play-list play 1 375 425 -7 pause 2 375 | E4: use profile fxo au | F4: use profile fxs au | G4: =+SUBSTITUTE(Table2[[#This Row],[Call Progress]],CHAR(10),CONCATENATE(CHAR(13),CHAR(10))) -> profile call-progress-tone defaultDialtone flush-play-list play 1 1000 425 -6 450 -6 profile call-progress-tone defaultAlertingtone flush-play-list play 1 400 425 -13 450 -13 pause 2 200 play 1 400 425 -13 450 -13 pause 2 2000 profile call-progress-tone defaultBusytone flush-play-list play 1 375 425 -7 pause 2 375 profile call-progress-tone defaultReleasetone flush-play-list play 1 375 425 -7 pause 2 375 profile call-progress-tone defaultCongestiontone flush-play-list play 1 375 425 -7 pause 2 375 | H4: profile call-progress-tone defaultDialtone flush-play-list play 1 1000 425 -6 450 -6 profile call-progress-tone defaultAlertingtone flush-play-list play 1 400 425 -13 450 -13 pause 2 200 play 1 400 425 -13 450 -13 pause 2 2000 profile call-progress-tone defaultBusytone flush-play-list play 1 375 425 -7 pause 2 375 profile call-progress-tone defaultReleasetone flush-play-list play 1 375 425 -7 pause 2 375 profile call-progress-tone defaultCongestiontone flush-play-list play 1 375 425 -7 pause 2 375 | I4: profile call-progress-tone defaultDialtone flush-play-list play 1 1000 425 -6 450 -6 profile call-progress-tone defaultAlertingtone flush-play-list play 1 400 425 -13 450 -13 pause 2 200 play 1 400 425 -13 450 -13 pause 2 2000 profile call-progress-tone defaultBusytone flush-play-list play 1 375 425 -7 pause 2 375 profile call-progress-tone defaultReleasetone flush-play-list play 1 375 425 -7 pause 2 375 profile call-progress-tone defaultCongestiontone flush-play-list play 1 375 425 -7 pause 2 375
B5: Austria 420Hz | C5: Tone_Set_AT420 | D5: profile call-progress-tone defaultDialtone flush-play-list play 1 1000 420 -6 profile call-progress-tone defaultAlertingtone flush-play-list play 1 1000 420 -13 pause 2 5000 profile call-progress-tone defaultBusytone flush-play-list play 1 400 420 -7 pause 2 400 profile call-progress-tone defaultReleasetone flush-play-list play 1 200 420 -7 pause 2 200 profile call-progress-tone defaultCongestiontone flush-play-list play 1 200 420 -7 pause 2 200 | E5: use profile fxo etsi | F5: use profile fxs etsi | G5: =+SUBSTITUTE(Table2[[#This Row],[Call Progress]],CHAR(10),CONCATENATE(CHAR(13),CHAR(10))) -> profile call-progress-tone defaultDialtone flush-play-list play 1 1000 420 -6 profile call-progress-tone defaultAlertingtone flush-play-list play 1 1000 420 -13 pause 2 5000 profile call-progress-tone defaultBusytone flush-play-list play 1 400 420 -7 pause 2 400 profile call-progress-tone defaultReleasetone flush-play-list play 1 200 420 -7 pause 2 200 profile call-progress-tone defaultCongestiontone flush-play-list play 1 200 420 -7 pause 2 200 | H5: profile call-progress-tone defaultDialtone flush-play-list play 1 1000 420 -6 profile call-progress-tone defaultAlertingtone flush-play-list play 1 1000 420 -13 pause 2 5000 profile call-progress-tone defaultBusytone flush-play-list play 1 400 420 -7 pause 2 400 profile call-progress-tone defaultReleasetone flush-play-list play 1 200 420 -7 pause 2 200 profile call-progress-tone defaultCongestiontone flush-play-list play 1 200 420 -7 pause 2 200 | I5: profile call-progress-tone defaultDialtone flush-play-list play 1 1000 420 -6 profile call-progress-tone defaultAlertingtone flush-play-list play 1 1000 420 -13 pause 2 5000 profile call-progress-tone defaultBusytone flush-play-list play 1 400 420 -7 pause 2 400 profile call-progress-tone defaultReleasetone flush-play-list play 1 200 420 -7 pause 2 200 profile call-progress-tone defaultCongestiontone flush-play-list play 1 200 420 -7 pause 2 200
B6: Austria 450Hz | C6: Tone_Set_AT450 | D6: profile call-progress-tone defaultDialtone flush-play-list play 1 1000 450 -6 profile call-progress-tone defaultAlertingtone flush-play-list play 1 1000 450 -13 pause 2 5000 profile call-progress-tone defaultBusytone flush-play-list play 1 300 450 -7 pause 2 300 profile call-progress-tone defaultReleasetone flush-play-list play 1 300 450 -7 pause 2 300 profile call-progress-tone defaultCongestiontone flush-play-list play 1 300 450 -7 pause 2 300 | E6: use profile fxo etsi | F6: use profile fxs etsi | G6: =+SUBSTITUTE(Table2[[#This Row],[Call Progress]],CHAR(10),CONCATENATE(CHAR(13),CHAR(10))) -> profile call-progress-tone defaultDialtone flush-play-list play 1 1000 450 -6 profile call-progress-tone defaultAlertingtone flush-play-list play 1 1000 450 -13 pause 2 5000 profile call-progress-tone defaultBusytone flush-play-list play 1 300 450 -7 pause 2 300 profile call-progress-tone defaultReleasetone flush-play-list play 1 300 450 -7 pause 2 300 profile call-progress-tone defaultCongestiontone flush-play-list play 1 300 450 -7 pause 2 300 | H6: profile call-progress-tone defaultDialtone flush-play-list play 1 1000 450 -6 profile call-progress-tone defaultAlertingtone flush-play-list play 1 1000 450 -13 pause 2 5000 profile call-progress-tone defaultBusytone flush-play-list play 1 300 450 -7 pause 2 300 profile call-progress-tone defaultReleasetone flush-play-list play 1 300 450 -7 pause 2 300 profile call-progress-tone defaultCongestiontone flush-play-list play 1 300 450 -7 pause 2 300 | I6: profile call-progress-tone defaultDialtone flush-play-list play 1 1000 450 -6 profile call-progress-tone defaultAlertingtone flush-play-list play 1 1000 450 -13 pause 2 5000 profile call-progress-tone defaultBusytone flush-play-list play 1 300 450 -7 pause 2 300 profile call-progress-tone defaultReleasetone flush-play-list play 1 300 450 -7 pause 2 300 profile call-progress-tone defaultCongestiontone flush-play-list play 1 300 450 -7 pause 2 300
B7: Belgium | C7: Tone_Set_BE | D7: profile call-progress-tone defaultDialtone flush-play-list play 1 1000 425 0 profile call-progress-tone defaultAlertingtone flush-play-list play 1 1000 425 -7 pause 2 3000 profile call-progress-tone defaultBusytone flush-play-list play 1 500 425 -7 pause 2 500 profile call-progress-tone defaultReleasetone flush-play-list play 1 170 425 -7 pause 2 170 profile call-progress-tone defaultCongestiontone flush-play-list play 1 170 425 -7 pause 2 170 | E7: use profile fxo etsi | F7: use profile fxs etsi | G7: =+SUBSTITUTE(Table2[[#This Row],[Call Progress]],CHAR(10),CONCATENATE(CHAR(13),CHAR(10))) -> profile call-progress-tone defaultDialtone flush-play-list play 1 1000 425 0 profile call-progress-tone defaultAlertingtone flush-play-list play 1 1000 425 -7 pause 2 3000 profile call-progress-tone defaultBusytone flush-play-list play 1 500 425 -7 pause 2 500 profile call-progress-tone defaultReleasetone flush-play-list play 1 170 425 -7 pause 2 170 profile call-progress-tone defaultCongestiontone flush-play-list play 1 170 425 -7 pause 2 170 | H7: profile call-progress-tone defaultDialtone flush-play-list play 1 1000 425 0 profile call-progress-tone defaultAlertingtone flush-play-list play 1 1000 425 -7 pause 2 3000 profile call-progress-tone defaultBusytone flush-play-list play 1 500 425 -7 pause 2 500 profile call-progress-tone defaultReleasetone flush-play-list play 1 170 425 -7 pause 2 170 profile call-progress-tone defaultCongestiontone flush-play-list play 1 170 425 -7 pause 2 170 | I7: profile call-progress-tone defaultDialtone flush-play-list play 1 1000 425 0 profile call-progress-tone defaultAlertingtone flush-play-list play 1 1000 425 -7 pause 2 3000 profile call-progress-tone defaultBusytone flush-play-list play 1 500 425 -7 pause 2 500 profile call-progress-tone defaultReleasetone flush-play-list play 1 170 425 -7 pause 2 170 profile call-progress-tone defaultCongestiontone flush-play-list play 1 170 425 -7 pause 2 170
B8: Brazil | C8: Tone_Set_BR | D8: profile call-progress-tone defaultDialtone flush-play-list play 1 1000 425 -6 profile call-progress-tone defaultAlertingtone flush-play-list play 1 1000 425 -7 pause 2 4000 profile call-progress-tone defaultBusytone flush-play-list play 1 250 425 -7 pause 2 250 profile call-progress-tone defaultReleasetone flush-play-list play 1 250 425 -7 pause 2 250 profile call-progress-tone defaultCongestiontone flush-play-list play 1 250 425 -7 pause 2 250 | E8: use profile fxo etsi | F8: use profile fxs etsi | G8: =+SUBSTITUTE(Table2[[#This Row],[Call Progress]],CHAR(10),CONCATENATE(CHAR(13),CHAR(10))) -> profile call-progress-tone defaultDialtone flush-play-list play 1 1000 425 -6 profile call-progress-tone defaultAlertingtone flush-play-list play 1 1000 425 -7 pause 2 4000 profile call-progress-tone defaultBusytone flush-play-list play 1 250 425 -7 pause 2 250 profile call-progress-tone defaultReleasetone flush-play-list play 1 250 425 -7 pause 2 250 profile call-progress-tone defaultCongestiontone flush-play-list play 1 250 425 -7 pause 2 250 | H8: profile call-progress-tone defaultDialtone flush-play-list play 1 1000 425 -6 profile call-progress-tone defaultAlertingtone flush-play-list play 1 1000 425 -7 pause 2 4000 profile call-progress-tone defaultBusytone flush-play-list play 1 250 425 -7 pause 2 250 profile call-progress-tone defaultReleasetone flush-play-list play 1 250 425 -7 pause 2 250 profile call-progress-tone defaultCongestiontone flush-play-list play 1 250 425 -7 pause 2 250 | I8: profile call-progress-tone defaultDialtone flush-play-list play 1 1000 425 -6 profile call-progress-tone defaultAlertingtone flush-play-list play 1 1000 425 -7 pause 2 4000 profile call-progress-tone defaultBusytone flush-play-list play 1 250 425 -7 pause 2 250 profile call-progress-tone defaultReleasetone flush-play-list play 1 250 425 -7 pause 2 250 profile call-progress-tone defaultCongestiontone flush-play-list play 1 250 425 -7 pause 2 250
B9: Cyprus | C9: Tone_Set_CY | D9: profile call-progress-tone defaultDialtone flush-play-list play 1 1000 350 -6 450 -6 profile call-progress-tone defaultAlertingtone flush-play-list play 1 1500 425 -13 pause 2 3000 profile call-progress-tone defaultBusytone flush-play-list play 1 500 425 -7 pause 2 500 profile call-progress-tone defaultReleasetone flush-play-list play 1 250 425 -7 pause 2 250 profile call-progress-tone defaultCongestiontone flush-play-list play 1 250 425 -7 pause 2 250 | E9: use profile fxo etsi | F9: use profile fxs etsi | G9: =+SUBSTITUTE(Table2[[#This Row],[Call Progress]],CHAR(10),CONCATENATE(CHAR(13),CHAR(10))) -> profile call-progress-tone defaultDialtone flush-play-list play 1 1000 350 -6 450 -6 profile call-progress-tone defaultAlertingtone flush-play-list play 1 1500 425 -13 pause 2 3000 profile call-progress-tone defaultBusytone flush-play-list play 1 500 425 -7 pause 2 500 profile call-progress-tone defaultReleasetone flush-play-list play 1 250 425 -7 pause 2 250 profile call-progress-tone defaultCongestiontone flush-play-list play 1 250 425 -7 pause 2 250 | H9: profile call-progress-tone defaultDialtone flush-play-list play 1 1000 350 -6 450 -6 profile call-progress-tone defaultAlertingtone flush-play-list play 1 1500 425 -13 pause 2 3000 profile call-progress-tone defaultBusytone flush-play-list play 1 500 425 -7 pause 2 500 profile call-progress-tone defaultReleasetone flush-play-list play 1 250 425 -7 pause 2 250 profile call-progress-tone defaultCongestiontone flush-play-list play 1 250 425 -7 pause 2 250 | I9: profile call-progress-tone defaultDialtone flush-play-list play 1 1000 350 -6 450 -6 profile call-progress-tone defaultAlertingtone flush-play-list play 1 1500 425 -13 pause 2 3000 profile call-progress-tone defaultBusytone flush-play-list play 1 500 425 -7 pause 2 500 profile call-progress-tone defaultReleasetone flush-play-list play 1 250 425 -7 pause 2 250 profile call-progress-tone defaultCongestiontone flush-play-list play 1 250 425 -7 pause 2 250
B10: Czech Republic | C10: Tone_Set_CZ | D10: profile call-progress-tone defaultDialtone flush-play-list play 1 330 425 -6 pause 2 330 play 3 660 425 -6 pause 4 660 profile call-progress-tone defaultAlertingtone flush-play-list play 1 1000 425 -13 pause 2 4000 profile call-progress-tone defaultBusytone flush-play-list play 1 330 425 -7 pause 2 330 profile call-progress-tone defaultReleasetone flush-play-list play 1 165 425 -7 pause 2 165 profile call-progress-tone defaultCongestiontone flush-play-list play 1 165 425 -7 pause 2 165 | E10: use profile fxo etsi | F10: use profile fxs etsi | G10: =+SUBSTITUTE(Table2[[#This Row],[Call Progress]],CHAR(10),CONCATENATE(CHAR(13),CHAR(10))) -> profile call-progress-tone defaultDialtone flush-play-list play 1 330 425 -6 pause 2 330 play 3 660 425 -6 pause 4 660 profile call-progress-tone defaultAlertingtone flush-play-list play 1 1000 425 -13 pause 2 4000 profile call-progress-tone defaultBusytone flush-play-list play 1 330 425 -7 pause 2 330 profile call-progress-tone defaultReleasetone flush-play-list play 1 165 425 -7 pause 2 165 profile call-progress-tone defaultCongestiontone flush-play-list play 1 165 425 -7 pause 2 165 | H10: profile call-progress-tone defaultDialtone flush-play-list play 1 330 425 -6 pause 2 330 play 3 660 425 -6 pause 4 660 profile call-progress-tone defaultAlertingtone flush-play-list play 1 1000 425 -13 pause 2 4000 profile call-progress-tone defaultBusytone flush-play-list play 1 330 425 -7 pause 2 330 profile call-progress-tone defaultReleasetone flush-play-list play 1 165 425 -7 pause 2 165 profile call-progress-tone defaultCongestiontone flush-play-list play 1 165 425 -7 pause 2 165 | I10: profile call-progress-tone defaultDialtone flush-play-list play 1 330 425 -6 pause 2 330 play 3 660 425 -6 pause 4 660 profile call-progress-tone defaultAlertingtone flush-play-list play 1 1000 425 -13 pause 2 4000 profile call-progress-tone defaultBusytone flush-play-list play 1 330 425 -7 pause 2 330 profile call-progress-tone defaultReleasetone flush-play-list play 1 165 425 -7 pause 2 165 profile call-progress-tone defaultCongestiontone flush-play-list play 1 165 425 -7 pause 2 165
B11: Denmark | C11: Tone_Set_DK | D11: profile call-progress-tone defaultDialtone flush-play-list play 1 1000 425 -6 profile call-progress-tone defaultAlertingtone flush-play-list play 1 1000 425 -7 pause 2 4000 profile call-progress-tone defaultBusytone flush-play-list play 1 250 425 -7 pause 2 250 profile call-progress-tone defaultReleasetone flush-play-list play 1 250 425 -7 pause 2 250 profile call-progress-tone defaultCongestiontone flush-play-list play 1 250 425 -7 pause 2 250 | E11: use profile fxo etsi | F11: use profile fxs etsi | G11: =+SUBSTITUTE(Table2[[#This Row],[Call Progress]],CHAR(10),CONCATENATE(CHAR(13),CHAR(10))) -> profile call-progress-tone defaultDialtone flush-play-list play 1 1000 425 -6 profile call-progress-tone defaultAlertingtone flush-play-list play 1 1000 425 -7 pause 2 4000 profile call-progress-tone defaultBusytone flush-play-list play 1 250 425 -7 pause 2 250 profile call-progress-tone defaultReleasetone flush-play-list play 1 250 425 -7 pause 2 250 profile call-progress-tone defaultCongestiontone flush-play-list play 1 250 425 -7 pause 2 250 | H11: profile call-progress-tone defaultDialtone flush-play-list play 1 1000 425 -6 profile call-progress-tone defaultAlertingtone flush-play-list play 1 1000 425 -7 pause 2 4000 profile call-progress-tone defaultBusytone flush-play-list play 1 250 425 -7 pause 2 250 profile call-progress-tone defaultReleasetone flush-play-list play 1 250 425 -7 pause 2 250 profile call-progress-tone defaultCongestiontone flush-play-list play 1 250 425 -7 pause 2 250 | I11: profile call-progress-tone defaultDialtone flush-play-list play 1 1000 425 -6 profile call-progress-tone defaultAlertingtone flush-play-list play 1 1000 425 -7 pause 2 4000 profile call-progress-tone defaultBusytone flush-play-list play 1 250 425 -7 pause 2 250 profile call-progress-tone defaultReleasetone flush-play-list play 1 250 425 -7 pause 2 250 profile call-progress-tone defaultCongestiontone flush-play-list play 1 250 425 -7 pause 2 250
B12: Finland | C12: Tone_Set_FI | D12: profile call-progress-tone defaultDialtone flush-play-list play 1 1000 425 -6 profile call-progress-tone defaultAlertingtone flush-play-list play 1 1000 425 -7 pause 2 4000 profile call-progress-tone defaultBusytone flush-play-list play 1 300 425 -7 pause 2 300 profile call-progress-tone defaultReleasetone flush-play-list play 1 200 425 -7 pause 2 200 profile call-progress-tone defaultCongestiontone flush-play-list play 1 200 425 -7 pause 2 200 | E12: use profile fxo etsi | F12: use profile fxs etsi | G12: =+SUBSTITUTE(Table2[[#This Row],[Call Progress]],CHAR(10),CONCATENATE(CHAR(13),CHAR(10))) -> profile call-progress-tone defaultDialtone flush-play-list play 1 1000 425 -6 profile call-progress-tone defaultAlertingtone flush-play-list play 1 1000 425 -7 pause 2 4000 profile call-progress-tone defaultBusytone flush-play-list play 1 300 425 -7 pause 2 300 profile call-progress-tone defaultReleasetone flush-play-list play 1 200 425 -7 pause 2 200 profile call-progress-tone defaultCongestiontone flush-play-list play 1 200 425 -7 pause 2 200 | H12: profile call-progress-tone defaultDialtone flush-play-list play 1 1000 425 -6 profile call-progress-tone defaultAlertingtone flush-play-list play 1 1000 425 -7 pause 2 4000 profile call-progress-tone defaultBusytone flush-play-list play 1 300 425 -7 pause 2 300 profile call-progress-tone defaultReleasetone flush-play-list play 1 200 425 -7 pause 2 200 profile call-progress-tone defaultCongestiontone flush-play-list play 1 200 425 -7 pause 2 200 | I12: profile call-progress-tone defaultDialtone flush-play-list play 1 1000 425 -6 profile call-progress-tone defaultAlertingtone flush-play-list play 1 1000 425 -7 pause 2 4000 profile call-progress-tone defaultBusytone flush-play-list play 1 300 425 -7 pause 2 300 profile call-progress-tone defaultReleasetone flush-play-list play 1 200 425 -7 pause 2 200 profile call-progress-tone defaultCongestiontone flush-play-list play 1 200 425 -7 pause 2 200
B13: France | C13: Tone_Set_FR | D13: profile call-progress-tone defaultDialtone flush-play-list play 1 1000 440 0 profile call-progress-tone defaultAlertingtone flush-play-list play 1 1500 440 -7 pause 2 3500 profile call-progress-tone defaultBusytone flush-play-list play 1 500 440 -7 pause 2 500 profile call-progress-tone defaultReleasetone flush-play-list play 1 250 425 -7 pause 2 250 profile call-progress-tone defaultCongestiontone flush-play-list play 1 250 425 -7 pause 2 250 | E13: use profile fxo etsi | F13: use profile fxs etsi | G13: =+SUBSTITUTE(Table2[[#This Row],[Call Progress]],CHAR(10),CONCATENATE(CHAR(13),CHAR(10))) -> profile call-progress-tone defaultDialtone flush-play-list play 1 1000 440 0 profile call-progress-tone defaultAlertingtone flush-play-list play 1 1500 440 -7 pause 2 3500 profile call-progress-tone defaultBusytone flush-play-list play 1 500 440 -7 pause 2 500 profile call-progress-tone defaultReleasetone flush-play-list play 1 250 425 -7 pause 2 250 profile call-progress-tone defaultCongestiontone flush-play-list play 1 250 425 -7 pause 2 250 | H13: profile call-progress-tone defaultDialtone flush-play-list play 1 1000 440 0 profile call-progress-tone defaultAlertingtone flush-play-list play 1 1500 440 -7 pause 2 3500 profile call-progress-tone defaultBusytone flush-play-list play 1 500 440 -7 pause 2 500 profile call-progress-tone defaultReleasetone flush-play-list play 1 250 425 -7 pause 2 250 profile call-progress-tone defaultCongestiontone flush-play-list play 1 250 425 -7 pause 2 250 | I13: profile call-progress-tone defaultDialtone flush-play-list play 1 1000 440 0 profile call-progress-tone defaultAlertingtone flush-play-list play 1 1500 440 -7 pause 2 3500 profile call-progress-tone defaultBusytone flush-play-list play 1 500 440 -7 pause 2 500 profile call-progress-tone defaultReleasetone flush-play-list play 1 250 425 -7 pause 2 250 profile call-progress-tone defaultCongestiontone flush-play-list play 1 250 425 -7 pause 2 250
B14: Germany | C14: Tone_Set_DE | D14: profile call-progress-tone defaultDialtone flush-play-list play 1 1000 425 0 profile call-progress-tone defaultAlertingtone flush-play-list play 1 1000 425 -7 pause 2 4000 profile call-progress-tone defaultBusytone flush-play-list play 1 480 425 -7 pause 2 480 profile call-progress-tone defaultReleasetone flush-play-list play 1 240 425 -7 pause 2 240 profile call-progress-tone defaultCongestiontone flush-play-list play 1 240 425 -7 pause 2 240 | E14: use profile fxo etsi | F14: use profile fxs etsi | G14: =+SUBSTITUTE(Table2[[#This Row],[Call Progress]],CHAR(10),CONCATENATE(CHAR(13),CHAR(10))) -> profile call-progress-tone defaultDialtone flush-play-list play 1 1000 425 0 profile call-progress-tone defaultAlertingtone flush-play-list play 1 1000 425 -7 pause 2 4000 profile call-progress-tone defaultBusytone flush-play-list play 1 480 425 -7 pause 2 480 profile call-progress-tone defaultReleasetone flush-play-list play 1 240 425 -7 pause 2 240 profile call-progress-tone defaultCongestiontone flush-play-list play 1 240 425 -7 pause 2 240 | H14: profile call-progress-tone defaultDialtone flush-play-list play 1 1000 425 0 profile call-progress-tone defaultAlertingtone flush-play-list play 1 1000 425 -7 pause 2 4000 profile call-progress-tone defaultBusytone flush-play-list play 1 480 425 -7 pause 2 480 profile call-progress-tone defaultReleasetone flush-play-list play 1 240 425 -7 pause 2 240 profile call-progress-tone defaultCongestiontone flush-play-list play 1 240 425 -7 pause 2 240 | I14: profile call-progress-tone defaultDialtone flush-play-list play 1 1000 425 0 profile call-progress-tone defaultAlertingtone flush-play-list play 1 1000 425 -7 pause 2 4000 profile call-progress-tone defaultBusytone flush-play-list play 1 480 425 -7 pause 2 480 profile call-progress-tone defaultReleasetone flush-play-list play 1 240 425 -7 pause 2 240 profile call-progress-tone defaultCongestiontone flush-play-list play 1 240 425 -7 pause 2 240
B15: Greece | C15: Tone_Set_GR | D15: profile call-progress-tone defaultDialtone play 1 200 425 0 pause 2 300 play 3 700 425 0 pause 4 800 profile call-progress-tone defaultBusytone play 1 300 425 -7 pause 2 300 profile call-progress-tone defaultReleasetone play 1 150 425 -7 pause 2 150 profile call-progress-tone defaultCongestiontone play 1 150 425 -7 pause 2 150 | E15: use profile fxo etsi | F15: use profile fxs etsi | G15: =+SUBSTITUTE(Table2[[#This Row],[Call Progress]],CHAR(10),CONCATENATE(CHAR(13),CHAR(10))) -> profile call-progress-tone defaultDialtone play 1 200 425 0 pause 2 300 play 3 700 425 0 pause 4 800 profile call-progress-tone defaultBusytone play 1 300 425 -7 pause 2 300 profile call-progress-tone defaultReleasetone play 1 150 425 -7 pause 2 150 profile call-progress-tone defaultCongestiontone play 1 150 425 -7 pause 2 150 | H15: profile call-progress-tone defaultDialtone play 1 200 425 0 pause 2 300 play 3 700 425 0 pause 4 800 profile call-progress-tone defaultBusytone play 1 300 425 -7 pause 2 300 profile call-progress-tone defaultReleasetone play 1 150 425 -7 pause 2 150 profile call-progress-tone defaultCongestiontone play 1 150 425 -7 pause 2 150 | I15: profile call-progress-tone defaultDialtone play 1 200 425 0 pause 2 300 play 3 700 425 0 pause 4 800 profile call-progress-tone defaultBusytone play 1 300 425 -7 pause 2 300 profile call-progress-tone defaultReleasetone play 1 150 425 -7 pause 2 150 profile call-progress-tone defaultCongestiontone play 1 150 425 -7 pause 2 150
B16: Holland | C16: Tone_Set_NL | D16: profile call-progress-tone defaultDialtone flush-play-list play 1 1000 425 0 profile call-progress-tone defaultAlertingtone flush-play-list play 1 1000 425 -7 pause 2 4000 profile call-progress-tone defaultBusytone flush-play-list play 1 500 425 -7 pause 2 500 profile call-progress-tone defaultReleasetone flush-play-list play 1 250 425 -7 pause 2 250 profile call-progress-tone defaultCongestiontone flush-play-list play 1 250 425 -7 pause 2 250 | E16: use profile fxo nl | F16: use profile fxs nl | G16: =+SUBSTITUTE(Table2[[#This Row],[Call Progress]],CHAR(10),CONCATENATE(CHAR(13),CHAR(10))) -> profile call-progress-tone defaultDialtone flush-play-list play 1 1000 425 0 profile call-progress-tone defaultAlertingtone flush-play-list play 1 1000 425 -7 pause 2 4000 profile call-progress-tone defaultBusytone flush-play-list play 1 500 425 -7 pause 2 500 profile call-progress-tone defaultReleasetone flush-play-list play 1 250 425 -7 pause 2 250 profile call-progress-tone defaultCongestiontone flush-play-list play 1 250 425 -7 pause 2 250 | H16: profile call-progress-tone defaultDialtone flush-play-list play 1 1000 425 0 profile call-progress-tone defaultAlertingtone flush-play-list play 1 1000 425 -7 pause 2 4000 profile call-progress-tone defaultBusytone flush-play-list play 1 500 425 -7 pause 2 500 profile call-progress-tone defaultReleasetone flush-play-list play 1 250 425 -7 pause 2 250 profile call-progress-tone defaultCongestiontone flush-play-list play 1 250 425 -7 pause 2 250 | I16: profile call-progress-tone defaultDialtone flush-play-list play 1 1000 425 0 profile call-progress-tone defaultAlertingtone flush-play-list play 1 1000 425 -7 pause 2 4000 profile call-progress-tone defaultBusytone flush-play-list play 1 500 425 -7 pause 2 500 profile call-progress-tone defaultReleasetone flush-play-list play 1 250 425 -7 pause 2 250 profile call-progress-tone defaultCongestiontone flush-play-list play 1 250 425 -7 pause 2 250
B17: India | C17: Tone_Set_IN | D17: profile call-progress-tone defaultDialtone flush-play-list play 1 1000 425 -6 profile call-progress-tone defaultAlertingtone flush-play-list play 1 400 400 -13 pause 2 200 play 3 400 400 -13 pause 4 2000 profile call-progress-tone defaultBusytone flush-play-list play 1 750 400 -7 pause 2 750 profile call-progress-tone defaultReleasetone flush-play-list play 1 250 400 -7 pause 2 250 profile call-progress-tone defaultCongestiontone flush-play-list play 1 250 400 -7 pause 2 250 | E17: use profile fxo etsi | F17: use profile fxs etsi | G17: =+SUBSTITUTE(Table2[[#This Row],[Call Progress]],CHAR(10),CONCATENATE(CHAR(13),CHAR(10))) -> profile call-progress-tone defaultDialtone flush-play-list play 1 1000 425 -6 profile call-progress-tone defaultAlertingtone flush-play-list play 1 400 400 -13 pause 2 200 play 3 400 400 -13 pause 4 2000 profile call-progress-tone defaultBusytone flush-play-list play 1 750 400 -7 pause 2 750 profile call-progress-tone defaultReleasetone flush-play-list play 1 250 400 -7 pause 2 250 profile call-progress-tone defaultCongestiontone flush-play-list play 1 250 400 -7 pause 2 250 | H17: profile call-progress-tone defaultDialtone flush-play-list play 1 1000 425 -6 profile call-progress-tone defaultAlertingtone flush-play-list play 1 400 400 -13 pause 2 200 play 3 400 400 -13 pause 4 2000 profile call-progress-tone defaultBusytone flush-play-list play 1 750 400 -7 pause 2 750 profile call-progress-tone defaultReleasetone flush-play-list play 1 250 400 -7 pause 2 250 profile call-progress-tone defaultCongestiontone flush-play-list play 1 250 400 -7 pause 2 250 | I17: profile call-progress-tone defaultDialtone flush-play-list play 1 1000 425 -6 profile call-progress-tone defaultAlertingtone flush-play-list play 1 400 400 -13 pause 2 200 play 3 400 400 -13 pause 4 2000 profile call-progress-tone defaultBusytone flush-play-list play 1 750 400 -7 pause 2 750 profile call-progress-tone defaultReleasetone flush-play-list play 1 250 400 -7 pause 2 250 profile call-progress-tone defaultCongestiontone flush-play-list play 1 250 400 -7 pause 2 250
B18: Ireland | C18: Tone_Set_IE | D18: profile call-progress-tone defaultDialtone flush-play-list play 1 1000 400 -6 profile call-progress-tone defaultAlertingtone flush-play-list play 1 400 400 -6 pause 2 200 play 3 400 400 -6 pause 4 2000 profile call-progress-tone defaultBusytone flush-play-list play 1 500 425 -6 pause 2 500 profile call-progress-tone defaultReleasetone flush-play-list play 1 500 425 -6 pause 2 500 profile call-progress-tone defaultCongestiontone flush-play-list play 1 500 425 -6 pause 2 500 | E18: use profile fxo etsi | F18: use profile fxs etsi | G18: =+SUBSTITUTE(Table2[[#This Row],[Call Progress]],CHAR(10),CONCATENATE(CHAR(13),CHAR(10))) -> profile call-progress-tone defaultDialtone flush-play-list play 1 1000 400 -6 profile call-progress-tone defaultAlertingtone flush-play-list play 1 400 400 -6 pause 2 200 play 3 400 400 -6 pause 4 2000 profile call-progress-tone defaultBusytone flush-play-list play 1 500 425 -6 pause 2 500 profile call-progress-tone defaultReleasetone flush-play-list play 1 500 425 -6 pause 2 500 profile call-progress-tone defaultCongestiontone flush-play-list play 1 500 425 -6 pause 2 500 | H18: profile call-progress-tone defaultDialtone flush-play-list play 1 1000 400 -6 profile call-progress-tone defaultAlertingtone flush-play-list play 1 400 400 -6 pause 2 200 play 3 400 400 -6 pause 4 2000 profile call-progress-tone defaultBusytone flush-play-list play 1 500 425 -6 pause 2 500 profile call-progress-tone defaultReleasetone flush-play-list play 1 500 425 -6 pause 2 500 profile call-progress-tone defaultCongestiontone flush-play-list play 1 500 425 -6 pause 2 500 | I18: profile call-progress-tone defaultDialtone flush-play-list play 1 1000 400 -6 profile call-progress-tone defaultAlertingtone flush-play-list play 1 400 400 -6 pause 2 200 play 3 400 400 -6 pause 4 2000 profile call-progress-tone defaultBusytone flush-play-list play 1 500 425 -6 pause 2 500 profile call-progress-tone defaultReleasetone flush-play-list play 1 500 425 -6 pause 2 500 profile call-progress-tone defaultCongestiontone flush-play-list play 1 500 425 -6 pause 2 500
B19: Italy | C19: Tone_Set_IT | D19: profile call-progress-tone defaultDialtone flush-play-list play 1 200 425 0 pause 2 200 play 1 600 425 0 pause 1 1000 profile call-progress-tone defaultAlertingtone flush-play-list play 1 1000 425 -7 pause 2 4000 profile call-progress-tone defaultBusytone flush-play-list play 1 200 425 -7 pause 2 200 profile call-progress-tone defaultReleasetone flush-play-list play 1 250 425 -7 pause 2 250 profile call-progress-tone defaultCongestiontone flush-play-list play 1 250 425 -7 pause 2 250 | E19: use profile fxo etsi | F19: use profile fxs etsi | G19: =+SUBSTITUTE(Table2[[#This Row],[Call Progress]],CHAR(10),CONCATENATE(CHAR(13),CHAR(10))) -> profile call-progress-tone defaultDialtone flush-play-list play 1 200 425 0 pause 2 200 play 1 600 425 0 pause 1 1000 profile call-progress-tone defaultAlertingtone flush-play-list play 1 1000 425 -7 pause 2 4000 profile call-progress-tone defaultBusytone flush-play-list play 1 200 425 -7 pause 2 200 profile call-progress-tone defaultReleasetone flush-play-list play 1 250 425 -7 pause 2 250 profile call-progress-tone defaultCongestiontone flush-play-list play 1 250 425 -7 pause 2 250 | H19: profile call-progress-tone defaultDialtone flush-play-list play 1 200 425 0 pause 2 200 play 1 600 425 0 pause 1 1000 profile call-progress-tone defaultAlertingtone flush-play-list play 1 1000 425 -7 pause 2 4000 profile call-progress-tone defaultBusytone flush-play-list play 1 200 425 -7 pause 2 200 profile call-progress-tone defaultReleasetone flush-play-list play 1 250 425 -7 pause 2 250 profile call-progress-tone defaultCongestiontone flush-play-list play 1 250 425 -7 pause 2 250 | I19: profile call-progress-tone defaultDialtone flush-play-list play 1 200 425 0 pause 2 200 play 1 600 425 0 pause 1 1000 profile call-progress-tone defaultAlertingtone flush-play-list play 1 1000 425 -7 pause 2 4000 profile call-progress-tone defaultBusytone flush-play-list play 1 200 425 -7 pause 2 200 profile call-progress-tone defaultReleasetone flush-play-list play 1 250 425 -7 pause 2 250 profile call-progress-tone defaultCongestiontone flush-play-list play 1 250 425 -7 pause 2 250
B20: Japan | C20: Tone_Set_JP | D20: profile call-progress-tone defaultDialtone flush-play-list play 1 1000 400 -6 profile call-progress-tone defaultAlertingtone flush-play-list play 1 1000 400 -13 pause 2 2000 profile call-progress-tone defaultBusytone flush-play-list play 1 500 400 -7 pause 2 500 profile call-progress-tone defaultReleasetone flush-play-list play 1 500 400 -7 pause 2 500 profile call-progress-tone defaultCongestiontone flush-play-list play 1 500 400 -7 pause 2 500 | E20: use profile fxo etsi | F20: use profile fxs etsi | G20: =+SUBSTITUTE(Table2[[#This Row],[Call Progress]],CHAR(10),CONCATENATE(CHAR(13),CHAR(10))) -> profile call-progress-tone defaultDialtone flush-play-list play 1 1000 400 -6 profile call-progress-tone defaultAlertingtone flush-play-list play 1 1000 400 -13 pause 2 2000 profile call-progress-tone defaultBusytone flush-play-list play 1 500 400 -7 pause 2 500 profile call-progress-tone defaultReleasetone flush-play-list play 1 500 400 -7 pause 2 500 profile call-progress-tone defaultCongestiontone flush-play-list play 1 500 400 -7 pause 2 500 | H20: profile call-progress-tone defaultDialtone flush-play-list play 1 1000 400 -6 profile call-progress-tone defaultAlertingtone flush-play-list play 1 1000 400 -13 pause 2 2000 profile call-progress-tone defaultBusytone flush-play-list play 1 500 400 -7 pause 2 500 profile call-progress-tone defaultReleasetone flush-play-list play 1 500 400 -7 pause 2 500 profile call-progress-tone defaultCongestiontone flush-play-list play 1 500 400 -7 pause 2 500 | I20: profile call-progress-tone defaultDialtone flush-play-list play 1 1000 400 -6 profile call-progress-tone defaultAlertingtone flush-play-list play 1 1000 400 -13 pause 2 2000 profile call-progress-tone defaultBusytone flush-play-list play 1 500 400 -7 pause 2 500 profile call-progress-tone defaultReleasetone flush-play-list play 1 500 400 -7 pause 2 500 profile call-progress-tone defaultCongestiontone flush-play-list play 1 500 400 -7 pause 2 500
B21: New Zeland | C21: Tone_Set_NZ | D21: profile call-progress-tone defaultDialtone flush-play-list play 1 5000 400 -15 profile call-progress-tone defaultAlertingtone flush-play-list pause 2 200 play 3 400 400 -15 450 -15 pause 4 2000 profile call-progress-tone defaultBusytone flush-play-list play 1 500 400 -15 pause 500 profile call-progress-tone defaultReleasetone flush-play-list play 1 500 400 -15 pause 500 profile call-progress-tone defaultCongestiontone flush-play-list play 1 500 400 -15 pause 500 profile call-progress-tone defaultSDTone flush-play-list play 1 10000 425 -19 620 -19 profile call-progress-tone defaultWaitingtone flush-play-list play 1 200 400 -15 pause 200 | E21: use profile fxo etsi | F21: use profile fxs etsi | G21: =+SUBSTITUTE(Table2[[#This Row],[Call Progress]],CHAR(10),CONCATENATE(CHAR(13),CHAR(10))) -> profile call-progress-tone defaultDialtone flush-play-list play 1 5000 400 -15 profile call-progress-tone defaultAlertingtone flush-play-list pause 2 200 play 3 400 400 -15 450 -15 pause 4 2000 profile call-progress-tone defaultBusytone flush-play-list play 1 500 400 -15 pause 500 profile call-progress-tone defaultReleasetone flush-play-list play 1 500 400 -15 pause 500 profile call-progress-tone defaultCongestiontone flush-play-list play 1 500 400 -15 pause 500 profile call-progress-tone defaultSDTone flush-play-list play 1 10000 425 -19 620 -19 profile call-progress-tone defaultWaitingtone flush-play-list play 1 200 400 -15 pause 200 | H21: profile call-progress-tone defaultDialtone flush-play-list play 1 5000 400 -15 profile call-progress-tone defaultAlertingtone flush-play-list pause 2 200 play 3 400 400 -15 450 -15 pause 4 2000 profile call-progress-tone defaultBusytone flush-play-list play 1 500 400 -15 pause 500 profile call-progress-tone defaultReleasetone flush-play-list play 1 500 400 -15 pause 500 profile call-progress-tone defaultCongestiontone flush-play-list play 1 500 400 -15 pause 500 profile call-progress-tone defaultSDTone flush-play-list play 1 10000 425 -19 620 -19 profile call-progress-tone defaultWaitingtone flush-play-list play 1 200 400 -15 pause 200 | I21: profile call-progress-tone defaultDialtone flush-play-list play 1 5000 400 -15 profile call-progress-tone defaultAlertingtone flush-play-list pause 2 200 play 3 400 400 -15 450 -15 pause 4 2000 profile call-progress-tone defaultBusytone flush-play-list play 1 500 400 -15 pause 500 profile call-progress-tone defaultReleasetone flush-play-list play 1 500 400 -15 pause 500 profile call-progress-tone defaultCongestiontone flush-play-list play 1 500 400 -15 pause 500 profile call-progress-tone defaultSDTone flush-play-list play 1 10000 425 -19 620 -19 profile call-progress-tone defaultWaitingtone flush-play-list play 1 200 400 -15 pause 200
B22: Norway | C22: Tone_Set_NO | D22: profile call-progress-tone defaultDialtone flush-play-list play 1 1000 425 -6 profile call-progress-tone defaultAlertingtone flush-play-list play 1 1000 425 -13 pause 2 4000 profile call-progress-tone defaultBusytone flush-play-list play 1 500 425 -7 pause 2 500 profile call-progress-tone defaultReleasetone flush-play-list play 1 200 425 -7 pause 2 200 profile call-progress-tone defaultCongestiontone flush-play-list play 1 200 425 -7 pause 2 200 | E22: use profile fxo etsi | F22: use profile fxs etsi | G22: =+SUBSTITUTE(Table2[[#This Row],[Call Progress]],CHAR(10),CONCATENATE(CHAR(13),CHAR(10))) -> profile call-progress-tone defaultDialtone flush-play-list play 1 1000 425 -6 profile call-progress-tone defaultAlertingtone flush-play-list play 1 1000 425 -13 pause 2 4000 profile call-progress-tone defaultBusytone flush-play-list play 1 500 425 -7 pause 2 500 profile call-progress-tone defaultReleasetone flush-play-list play 1 200 425 -7 pause 2 200 profile call-progress-tone defaultCongestiontone flush-play-list play 1 200 425 -7 pause 2 200 | H22: profile call-progress-tone defaultDialtone flush-play-list play 1 1000 425 -6 profile call-progress-tone defaultAlertingtone flush-play-list play 1 1000 425 -13 pause 2 4000 profile call-progress-tone defaultBusytone flush-play-list play 1 500 425 -7 pause 2 500 profile call-progress-tone defaultReleasetone flush-play-list play 1 200 425 -7 pause 2 200 profile call-progress-tone defaultCongestiontone flush-play-list play 1 200 425 -7 pause 2 200 | I22: profile call-progress-tone defaultDialtone flush-play-list play 1 1000 425 -6 profile call-progress-tone defaultAlertingtone flush-play-list play 1 1000 425 -13 pause 2 4000 profile call-progress-tone defaultBusytone flush-play-list play 1 500 425 -7 pause 2 500 profile call-progress-tone defaultReleasetone flush-play-list play 1 200 425 -7 pause 2 200 profile call-progress-tone defaultCongestiontone flush-play-list play 1 200 425 -7 pause 2 200
B23: Poland | C23: Tone_Set_PL | D23: profile call-progress-tone defaultDialtone flush-play-list play 1 1000 425 -6 profile call-progress-tone defaultAlertingtone flush-play-list play 1 1000 425 -13 pause 2 4000 profile call-progress-tone defaultBusytone flush-play-list play 1 500 425 -7 pause 2 500 profile call-progress-tone defaultReleasetone flush-play-list play 1 500 425 -7 pause 2 500 profile call-progress-tone defaultCongestiontone flush-play-list play 1 500 425 -7 pause 2 500 | E23: use profile fxo etsi | F23: use profile fxs etsi | G23: =+SUBSTITUTE(Table2[[#This Row],[Call Progress]],CHAR(10),CONCATENATE(CHAR(13),CHAR(10))) -> profile call-progress-tone defaultDialtone flush-play-list play 1 1000 425 -6 profile call-progress-tone defaultAlertingtone flush-play-list play 1 1000 425 -13 pause 2 4000 profile call-progress-tone defaultBusytone flush-play-list play 1 500 425 -7 pause 2 500 profile call-progress-tone defaultReleasetone flush-play-list play 1 500 425 -7 pause 2 500 profile call-progress-tone defaultCongestiontone flush-play-list play 1 500 425 -7 pause 2 500 | H23: profile call-progress-tone defaultDialtone flush-play-list play 1 1000 425 -6 profile call-progress-tone defaultAlertingtone flush-play-list play 1 1000 425 -13 pause 2 4000 profile call-progress-tone defaultBusytone flush-play-list play 1 500 425 -7 pause 2 500 profile call-progress-tone defaultReleasetone flush-play-list play 1 500 425 -7 pause 2 500 profile call-progress-tone defaultCongestiontone flush-play-list play 1 500 425 -7 pause 2 500 | I23: profile call-progress-tone defaultDialtone flush-play-list play 1 1000 425 -6 profile call-progress-tone defaultAlertingtone flush-play-list play 1 1000 425 -13 pause 2 4000 profile call-progress-tone defaultBusytone flush-play-list play 1 500 425 -7 pause 2 500 profile call-progress-tone defaultReleasetone flush-play-list play 1 500 425 -7 pause 2 500 profile call-progress-tone defaultCongestiontone flush-play-list play 1 500 425 -7 pause 2 500
B24: Portugal | C24: Tone_Set_PT | D24: profile call-progress-tone defaultDialtone flush-play-list play 1 1000 425 -6 profile call-progress-tone defaultAlertingtone flush-play-list play 1 1000 425 -13 pause 2 5000 profile call-progress-tone defaultBusytone flush-play-list play 1 500 425 -7 pause 2 500 profile call-progress-tone defaultReleasetone flush-play-list play 1 200 425 -7 pause 2 200 profile call-progress-tone defaultCongestiontone flush-play-list play 1 200 425 -7 pause 2 200 | E24: use profile fxo etsi | F24: use profile fxs etsi | G24: =+SUBSTITUTE(Table2[[#This Row],[Call Progress]],CHAR(10),CONCATENATE(CHAR(13),CHAR(10))) -> profile call-progress-tone defaultDialtone flush-play-list play 1 1000 425 -6 profile call-progress-tone defaultAlertingtone flush-play-list play 1 1000 425 -13 pause 2 5000 profile call-progress-tone defaultBusytone flush-play-list play 1 500 425 -7 pause 2 500 profile call-progress-tone defaultReleasetone flush-play-list play 1 200 425 -7 pause 2 200 profile call-progress-tone defaultCongestiontone flush-play-list play 1 200 425 -7 pause 2 200 | H24: profile call-progress-tone defaultDialtone flush-play-list play 1 1000 425 -6 profile call-progress-tone defaultAlertingtone flush-play-list play 1 1000 425 -13 pause 2 5000 profile call-progress-tone defaultBusytone flush-play-list play 1 500 425 -7 pause 2 500 profile call-progress-tone defaultReleasetone flush-play-list play 1 200 425 -7 pause 2 200 profile call-progress-tone defaultCongestiontone flush-play-list play 1 200 425 -7 pause 2 200 | I24: profile call-progress-tone defaultDialtone flush-play-list play 1 1000 425 -6 profile call-progress-tone defaultAlertingtone flush-play-list play 1 1000 425 -13 pause 2 5000 profile call-progress-tone defaultBusytone flush-play-list play 1 500 425 -7 pause 2 500 profile call-progress-tone defaultReleasetone flush-play-list play 1 200 425 -7 pause 2 200 profile call-progress-tone defaultCongestiontone flush-play-list play 1 200 425 -7 pause 2 200
B25: Russia | C25: Tone_Set_RU | D25: profile call-progress-tone defaultDialtone flush-play-list play 1 1000 425 -6 profile call-progress-tone defaultAlertingtone flush-play-list play 1 800 425 -13 pause 2 3200 profile call-progress-tone defaultBusytone flush-play-list play 1 400 425 -7 pause 2 400 profile call-progress-tone defaultReleasetone flush-play-list play 1 400 425 -7 pause 2 400 profile call-progress-tone defaultCongestiontone flush-play-list play 1 400 425 -7 pause 2 400 | E25: use profile fxo etsi | F25: use profile fxs etsi | G25: =+SUBSTITUTE(Table2[[#This Row],[Call Progress]],CHAR(10),CONCATENATE(CHAR(13),CHAR(10))) -> profile call-progress-tone defaultDialtone flush-play-list play 1 1000 425 -6 profile call-progress-tone defaultAlertingtone flush-play-list play 1 800 425 -13 pause 2 3200 profile call-progress-tone defaultBusytone flush-play-list play 1 400 425 -7 pause 2 400 profile call-progress-tone defaultReleasetone flush-play-list play 1 400 425 -7 pause 2 400 profile call-progress-tone defaultCongestiontone flush-play-list play 1 400 425 -7 pause 2 400 | H25: profile call-progress-tone defaultDialtone flush-play-list play 1 1000 425 -6 profile call-progress-tone defaultAlertingtone flush-play-list play 1 800 425 -13 pause 2 3200 profile call-progress-tone defaultBusytone flush-play-list play 1 400 425 -7 pause 2 400 profile call-progress-tone defaultReleasetone flush-play-list play 1 400 425 -7 pause 2 400 profile call-progress-tone defaultCongestiontone flush-play-list play 1 400 425 -7 pause 2 400 | I25: profile call-progress-tone defaultDialtone flush-play-list play 1 1000 425 -6 profile call-progress-tone defaultAlertingtone flush-play-list play 1 800 425 -13 pause 2 3200 profile call-progress-tone defaultBusytone flush-play-list play 1 400 425 -7 pause 2 400 profile call-progress-tone defaultReleasetone flush-play-list play 1 400 425 -7 pause 2 400 profile call-progress-tone defaultCongestiontone flush-play-list play 1 400 425 -7 pause 2 400
B26: South Africa | C26: Tone_Set_ZA | D26: profile call-progress-tone defaultDialtone flush-play-list play 1 1000 400 -6 profile call-progress-tone defaultAlertingtone flush-play-list play 1 400 400 -13 pause 2 200 play 3 400 400 -13 pause 4 2000 profile call-progress-tone defaultBusytone flush-play-list play 1 500 400 -7 pause 2 500 profile call-progress-tone defaultReleasetone flush-play-list play 1 250 400 -7 pause 2 250 profile call-progress-tone defaultCongestiontone flush-play-list play 1 250 400 -7 pause 2 250 | E26: use profile fxo etsi | F26: use profile fxs etsi | G26: =+SUBSTITUTE(Table2[[#This Row],[Call Progress]],CHAR(10),CONCATENATE(CHAR(13),CHAR(10))) -> profile call-progress-tone defaultDialtone flush-play-list play 1 1000 400 -6 profile call-progress-tone defaultAlertingtone flush-play-list play 1 400 400 -13 pause 2 200 play 3 400 400 -13 pause 4 2000 profile call-progress-tone defaultBusytone flush-play-list play 1 500 400 -7 pause 2 500 profile call-progress-tone defaultReleasetone flush-play-list play 1 250 400 -7 pause 2 250 profile call-progress-tone defaultCongestiontone flush-play-list play 1 250 400 -7 pause 2 250 | H26: profile call-progress-tone defaultDialtone flush-play-list play 1 1000 400 -6 profile call-progress-tone defaultAlertingtone flush-play-list play 1 400 400 -13 pause 2 200 play 3 400 400 -13 pause 4 2000 profile call-progress-tone defaultBusytone flush-play-list play 1 500 400 -7 pause 2 500 profile call-progress-tone defaultReleasetone flush-play-list play 1 250 400 -7 pause 2 250 profile call-progress-tone defaultCongestiontone flush-play-list play 1 250 400 -7 pause 2 250 | I26: profile call-progress-tone defaultDialtone flush-play-list play 1 1000 400 -6 profile call-progress-tone defaultAlertingtone flush-play-list play 1 400 400 -13 pause 2 200 play 3 400 400 -13 pause 4 2000 profile call-progress-tone defaultBusytone flush-play-list play 1 500 400 -7 pause 2 500 profile call-progress-tone defaultReleasetone flush-play-list play 1 250 400 -7 pause 2 250 profile call-progress-tone defaultCongestiontone flush-play-list play 1 250 400 -7 pause 2 250
B27: Spain | C27: Tone_Set_ES | D27: profile call-progress-tone defaultDialtone flush-play-list play 1 1000 425 -6 profile call-progress-tone defaultAlertingtone flush-play-list play 1 1500 425 -13 pause 2 3000 profile call-progress-tone defaultBusytone flush-play-list play 1 200 425 -7 pause 2 200 profile call-progress-tone defaultReleasetone flush-play-list play 1 200 425 -7 pause 2 200 play 3 200 425 -7 pause 4 200 play 5 200 425 -7 pause 6 600 profile call-progress-tone defaultCongestiontone flush-play-list play 1 200 425 -7 pause 2 200 play 3 200 425 -7 pause 4 200 play 5 200 425 -7 pause 6 600 | E27: use profile fxo etsi | F27: use profile fxs etsi | G27: =+SUBSTITUTE(Table2[[#This Row],[Call Progress]],CHAR(10),CONCATENATE(CHAR(13),CHAR(10))) -> profile call-progress-tone defaultDialtone flush-play-list play 1 1000 425 -6 profile call-progress-tone defaultAlertingtone flush-play-list play 1 1500 425 -13 pause 2 3000 profile call-progress-tone defaultBusytone flush-play-list play 1 200 425 -7 pause 2 200 profile call-progress-tone defaultReleasetone flush-play-list play 1 200 425 -7 pause 2 200 play 3 200 425 -7 pause 4 200 play 5 200 425 -7 pause 6 600 profile call-progress-tone defaultCongestiontone flush-play-list play 1 200 425 -7 pause 2 200 play 3 200 425 -7 pause 4 200 play 5 200 425 -7 pause 6 600 | H27: profile call-progress-tone defaultDialtone flush-play-list play 1 1000 425 -6 profile call-progress-tone defaultAlertingtone flush-play-list play 1 1500 425 -13 pause 2 3000 profile call-progress-tone defaultBusytone flush-play-list play 1 200 425 -7 pause 2 200 profile call-progress-tone defaultReleasetone flush-play-list play 1 200 425 -7 pause 2 200 play 3 200 425 -7 pause 4 200 play 5 200 425 -7 pause 6 600 profile call-progress-tone defaultCongestiontone flush-play-list play 1 200 425 -7 pause 2 200 play 3 200 425 -7 pause 4 200 play 5 200 425 -7 pause 6 600 | I27: profile call-progress-tone defaultDialtone flush-play-list play 1 1000 425 -6 profile call-progress-tone defaultAlertingtone flush-play-list play 1 1500 425 -13 pause 2 3000 profile call-progress-tone defaultBusytone flush-play-list play 1 200 425 -7 pause 2 200 profile call-progress-tone defaultReleasetone flush-play-list play 1 200 425 -7 pause 2 200 play 3 200 425 -7 pause 4 200 play 5 200 425 -7 pause 6 600 profile call-progress-tone defaultCongestiontone flush-play-list play 1 200 425 -7 pause 2 200 play 3 200 425 -7 pause 4 200 play 5 200 425 -7 pause 6 600
B28: Sweden | C28: Tone_Set_SE | D28: profile call-progress-tone defaultDialtone flush-play-list play 1 1000 425 -6 profile call-progress-tone defaultAlertingtone flush-play-list play 1 1000 425 -13 pause 2 5000 profile call-progress-tone defaultBusytone flush-play-list play 1 250 425 -7 pause 2 250 profile call-progress-tone defaultReleasetone flush-play-list play 1 250 425 -7 pause 2 750 profile call-progress-tone defaultCongestiontone flush-play-list play 1 250 425 -7 pause 2 750 | E28: use profile fxo etsi | F28: use profile fxs etsi | G28: =+SUBSTITUTE(Table2[[#This Row],[Call Progress]],CHAR(10),CONCATENATE(CHAR(13),CHAR(10))) -> profile call-progress-tone defaultDialtone flush-play-list play 1 1000 425 -6 profile call-progress-tone defaultAlertingtone flush-play-list play 1 1000 425 -13 pause 2 5000 profile call-progress-tone defaultBusytone flush-play-list play 1 250 425 -7 pause 2 250 profile call-progress-tone defaultReleasetone flush-play-list play 1 250 425 -7 pause 2 750 profile call-progress-tone defaultCongestiontone flush-play-list play 1 250 425 -7 pause 2 750 | H28: profile call-progress-tone defaultDialtone flush-play-list play 1 1000 425 -6 profile call-progress-tone defaultAlertingtone flush-play-list play 1 1000 425 -13 pause 2 5000 profile call-progress-tone defaultBusytone flush-play-list play 1 250 425 -7 pause 2 250 profile call-progress-tone defaultReleasetone flush-play-list play 1 250 425 -7 pause 2 750 profile call-progress-tone defaultCongestiontone flush-play-list play 1 250 425 -7 pause 2 750 | I28: profile call-progress-tone defaultDialtone flush-play-list play 1 1000 425 -6 profile call-progress-tone defaultAlertingtone flush-play-list play 1 1000 425 -13 pause 2 5000 profile call-progress-tone defaultBusytone flush-play-list play 1 250 425 -7 pause 2 250 profile call-progress-tone defaultReleasetone flush-play-list play 1 250 425 -7 pause 2 750 profile call-progress-tone defaultCongestiontone flush-play-list play 1 250 425 -7 pause 2 750
B29: Switzerland | C29: Tone_Set_CH | D29: profile call-progress-tone defaultDialtone flush-play-list play 1 1000 425 0 profile call-progress-tone defaultAlertingtone flush-play-list play 1 1000 425 -7 pause 2 4000 profile call-progress-tone defaultBusytone flush-play-list play 1 500 425 -7 pause 2 500 profile call-progress-tone defaultReleasetone flush-play-list play 1 250 425 -7 pause 2 250 profile call-progress-tone defaultCongestiontone flush-play-list play 1 250 425 -7 pause 2 250 | E29: use profile fxo ch | F29: use profile fxs ch | G29: =+SUBSTITUTE(Table2[[#This Row],[Call Progress]],CHAR(10),CONCATENATE(CHAR(13),CHAR(10))) -> profile call-progress-tone defaultDialtone flush-play-list play 1 1000 425 0 profile call-progress-tone defaultAlertingtone flush-play-list play 1 1000 425 -7 pause 2 4000 profile call-progress-tone defaultBusytone flush-play-list play 1 500 425 -7 pause 2 500 profile call-progress-tone defaultReleasetone flush-play-list play 1 250 425 -7 pause 2 250 profile call-progress-tone defaultCongestiontone flush-play-list play 1 250 425 -7 pause 2 250 | H29: profile call-progress-tone defaultDialtone flush-play-list play 1 1000 425 0 profile call-progress-tone defaultAlertingtone flush-play-list play 1 1000 425 -7 pause 2 4000 profile call-progress-tone defaultBusytone flush-play-list play 1 500 425 -7 pause 2 500 profile call-progress-tone defaultReleasetone flush-play-list play 1 250 425 -7 pause 2 250 profile call-progress-tone defaultCongestiontone flush-play-list play 1 250 425 -7 pause 2 250 | I29: profile call-progress-tone defaultDialtone flush-play-list play 1 1000 425 0 profile call-progress-tone defaultAlertingtone flush-play-list play 1 1000 425 -7 pause 2 4000 profile call-progress-tone defaultBusytone flush-play-list play 1 500 425 -7 pause 2 500 profile call-progress-tone defaultReleasetone flush-play-list play 1 250 425 -7 pause 2 250 profile call-progress-tone defaultCongestiontone flush-play-list play 1 250 425 -7 pause 2 250
B30: Turkey | C30: Tone_Set_TR | D30: profile call-progress-tone defaultDialtone flush-play-list play 1 1000 450 -6 profile call-progress-tone defaultAlertingtone flush-play-list play 1 2000 450 -13 pause 2 4000 profile call-progress-tone defaultBusytone flush-play-list play 1 500 450 -7 pause 2 500 profile call-progress-tone defaultReleasetone flush-play-list play 1 200 450 -7 pause 2 200 play 3 200 450 -7 pause 4 200 play 5 200 450 -7 pause 6 200 play 7 600 450 -7 pause 8 200 profile call-progress-tone defaultCongestiontone flush-play-list play 1 200 450 -7 pause 2 200 play 3 200 450 -7 pause 4 200 play 5 200 450 -7 pause 6 200 play 7 600 450 -7 pause 8 200 | E30: use profile fxo etsi | F30: use profile fxs etsi | G30: =+SUBSTITUTE(Table2[[#This Row],[Call Progress]],CHAR(10),CONCATENATE(CHAR(13),CHAR(10))) -> profile call-progress-tone defaultDialtone flush-play-list play 1 1000 450 -6 profile call-progress-tone defaultAlertingtone flush-play-list play 1 2000 450 -13 pause 2 4000 profile call-progress-tone defaultBusytone flush-play-list play 1 500 450 -7 pause 2 500 profile call-progress-tone defaultReleasetone flush-play-list play 1 200 450 -7 pause 2 200 play 3 200 450 -7 pause 4 200 play 5 200 450 -7 pause 6 200 play 7 600 450 -7 pause 8 200 profile call-progress-tone defaultCongestiontone flush-play-list play 1 200 450 -7 pause 2 200 play 3 200 450 -7 pause 4 200 play 5 200 450 -7 pause 6 200 play 7 600 450 -7 pause 8 200 | H30: profile call-progress-tone defaultDialtone flush-play-list play 1 1000 450 -6 profile call-progress-tone defaultAlertingtone flush-play-list play 1 2000 450 -13 pause 2 4000 profile call-progress-tone defaultBusytone flush-play-list play 1 500 450 -7 pause 2 500 profile call-progress-tone defaultReleasetone flush-play-list play 1 200 450 -7 pause 2 200 play 3 200 450 -7 pause 4 200 play 5 200 450 -7 pause 6 200 play 7 600 450 -7 pause 8 200 profile call-progress-tone defaultCongestiontone flush-play-list play 1 200 450 -7 pause 2 200 play 3 200 450 -7 pause 4 200 play 5 200 450 -7 pause 6 200 play 7 600 450 -7 pause 8 200 | I30: profile call-progress-tone defaultDialtone flush-play-list play 1 1000 450 -6 profile call-progress-tone defaultAlertingtone flush-play-list play 1 2000 450 -13 pause 2 4000 profile call-progress-tone defaultBusytone flush-play-list play 1 500 450 -7 pause 2 500 profile call-progress-tone defaultReleasetone flush-play-list play 1 200 450 -7 pause 2 200 play 3 200 450 -7 pause 4 200 play 5 200 450 -7 pause 6 200 play 7 600 450 -7 pause 8 200 profile call-progress-tone defaultCongestiontone flush-play-list play 1 200 450 -7 pause 2 200 play 3 200 450 -7 pause 4 200 play 5 200 450 -7 pause 6 200 play 7 600 450 -7 pause 8 200
B31: United Kindom | C31: Tone_Set_UK | D31: profile call-progress-tone defaultDialtone flush-play-list play 1 1000 350 -13 440 -13 profile call-progress-tone defaultAlertingtone flush-play-list play 1 400 400 -19 450 -19 pause 2 200 play 3 400 400 -19 450 -19 pause 4 2000 profile call-progress-tone defaultBusytone flush-play-list play 1 375 400 -24 pause 2 375 profile call-progress-tone defaultReleasetone flush-play-list play 1 400 400 -24 pause 2 350 play 3 225 400 -24 pause 4 525 profile call-progress-tone defaultCongestiontone flush-play-list play 1 400 400 -24 pause 2 350 play 3 225 400 -24 pause 4 525 | E31: use profile fxo gb | F31: use profile fxs gb | G31: =+SUBSTITUTE(Table2[[#This Row],[Call Progress]],CHAR(10),CONCATENATE(CHAR(13),CHAR(10))) -> profile call-progress-tone defaultDialtone flush-play-list play 1 1000 350 -13 440 -13 profile call-progress-tone defaultAlertingtone flush-play-list play 1 400 400 -19 450 -19 pause 2 200 play 3 400 400 -19 450 -19 pause 4 2000 profile call-progress-tone defaultBusytone flush-play-list play 1 375 400 -24 pause 2 375 profile call-progress-tone defaultReleasetone flush-play-list play 1 400 400 -24 pause 2 350 play 3 225 400 -24 pause 4 525 profile call-progress-tone defaultCongestiontone flush-play-list play 1 400 400 -24 pause 2 350 play 3 225 400 -24 pause 4 525 | H31: profile call-progress-tone defaultDialtone flush-play-list play 1 1000 350 -13 440 -13 profile call-progress-tone defaultAlertingtone flush-play-list play 1 400 400 -19 450 -19 pause 2 200 play 3 400 400 -19 450 -19 pause 4 2000 profile call-progress-tone defaultBusytone flush-play-list play 1 375 400 -24 pause 2 375 profile call-progress-tone defaultReleasetone flush-play-list play 1 400 400 -24 pause 2 350 play 3 225 400 -24 pause 4 525 profile call-progress-tone defaultCongestiontone flush-play-list play 1 400 400 -24 pause 2 350 play 3 225 400 -24 pause 4 525 | I31: profile call-progress-tone defaultDialtone flush-play-list play 1 1000 350 -13 440 -13 profile call-progress-tone defaultAlertingtone flush-play-list play 1 400 400 -19 450 -19 pause 2 200 play 3 400 400 -19 450 -19 pause 4 2000 profile call-progress-tone defaultBusytone flush-play-list play 1 375 400 -24 pause 2 375 profile call-progress-tone defaultReleasetone flush-play-list play 1 400 400 -24 pause 2 350 play 3 225 400 -24 pause 4 525 profile call-progress-tone defaultCongestiontone flush-play-list play 1 400 400 -24 pause 2 350 play 3 225 400 -24 pause 4 525
B32: United States | C32: Tone_Set_US | D32: profile call-progress-tone defaultDialtone flush-play-list play 1 1000 350 -13 440 -13 profile call-progress-tone defaultAlertingtone flush-play-list play 1 1000 440 -19 480 -19 pause 2 3000 profile call-progress-tone defaultBusytone flush-play-list play 1 500 480 -24 620 -24 pause 2 500 profile call-progress-tone defaultReleasetone flush-play-list play 1 250 480 -24 620 -24 pause 2 250 profile call-progress-tone defaultCongestiontone flush-play-list play 1 250 480 -24 620 -24 pause 2 250 | E32: use profile fxo us | F32: use profile fxs us | G32: =+SUBSTITUTE(Table2[[#This Row],[Call Progress]],CHAR(10),CONCATENATE(CHAR(13),CHAR(10))) -> profile call-progress-tone defaultDialtone flush-play-list play 1 1000 350 -13 440 -13 profile call-progress-tone defaultAlertingtone flush-play-list play 1 1000 440 -19 480 -19 pause 2 3000 profile call-progress-tone defaultBusytone flush-play-list play 1 500 480 -24 620 -24 pause 2 500 profile call-progress-tone defaultReleasetone flush-play-list play 1 250 480 -24 620 -24 pause 2 250 profile call-progress-tone defaultCongestiontone flush-play-list play 1 250 480 -24 620 -24 pause 2 250 | H32: profile call-progress-tone defaultDialtone flush-play-list play 1 1000 350 -13 440 -13 profile call-progress-tone defaultAlertingtone flush-play-list play 1 1000 440 -19 480 -19 pause 2 3000 profile call-progress-tone defaultBusytone flush-play-list play 1 500 480 -24 620 -24 pause 2 500 profile call-progress-tone defaultReleasetone flush-play-list play 1 250 480 -24 620 -24 pause 2 250 profile call-progress-tone defaultCongestiontone flush-play-list play 1 250 480 -24 620 -24 pause 2 250 | I32: profile call-progress-tone defaultDialtone flush-play-list play 1 1000 350 -13 440 -13 profile call-progress-tone defaultAlertingtone flush-play-list play 1 1000 440 -19 480 -19 pause 2 3000 profile call-progress-tone defaultBusytone flush-play-list play 1 500 480 -24 620 -24 pause 2 500 profile call-progress-tone defaultReleasetone flush-play-list play 1 250 480 -24 620 -24 pause 2 250 profile call-progress-tone defaultCongestiontone flush-play-list play 1 250 480 -24 620 -24 pause 2 250

Sheet Generic (hidden)
A1: LINE # | B1: DISCARD (#) | C1: COMMAND | D1: Column1
A2: 1 | C2: ####################################################################################
A3: 2 | C3: =+CONCATENATE("# Configuration file for SmartNode with: ",Data!C5," FXO and ", Data!C6," FXS") -> # Configuration file for SmartNode with: 12 FXO and 0 FXS
A4: 3 | B4: =+IF(Data!$C$5>ROW(Generic!B4)-ROW(Generic!$B$477),"","#") ->  | C4: =+IF(Data!C7="Y","# With 2 ethernet ports","# With one ethernet port") -> # With one ethernet port
A5: 4 | B5: =+IF(Data!$C$5>ROW(Generic!B5)-ROW(Generic!$B$477),"","#") ->  | C5: =+CONCATENATE("# Configuration file name is ",Data!C11) -> # Configuration file name is PattonSample
A6: 5 | B6: =+IF(Data!$C$5>ROW(Generic!B6)-ROW(Generic!$B$477),"","#") ->  | C6: # Generic IPPBX
A7: 6 | B7: =+IF(Data!$C$5>ROW(Generic!B7)-ROW(Generic!$B$477),"","#") ->  | C7: ####################################################################################
A8: 7 | B8: =+IF(Data!$C$5>ROW(Generic!B8)-ROW(Generic!$B$477),"","#") ->  | C8: =+CONCATENATE("# ",Data!B14," ",Data!C14) -> # LAN Interface Data
A9: 8 | B9: =+IF(Data!$C$5>ROW(Generic!B9)-ROW(Generic!$B$477),"","#") ->  | C9: =+CONCATENATE("# ",Data!B15," ",Data!C15) -> # IP Address 10.10.1.10
A10: 9 | B10: =+IF(Data!$C$5>ROW(Generic!B10)-ROW(Generic!$B$477),"","#") ->  | C10: =+CONCATENATE("# ",Data!B16," ",Data!C16) -> # IP Mask 255.255.255.0
A11: 10 | B11: =+IF(Data!$C$5>ROW(Generic!B11)-ROW(Generic!$B$477),"","#") ->  | C11: ####################################################################################
A12: 11 | B12: =+IF(Data!$C$5>ROW(Generic!B12)-ROW(Generic!$B$477),"","#") ->  | C12: =+CONCATENATE("# ",Data!B18," ",Data!C18) -> # WAN Interface Data
A13: 12 | B13: =+IF(Data!$C$5>ROW(Generic!B13)-ROW(Generic!$B$477),"","#") ->  | C13: =+CONCATENATE("# ",Data!B19," ",Data!C19) -> # IP Address dhcp
A14: 13 | B14: =+IF(Data!$C$5>ROW(Generic!B14)-ROW(Generic!$B$477),"","#") ->  | C14: =+CONCATENATE("# ",Data!B20," ",Data!C20) -> # IP Mask
A15: 14 | B15: =+IF(Data!$C$5>ROW(Generic!B15)-ROW(Generic!$B$477),"","#") ->  | C15: ####################################################################################
A16: 15 | B16: =+IF(Data!$C$5>ROW(Generic!B16)-ROW(Generic!$B$477),"","#") ->  | C16: =+CONCATENATE("# ",Data!B22," ",Data!C22) -> # Default Gateway
A17: 16 | B17: =+IF(Data!$C$5>ROW(Generic!B17)-ROW(Generic!$B$477),"","#") ->  | C17: ####################################################################################
A18: 17 | B18: =+IF(Data!$C$5>ROW(Generic!B18)-ROW(Generic!$B$477),"","#") ->  | C18: =+CONCATENATE("# ",Data!B23," ",Data!C23) -> # IP-PBX/SIP PROXY DATA
A19: 18 | B19: =+IF(Data!$C$5>ROW(Generic!B19)-ROW(Generic!$B$477),"","#") ->  | C19: =+CONCATENATE("# ",Data!B24," ",Data!C24) -> # IP-PBX Ip Address / Name / Domain 10.10.50.23
A20: 19 | B20: =+IF(Data!$C$5>ROW(Generic!B20)-ROW(Generic!$B$477),"","#") ->  | C20: =+CONCATENATE("# ",Data!B25," ",Data!C25) -> # IP-PBX SIP Port 5060
A21: 20 | B21: =+IF(Data!$C$5>ROW(Generic!B21)-ROW(Generic!$B$477),"","#") ->  | C21: ####################################################################################
A22: 21 | B22: =+IF(Data!$C$5>ROW(Generic!B22)-ROW(Generic!$B$477),"","#") ->  | C22: =+CONCATENATE("# ",Data!B27," ",Data!C27) -> # LOCALIZATION DATA
A23: 22 | B23: =+IF(Data!$C$5>ROW(Generic!B23)-ROW(Generic!$B$477),"","#") ->  | C23: =+CONCATENATE("# ",Data!B28," ",Data!C28) -> # Country United States
A24: 23 | B24: =+IF(Data!$C$5>ROW(Generic!B24)-ROW(Generic!$B$477),"","#") ->  | C24: ####################################################################################
A25: 24 | C25: # Supported firmware versions R5.x
A26: 25 | B26: =+IF(Data!$C$5>ROW(Generic!B26)-ROW(Generic!$B$477),"","#") ->  | C26: =+CONCATENATE("# Tool version ",Data!$C$4) -> # Tool version V2_1 06222011
A27: 26 | C27: # Adapted: Ernesto Casas
A28: 27 | C28: # for comments, feedback or suggestions please send an email to: ecasas@patton.com
A29: 28 | C29: ####################################################################################
A30: 29
A31: 30 | C31: webserver port 80 language en
A32: 31 | C32: =+CONCATENATE("sntp-client server ",Data!C9) -> sntp-client server 1.1.1.1
A33: 32 | B33: =+IF(Data!C10="","#","") ->  | C33: =+CONCATENATE("dns-client server ",Data!C10) -> dns-client server 8.8.8.8
A34: 33
A35: 34 | C35: system
A36: 35 | C36: ic voice 0
A37: 36 | C37: low-bitrate-codec g729
A38: 37 | C38: profile ppp default
A39: 38
A40: 39 | B40: =+IF(Data!$C$5>ROW(Generic!B40)-ROW(Generic!$B$477),"","#") ->  | C40: =+CONCATENATE("# Call Progress tones based on country selection. Your selected country is: ",Data!$C$28) -> # Call Progress tones based on country selection. Your selected country is: United States
A41: 40
A42: 41 | C42: =+Data!$C$30 -> profile call-progress-tone defaultDialtone flush-play-list play 1 1000 350 -13 440 -13 profile call-progress-tone defaultAlertingtone flush-play-list play 1 1000 440 -19 480 -19 pause 2 3000 profile call-progress-tone defaultBusytone flush-play-list play 1 500 480 -24 620 -24 pause 2 500 profile call-progress-tone defaultReleasetone flush-play-list play 1 250 480 -24 620 -24 pause 2 250 profile call-progress-tone defaultCongestiontone flush-play-list play 1 250 480 -24 620 -24 pause 2 250
A43: 42 | B43: =+IF(Data!$C$5>ROW(Generic!B43)-ROW(Generic!$B$477),"","#") -> 
A44: 43 | C44: profile tone-set default
A45: 44 | C45: profile voip default
A46: 45 | C46: codec 1 g711alaw64k rx-length 20 tx-length 20
A47: 46 | C47: codec 2 g711ulaw64k rx-length 20 tx-length 20
A48: 47 | C48: fax transmission 1 relay t38-udp
A49: 48 | C49: fax transmission 2 bypass g711alaw64k
A50: 49 | C50: profile pstn default
A51: 50 | C51: profile sip default
A52: 51 | C52: profile aaa default
A53: 52 | C53: method 1 local
A54: 53 | C54: method 2 none
A55: 54
A56: 55 | C56: context ip router
A57: 56 | C57: interface IF_IP_LAN
A58: 57 | C58: =+CONCATENATE(" ipaddress ",Data!C15," ",Data!C16) -> ipaddress 10.10.1.10 255.255.255.0
A59: 58 | C59: tcp adjust-mss rx mtu
A60: 59 | C60: tcp adjust-mss tx mtu
A61: 60
A62: 61 | C62: interface IF_IP_WAN
A63: 62 | C63: =+CONCATENATE(" ipaddress ",Data!C19," ",Data!C20) -> ipaddress dhcp
A64: 63 | C64: tcp adjust-mss rx mtu
A65: 64 | C65: tcp adjust-mss tx mtu
A66: 65
A67: 66 | C67: context ip router
A68: 67 | C68: =+CONCATENATE(" route 0.0.0.0 0.0.0.0 ",Data!C22) -> route 0.0.0.0 0.0.0.0
A69: 68 | C69: context cs switch
A70: 69 | C70: =+IF(Data!C38=""," no digit-collection timeout",+CONCATENATE(" digit-collection timeout ",Data!C38)) -> digit-collection timeout 2
A71: 70
A72: 71 | B72: =+IF(Data!$C$6>0," ","#") -> # | C72: routing-table called-e164 RT_DIGITCOLLECTION
A73: 72 | B73: =+IF(Data!$C$6>0," ","#") -> # | C73: route .T dest-interface IF_SIP_PBX MT_EXT_TO_NAME
A74: 73
A75: 74 | B75: =+IF(Data!$C$6>0," ","#") -> # | C75: routing-table called-e164 RT_TO_FXS
A76: 75 | B76: =+IF(Data!$C$6>ROW(Generic!B76)-ROW(Generic!$B$76),"","#") -> # | C76: =+CONCATENATE(" route ",'Extension Table'!A2," dest-interface IF_FXS_",'Extension Table'!C2) -> route 101 dest-interface IF_FXS_1
A77: 76 | B77: =+IF(Data!$C$6>ROW(Generic!B77)-ROW(Generic!$B$76),"","#") -> # | C77: =+CONCATENATE(" route ",'Extension Table'!A3," dest-interface IF_FXS_",'Extension Table'!C3) -> route 102 dest-interface IF_FXS_2
A78: 77 | B78: =+IF(Data!$C$6>ROW(Generic!B78)-ROW(Generic!$B$76),"","#") -> # | C78: =+CONCATENATE(" route ",'Extension Table'!A4," dest-interface IF_FXS_",'Extension Table'!C4) -> route 103 dest-interface IF_FXS_3
A79: 78 | B79: =+IF(Data!$C$6>ROW(Generic!B79)-ROW(Generic!$B$76),"","#") -> # | C79: =+CONCATENATE(" route ",'Extension Table'!A5," dest-interface IF_FXS_",'Extension Table'!C5) -> route 104 dest-interface IF_FXS_4
A80: 79 | B80: =+IF(Data!$C$6>ROW(Generic!B80)-ROW(Generic!$B$76),"","#") -> # | C80: =+CONCATENATE(" route ",'Extension Table'!A6," dest-interface IF_FXS_",'Extension Table'!C6) -> route 105 dest-interface IF_FXS_5
A81: 80 | B81: =+IF(Data!$C$6>ROW(Generic!B81)-ROW(Generic!$B$76),"","#") -> # | C81: =+CONCATENATE(" route ",'Extension Table'!A7," dest-interface IF_FXS_",'Extension Table'!C7) -> route 106 dest-interface IF_FXS_6
A82: 81 | B82: =+IF(Data!$C$6>ROW(Generic!B82)-ROW(Generic!$B$76),"","#") -> # | C82: =+CONCATENATE(" route ",'Extension Table'!A8," dest-interface IF_FXS_",'Extension Table'!C8) -> route 107 dest-interface IF_FXS_7
A83: 82 | B83: =+IF(Data!$C$6>ROW(Generic!B83)-ROW(Generic!$B$76),"","#") -> # | C83: =+CONCATENATE(" route ",'Extension Table'!A9," dest-interface IF_FXS_",'Extension Table'!C9) -> route 108 dest-interface IF_FXS_8
A84: 83 | B84: =+IF(Data!$C$6>ROW(Generic!B84)-ROW(Generic!$B$76),"","#") -> # | C84: =+CONCATENATE(" route ",'Extension Table'!A10," dest-interface IF_FXS_",'Extension Table'!C10) -> route 109 dest-interface IF_FXS_9
A85: 84 | B85: =+IF(Data!$C$6>ROW(Generic!B85)-ROW(Generic!$B$76),"","#") -> # | C85: =+CONCATENATE(" route ",'Extension Table'!A11," dest-interface IF_FXS_",'Extension Table'!C11) -> route 110 dest-interface IF_FXS_10
A86: 85 | B86: =+IF(Data!$C$6>ROW(Generic!B86)-ROW(Generic!$B$76),"","#") -> # | C86: =+CONCATENATE(" route ",'Extension Table'!A12," dest-interface IF_FXS_",'Extension Table'!C12) -> route 111 dest-interface IF_FXS_11
A87: 86 | B87: =+IF(Data!$C$6>ROW(Generic!B87)-ROW(Generic!$B$76),"","#") -> # | C87: =+CONCATENATE(" route ",'Extension Table'!A13," dest-interface IF_FXS_",'Extension Table'!C13) -> route 112 dest-interface IF_FXS_12
A88: 87 | B88: =+IF(Data!$C$6>ROW(Generic!B88)-ROW(Generic!$B$76),"","#") -> # | C88: =+CONCATENATE(" route ",'Extension Table'!A14," dest-interface IF_FXS_",'Extension Table'!C14) -> route 113 dest-interface IF_FXS_13
A89: 88 | B89: =+IF(Data!$C$6>ROW(Generic!B89)-ROW(Generic!$B$76),"","#") -> # | C89: =+CONCATENATE(" route ",'Extension Table'!A15," dest-interface IF_FXS_",'Extension Table'!C15) -> route 114 dest-interface IF_FXS_14
A90: 89 | B90: =+IF(Data!$C$6>ROW(Generic!B90)-ROW(Generic!$B$76),"","#") -> # | C90: =+CONCATENATE(" route ",'Extension Table'!A16," dest-interface IF_FXS_",'Extension Table'!C16) -> route 115 dest-interface IF_FXS_15
A91: 90 | B91: =+IF(Data!$C$6>ROW(Generic!B91)-ROW(Generic!$B$76),"","#") -> # | C91: =+CONCATENATE(" route ",'Extension Table'!A17," dest-interface IF_FXS_",'Extension Table'!C17) -> route 116 dest-interface IF_FXS_16
A92: 91 | B92: =+IF(Data!$C$6>ROW(Generic!B92)-ROW(Generic!$B$76),"","#") -> # | C92: =+CONCATENATE(" route ",'Extension Table'!A18," dest-interface IF_FXS_",'Extension Table'!C18) -> route 117 dest-interface IF_FXS_17
A93: 92 | B93: =+IF(Data!$C$6>ROW(Generic!B93)-ROW(Generic!$B$76),"","#") -> # | C93: =+CONCATENATE(" route ",'Extension Table'!A19," dest-interface IF_FXS_",'Extension Table'!C19) -> route 118 dest-interface IF_FXS_18
A94: 93 | B94: =+IF(Data!$C$6>ROW(Generic!B94)-ROW(Generic!$B$76),"","#") -> # | C94: =+CONCATENATE(" route ",'Extension Table'!A20," dest-interface IF_FXS_",'Extension Table'!C20) -> route 119 dest-interface IF_FXS_19
A95: 94 | B95: =+IF(Data!$C$6>ROW(Generic!B95)-ROW(Generic!$B$76),"","#") -> # | C95: =+CONCATENATE(" route ",'Extension Table'!A21," dest-interface IF_FXS_",'Extension Table'!C21) -> route 120 dest-interface IF_FXS_20
A96: 95 | B96: =+IF(Data!$C$6>ROW(Generic!B96)-ROW(Generic!$B$76),"","#") -> # | C96: =+CONCATENATE(" route ",'Extension Table'!A22," dest-interface IF_FXS_",'Extension Table'!C22) -> route 121 dest-interface IF_FXS_21
A97: 96 | B97: =+IF(Data!$C$6>ROW(Generic!B97)-ROW(Generic!$B$76),"","#") -> # | C97: =+CONCATENATE(" route ",'Extension Table'!A23," dest-interface IF_FXS_",'Extension Table'!C23) -> route 122 dest-interface IF_FXS_22
A98: 97 | B98: =+IF(Data!$C$6>ROW(Generic!B98)-ROW(Generic!$B$76),"","#") -> # | C98: =+CONCATENATE(" route ",'Extension Table'!A24," dest-interface IF_FXS_",'Extension Table'!C24) -> route 123 dest-interface IF_FXS_23
A99: 98 | B99: =+IF(Data!$C$6>ROW(Generic!B99)-ROW(Generic!$B$76),"","#") -> # | C99: =+CONCATENATE(" route ",'Extension Table'!A25," dest-interface IF_FXS_",'Extension Table'!C25) -> route 124 dest-interface IF_FXS_24
A100: 99 | B100: =+IF(Data!$C$6>ROW(Generic!B100)-ROW(Generic!$B$76),"","#") -> # | C100: =+CONCATENATE(" route ",'Extension Table'!A26," dest-interface IF_FXS_",'Extension Table'!C26) -> route 125 dest-interface IF_FXS_25
A101: 100 | B101: =+IF(Data!$C$6>ROW(Generic!B101)-ROW(Generic!$B$76),"","#") -> # | C101: =+CONCATENATE(" route ",'Extension Table'!A27," dest-interface IF_FXS_",'Extension Table'!C27) -> route 126 dest-interface IF_FXS_26
A102: 101 | B102: =+IF(Data!$C$6>ROW(Generic!B102)-ROW(Generic!$B$76),"","#") -> # | C102: =+CONCATENATE(" route ",'Extension Table'!A28," dest-interface IF_FXS_",'Extension Table'!C28) -> route 127 dest-interface IF_FXS_27
A103: 102 | B103: =+IF(Data!$C$6>ROW(Generic!B103)-ROW(Generic!$B$76),"","#") -> # | C103: =+CONCATENATE(" route ",'Extension Table'!A29," dest-interface IF_FXS_",'Extension Table'!C29) -> route 128 dest-interface IF_FXS_28
A104: 103 | B104: =+IF(Data!$C$6>ROW(Generic!B104)-ROW(Generic!$B$76),"","#") -> # | C104: =+CONCATENATE(" route ",'Extension Table'!A30," dest-interface IF_FXS_",'Extension Table'!C30) -> route 129 dest-interface IF_FXS_29
A105: 104 | B105: =+IF(Data!$C$6>ROW(Generic!B105)-ROW(Generic!$B$76),"","#") -> # | C105: =+CONCATENATE(" route ",'Extension Table'!A31," dest-interface IF_FXS_",'Extension Table'!C31) -> route 130 dest-interface IF_FXS_30
A106: 105 | B106: =+IF(Data!$C$6>ROW(Generic!B106)-ROW(Generic!$B$76),"","#") -> # | C106: =+CONCATENATE(" route ",'Extension Table'!A32," dest-interface IF_FXS_",'Extension Table'!C32) -> route 131 dest-interface IF_FXS_31
A107: 106 | B107: =+IF(Data!$C$6>ROW(Generic!B107)-ROW(Generic!$B$76),"","#") -> # | C107: =+CONCATENATE(" route ",'Extension Table'!A33," dest-interface IF_FXS_",'Extension Table'!C33) -> route 132 dest-interface IF_FXS_32
A108: 107
A109: 108 | B109: =+IF(Data!$C$6>0," ","#") -> # | C109: mapping-table calling-e164 to calling-name MT_EXT_TO_NAME
A110: 109 | B110: =+IF(Data!$C$6>ROW(Generic!B110)-ROW(Generic!$B$110),"","#") -> # | C110: =+CONCATENATE(" map ",'Extension Table'!A2," to """,'Extension Table'!D2," ",'Extension Table'!E2,"""") -> map 101 to "Fname user 1 Lname user 1"
A111: 110 | B111: =+IF(Data!$C$6>ROW(Generic!B111)-ROW(Generic!$B$110),"","#") -> # | C111: =+CONCATENATE(" map ",'Extension Table'!A3," to """,'Extension Table'!D3," ",'Extension Table'!E3,"""") -> map 102 to "Fname user 2 Lname user 2"
A112: 111 | B112: =+IF(Data!$C$6>ROW(Generic!B112)-ROW(Generic!$B$110),"","#") -> # | C112: =+CONCATENATE(" map ",'Extension Table'!A4," to """,'Extension Table'!D4," ",'Extension Table'!E4,"""") -> map 103 to " "
A113: 112 | B113: =+IF(Data!$C$6>ROW(Generic!B113)-ROW(Generic!$B$110),"","#") -> # | C113: =+CONCATENATE(" map ",'Extension Table'!A5," to """,'Extension Table'!D5," ",'Extension Table'!E5,"""") -> map 104 to " "
A114: 113 | B114: =+IF(Data!$C$6>ROW(Generic!B114)-ROW(Generic!$B$110),"","#") -> # | C114: =+CONCATENATE(" map ",'Extension Table'!A6," to """,'Extension Table'!D6," ",'Extension Table'!E6,"""") -> map 105 to " "
A115: 114 | B115: =+IF(Data!$C$6>ROW(Generic!B115)-ROW(Generic!$B$110),"","#") -> # | C115: =+CONCATENATE(" map ",'Extension Table'!A7," to """,'Extension Table'!D7," ",'Extension Table'!E7,"""") -> map 106 to " "
A116: 115 | B116: =+IF(Data!$C$6>ROW(Generic!B116)-ROW(Generic!$B$110),"","#") -> # | C116: =+CONCATENATE(" map ",'Extension Table'!A8," to """,'Extension Table'!D8," ",'Extension Table'!E8,"""") -> map 107 to " "
A117: 116 | B117: =+IF(Data!$C$6>ROW(Generic!B117)-ROW(Generic!$B$110),"","#") -> # | C117: =+CONCATENATE(" map ",'Extension Table'!A9," to """,'Extension Table'!D9," ",'Extension Table'!E9,"""") -> map 108 to " "
A118: 117 | B118: =+IF(Data!$C$6>ROW(Generic!B118)-ROW(Generic!$B$110),"","#") -> # | C118: =+CONCATENATE(" map ",'Extension Table'!A10," to """,'Extension Table'!D10," ",'Extension Table'!E10,"""") -> map 109 to " "
A119: 118 | B119: =+IF(Data!$C$6>ROW(Generic!B119)-ROW(Generic!$B$110),"","#") -> # | C119: =+CONCATENATE(" map ",'Extension Table'!A11," to """,'Extension Table'!D11," ",'Extension Table'!E11,"""") -> map 110 to " "
A120: 119 | B120: =+IF(Data!$C$6>ROW(Generic!B120)-ROW(Generic!$B$110),"","#") -> # | C120: =+CONCATENATE(" map ",'Extension Table'!A12," to """,'Extension Table'!D12," ",'Extension Table'!E12,"""") -> map 111 to " "
A121: 120 | B121: =+IF(Data!$C$6>ROW(Generic!B121)-ROW(Generic!$B$110),"","#") -> # | C121: =+CONCATENATE(" map ",'Extension Table'!A13," to """,'Extension Table'!D13," ",'Extension Table'!E13,"""") -> map 112 to " "
A122: 121 | B122: =+IF(Data!$C$6>ROW(Generic!B122)-ROW(Generic!$B$110),"","#") -> # | C122: =+CONCATENATE(" map ",'Extension Table'!A14," to """,'Extension Table'!D14," ",'Extension Table'!E14,"""") -> map 113 to " "
A123: 122 | B123: =+IF(Data!$C$6>ROW(Generic!B123)-ROW(Generic!$B$110),"","#") -> # | C123: =+CONCATENATE(" map ",'Extension Table'!A15," to """,'Extension Table'!D15," ",'Extension Table'!E15,"""") -> map 114 to " "
A124: 123 | B124: =+IF(Data!$C$6>ROW(Generic!B124)-ROW(Generic!$B$110),"","#") -> # | C124: =+CONCATENATE(" map ",'Extension Table'!A16," to """,'Extension Table'!D16," ",'Extension Table'!E16,"""") -> map 115 to " "
A125: 124 | B125: =+IF(Data!$C$6>ROW(Generic!B125)-ROW(Generic!$B$110),"","#") -> # | C125: =+CONCATENATE(" map ",'Extension Table'!A17," to """,'Extension Table'!D17," ",'Extension Table'!E17,"""") -> map 116 to " "
A126: 125 | B126: =+IF(Data!$C$6>ROW(Generic!B126)-ROW(Generic!$B$110),"","#") -> # | C126: =+CONCATENATE(" map ",'Extension Table'!A18," to """,'Extension Table'!D18," ",'Extension Table'!E18,"""") -> map 117 to " "
A127: 126 | B127: =+IF(Data!$C$6>ROW(Generic!B127)-ROW(Generic!$B$110),"","#") -> # | C127: =+CONCATENATE(" map ",'Extension Table'!A19," to """,'Extension Table'!D19," ",'Extension Table'!E19,"""") -> map 118 to " "
A128: 127 | B128: =+IF(Data!$C$6>ROW(Generic!B128)-ROW(Generic!$B$110),"","#") -> # | C128: =+CONCATENATE(" map ",'Extension Table'!A20," to """,'Extension Table'!D20," ",'Extension Table'!E20,"""") -> map 119 to " "
A129: 128 | B129: =+IF(Data!$C$6>ROW(Generic!B129)-ROW(Generic!$B$110),"","#") -> # | C129: =+CONCATENATE(" map ",'Extension Table'!A21," to """,'Extension Table'!D21," ",'Extension Table'!E21,"""") -> map 120 to " "
A130: 129 | B130: =+IF(Data!$C$6>ROW(Generic!B130)-ROW(Generic!$B$110),"","#") -> # | C130: =+CONCATENATE(" map ",'Extension Table'!A22," to """,'Extension Table'!D22," ",'Extension Table'!E22,"""") -> map 121 to " "
A131: 130 | B131: =+IF(Data!$C$6>ROW(Generic!B131)-ROW(Generic!$B$110),"","#") -> # | C131: =+CONCATENATE(" map ",'Extension Table'!A23," to """,'Extension Table'!D23," ",'Extension Table'!E23,"""") -> map 122 to " "
A132: 131 | B132: =+IF(Data!$C$6>ROW(Generic!B132)-ROW(Generic!$B$110),"","#") -> # | C132: =+CONCATENATE(" map ",'Extension Table'!A24," to """,'Extension Table'!D24," ",'Extension Table'!E24,"""") -> map 123 to " "
A133: 132 | B133: =+IF(Data!$C$6>ROW(Generic!B133)-ROW(Generic!$B$110),"","#") -> # | C133: =+CONCATENATE(" map ",'Extension Table'!A25," to """,'Extension Table'!D25," ",'Extension Table'!E25,"""") -> map 124 to " "
A134: 133 | B134: =+IF(Data!$C$6>ROW(Generic!B134)-ROW(Generic!$B$110),"","#") -> # | C134: =+CONCATENATE(" map ",'Extension Table'!A26," to """,'Extension Table'!D26," ",'Extension Table'!E26,"""") -> map 125 to " "
A135: 134 | B135: =+IF(Data!$C$6>ROW(Generic!B135)-ROW(Generic!$B$110),"","#") -> # | C135: =+CONCATENATE(" map ",'Extension Table'!A27," to """,'Extension Table'!D27," ",'Extension Table'!E27,"""") -> map 126 to " "
A136: 135 | B136: =+IF(Data!$C$6>ROW(Generic!B136)-ROW(Generic!$B$110),"","#") -> # | C136: =+CONCATENATE(" map ",'Extension Table'!A28," to """,'Extension Table'!D28," ",'Extension Table'!E28,"""") -> map 127 to " "
A137: 136 | B137: =+IF(Data!$C$6>ROW(Generic!B137)-ROW(Generic!$B$110),"","#") -> # | C137: =+CONCATENATE(" map ",'Extension Table'!A29," to """,'Extension Table'!D29," ",'Extension Table'!E29,"""") -> map 128 to " "
A138: 137 | B138: =+IF(Data!$C$6>ROW(Generic!B138)-ROW(Generic!$B$110),"","#") -> # | C138: =+CONCATENATE(" map ",'Extension Table'!A30," to """,'Extension Table'!D30," ",'Extension Table'!E30,"""") -> map 129 to " "
A139: 138 | B139: =+IF(Data!$C$6>ROW(Generic!B139)-ROW(Generic!$B$110),"","#") -> # | C139: =+CONCATENATE(" map ",'Extension Table'!A31," to """,'Extension Table'!D31," ",'Extension Table'!E31,"""") -> map 130 to " "
A140: 139 | B140: =+IF(Data!$C$6>ROW(Generic!B140)-ROW(Generic!$B$110),"","#") -> # | C140: =+CONCATENATE(" map ",'Extension Table'!A32," to """,'Extension Table'!D32," ",'Extension Table'!E32,"""") -> map 131 to " "
A141: 140 | B141: =+IF(Data!$C$6>ROW(Generic!B141)-ROW(Generic!$B$110),"","#") -> # | C141: =+CONCATENATE(" map ",'Extension Table'!A33," to """,'Extension Table'!D33," ",'Extension Table'!E33,"""") -> map 132 to " "
A142: 141
A143: 142 | B143: =+IF(Data!$C$5>ROW(Generic!B143)-ROW(Generic!$B$143),"","#") ->  | C143: =+CONCATENATE(" interface sip IF_SIP_",'Line Table'!A2,CHAR(13),CHAR(10),," bind context sip-gateway GW_SIP_",'Line Table'!A2,CHAR(13),CHAR(10),," ",+'Line Table'!C2,CHAR(13),CHAR(10),," early-disconnect",CHAR(13),CHAR(10),," route call dest-interface IF_FXO_",'Line Table'!A2,CHAR(13),CHAR(10),," remote ",Data!$C$24," ",Data!$C$25,CHAR(13),CHAR(10),," address-translation outgoing-call request-uri user-part fix ",'Line Table'!B2," host-part to-header target-param none",CHAR(13),CHAR(10),," address-translation incoming-call called-e164 request-uri",CHAR(13),CHAR(10),,CHAR(13),CHAR(10),) -> interface sip IF_SIP_1 bind context sip-gateway GW_SIP_1 early-connect early-disconnect route call dest-interface IF_FXO_1 remote 10.10.50.23 5060 address-translation outgoing-call request-uri user-part fix 10002 host-part to-header target-param none address-translation incoming-call called-e164 request-uri
A144: 143 | B144: =+IF(Data!$C$5>ROW(Generic!B144)-ROW(Generic!$B$143),"","#") ->  | C144: =+CONCATENATE(" interface sip IF_SIP_",'Line Table'!A3,CHAR(13),CHAR(10),," bind context sip-gateway GW_SIP_",'Line Table'!A3,CHAR(13),CHAR(10),," ",+'Line Table'!C3,CHAR(13),CHAR(10),," early-disconnect",CHAR(13),CHAR(10),," route call dest-interface IF_FXO_",'Line Table'!A3,CHAR(13),CHAR(10),," remote ",Data!$C$24," ",Data!$C$25,CHAR(13),CHAR(10),," address-translation outgoing-call request-uri user-part fix ",'Line Table'!B3," host-part to-header target-param none",CHAR(13),CHAR(10),," address-translation incoming-call called-e164 request-uri",CHAR(13),CHAR(10),,CHAR(13),CHAR(10),) -> interface sip IF_SIP_2 bind context sip-gateway GW_SIP_2 early-connect early-disconnect route call dest-interface IF_FXO_2 remote 10.10.50.23 5060 address-translation outgoing-call request-uri user-part fix 10003 host-part to-header target-param none address-translation incoming-call called-e164 request-uri
A145: 144 | B145: =+IF(Data!$C$5>ROW(Generic!B145)-ROW(Generic!$B$143),"","#") ->  | C145: =+CONCATENATE(" interface sip IF_SIP_",'Line Table'!A4,CHAR(13),CHAR(10),," bind context sip-gateway GW_SIP_",'Line Table'!A4,CHAR(13),CHAR(10),," ",+'Line Table'!C4,CHAR(13),CHAR(10),," early-disconnect",CHAR(13),CHAR(10),," route call dest-interface IF_FXO_",'Line Table'!A4,CHAR(13),CHAR(10),," remote ",Data!$C$24," ",Data!$C$25,CHAR(13),CHAR(10),," address-translation outgoing-call request-uri user-part fix ",'Line Table'!B4," host-part to-header target-param none",CHAR(13),CHAR(10),," address-translation incoming-call called-e164 request-uri",CHAR(13),CHAR(10),,CHAR(13),CHAR(10),) -> interface sip IF_SIP_3 bind context sip-gateway GW_SIP_3 early-connect early-disconnect route call dest-interface IF_FXO_3 remote 10.10.50.23 5060 address-translation outgoing-call request-uri user-part fix 10004 host-part to-header target-param none address-translation incoming-call called-e164 request-uri
A146: 145 | B146: =+IF(Data!$C$5>ROW(Generic!B146)-ROW(Generic!$B$143),"","#") ->  | C146: =+CONCATENATE(" interface sip IF_SIP_",'Line Table'!A5,CHAR(13),CHAR(10),," bind context sip-gateway GW_SIP_",'Line Table'!A5,CHAR(13),CHAR(10),," ",+'Line Table'!C5,CHAR(13),CHAR(10),," early-disconnect",CHAR(13),CHAR(10),," route call dest-interface IF_FXO_",'Line Table'!A5,CHAR(13),CHAR(10),," remote ",Data!$C$24," ",Data!$C$25,CHAR(13),CHAR(10),," address-translation outgoing-call request-uri user-part fix ",'Line Table'!B5," host-part to-header target-param none",CHAR(13),CHAR(10),," address-translation incoming-call called-e164 request-uri",CHAR(13),CHAR(10),,CHAR(13),CHAR(10),) -> interface sip IF_SIP_4 bind context sip-gateway GW_SIP_4 early-connect early-disconnect route call dest-interface IF_FXO_4 remote 10.10.50.23 5060 address-translation outgoing-call request-uri user-part fix 10005 host-part to-header target-param none address-translation incoming-call called-e164 request-uri
A147: 146 | B147: =+IF(Data!$C$5>ROW(Generic!B147)-ROW(Generic!$B$143),"","#") ->  | C147: =+CONCATENATE(" interface sip IF_SIP_",'Line Table'!A6,CHAR(13),CHAR(10),," bind context sip-gateway GW_SIP_",'Line Table'!A6,CHAR(13),CHAR(10),," ",+'Line Table'!C6,CHAR(13),CHAR(10),," early-disconnect",CHAR(13),CHAR(10),," route call dest-interface IF_FXO_",'Line Table'!A6,CHAR(13),CHAR(10),," remote ",Data!$C$24," ",Data!$C$25,CHAR(13),CHAR(10),," address-translation outgoing-call request-uri user-part fix ",'Line Table'!B6," host-part to-header target-param none",CHAR(13),CHAR(10),," address-translation incoming-call called-e164 request-uri",CHAR(13),CHAR(10),,CHAR(13),CHAR(10),) -> interface sip IF_SIP_5 bind context sip-gateway GW_SIP_5 early-connect early-disconnect route call dest-interface IF_FXO_5 remote 10.10.50.23 5060 address-translation outgoing-call request-uri user-part fix 10006 host-part to-header target-param none address-translation incoming-call called-e164 request-uri
A148: 147 | B148: =+IF(Data!$C$5>ROW(Generic!B148)-ROW(Generic!$B$143),"","#") ->  | C148: =+CONCATENATE(" interface sip IF_SIP_",'Line Table'!A7,CHAR(13),CHAR(10),," bind context sip-gateway GW_SIP_",'Line Table'!A7,CHAR(13),CHAR(10),," ",+'Line Table'!C7,CHAR(13),CHAR(10),," early-disconnect",CHAR(13),CHAR(10),," route call dest-interface IF_FXO_",'Line Table'!A7,CHAR(13),CHAR(10),," remote ",Data!$C$24," ",Data!$C$25,CHAR(13),CHAR(10),," address-translation outgoing-call request-uri user-part fix ",'Line Table'!B7," host-part to-header target-param none",CHAR(13),CHAR(10),," address-translation incoming-call called-e164 request-uri",CHAR(13),CHAR(10),,CHAR(13),CHAR(10),) -> interface sip IF_SIP_6 bind context sip-gateway GW_SIP_6 early-connect early-disconnect route call dest-interface IF_FXO_6 remote 10.10.50.23 5060 address-translation outgoing-call request-uri user-part fix 10007 host-part to-header target-param none address-translation incoming-call called-e164 request-uri
A149: 148 | B149: =+IF(Data!$C$5>ROW(Generic!B149)-ROW(Generic!$B$143),"","#") ->  | C149: =+CONCATENATE(" interface sip IF_SIP_",'Line Table'!A8,CHAR(13),CHAR(10),," bind context sip-gateway GW_SIP_",'Line Table'!A8,CHAR(13),CHAR(10),," ",+'Line Table'!C8,CHAR(13),CHAR(10),," early-disconnect",CHAR(13),CHAR(10),," route call dest-interface IF_FXO_",'Line Table'!A8,CHAR(13),CHAR(10),," remote ",Data!$C$24," ",Data!$C$25,CHAR(13),CHAR(10),," address-translation outgoing-call request-uri user-part fix ",'Line Table'!B8," host-part to-header target-param none",CHAR(13),CHAR(10),," address-translation incoming-call called-e164 request-uri",CHAR(13),CHAR(10),,CHAR(13),CHAR(10),) -> interface sip IF_SIP_7 bind context sip-gateway GW_SIP_7 early-connect early-disconnect route call dest-interface IF_FXO_7 remote 10.10.50.23 5060 address-translation outgoing-call request-uri user-part fix 10008 host-part to-header target-param none address-translation incoming-call called-e164 request-uri
A150: 149 | B150: =+IF(Data!$C$5>ROW(Generic!B150)-ROW(Generic!$B$143),"","#") ->  | C150: =+CONCATENATE(" interface sip IF_SIP_",'Line Table'!A9,CHAR(13),CHAR(10),," bind context sip-gateway GW_SIP_",'Line Table'!A9,CHAR(13),CHAR(10),," ",+'Line Table'!C9,CHAR(13),CHAR(10),," early-disconnect",CHAR(13),CHAR(10),," route call dest-interface IF_FXO_",'Line Table'!A9,CHAR(13),CHAR(10),," remote ",Data!$C$24," ",Data!$C$25,CHAR(13),CHAR(10),," address-translation outgoing-call request-uri user-part fix ",'Line Table'!B9," host-part to-header target-param none",CHAR(13),CHAR(10),," address-translation incoming-call called-e164 request-uri",CHAR(13),CHAR(10),,CHAR(13),CHAR(10),) -> interface sip IF_SIP_8 bind context sip-gateway GW_SIP_8 early-connect early-disconnect route call dest-interface IF_FXO_8 remote 10.10.50.23 5060 address-translation outgoing-call request-uri user-part fix 10009 host-part to-header target-param none address-translation incoming-call called-e164 request-uri
A151: 150 | B151: =+IF(Data!$C$5>ROW(Generic!B151)-ROW(Generic!$B$143),"","#") ->  | C151: =+CONCATENATE(" interface sip IF_SIP_",'Line Table'!A10,CHAR(13),CHAR(10),," bind context sip-gateway GW_SIP_",'Line Table'!A10,CHAR(13),CHAR(10),," ",+'Line Table'!C10,CHAR(13),CHAR(10),," early-disconnect",CHAR(13),CHAR(10),," route call dest-interface IF_FXO_",'Line Table'!A10,CHAR(13),CHAR(10),," remote ",Data!$C$24," ",Data!$C$25,CHAR(13),CHAR(10),," address-translation outgoing-call request-uri user-part fix ",'Line Table'!B10," host-part to-header target-param none",CHAR(13),CHAR(10),," address-translation incoming-call called-e164 request-uri",CHAR(13),CHAR(10),,CHAR(13),CHAR(10),) -> interface sip IF_SIP_9 bind context sip-gateway GW_SIP_9 early-connect early-disconnect route call dest-interface IF_FXO_9 remote 10.10.50.23 5060 address-translation outgoing-call request-uri user-part fix 10010 host-part to-header target-param none address-translation incoming-call called-e164 request-uri
A152: 151 | B152: =+IF(Data!$C$5>ROW(Generic!B152)-ROW(Generic!$B$143),"","#") ->  | C152: =+CONCATENATE(" interface sip IF_SIP_",'Line Table'!A11,CHAR(13),CHAR(10),," bind context sip-gateway GW_SIP_",'Line Table'!A11,CHAR(13),CHAR(10),," ",+'Line Table'!C11,CHAR(13),CHAR(10),," early-disconnect",CHAR(13),CHAR(10),," route call dest-interface IF_FXO_",'Line Table'!A11,CHAR(13),CHAR(10),," remote ",Data!$C$24," ",Data!$C$25,CHAR(13),CHAR(10),," address-translation outgoing-call request-uri user-part fix ",'Line Table'!B11," host-part to-header target-param none",CHAR(13),CHAR(10),," address-translation incoming-call called-e164 request-uri",CHAR(13),CHAR(10),,CHAR(13),CHAR(10),) -> interface sip IF_SIP_10 bind context sip-gateway GW_SIP_10 early-connect early-disconnect route call dest-interface IF_FXO_10 remote 10.10.50.23 5060 address-translation outgoing-call request-uri user-part fix 10011 host-part to-header target-param none address-translation incoming-call called-e164 request-uri
A153: 152 | B153: =+IF(Data!$C$5>ROW(Generic!B153)-ROW(Generic!$B$143),"","#") ->  | C153: =+CONCATENATE(" interface sip IF_SIP_",'Line Table'!A12,CHAR(13),CHAR(10),," bind context sip-gateway GW_SIP_",'Line Table'!A12,CHAR(13),CHAR(10),," ",+'Line Table'!C12,CHAR(13),CHAR(10),," early-disconnect",CHAR(13),CHAR(10),," route call dest-interface IF_FXO_",'Line Table'!A12,CHAR(13),CHAR(10),," remote ",Data!$C$24," ",Data!$C$25,CHAR(13),CHAR(10),," address-translation outgoing-call request-uri user-part fix ",'Line Table'!B12," host-part to-header target-param none",CHAR(13),CHAR(10),," address-translation incoming-call called-e164 request-uri",CHAR(13),CHAR(10),,CHAR(13),CHAR(10),) -> interface sip IF_SIP_11 bind context sip-gateway GW_SIP_11 early-connect early-disconnect route call dest-interface IF_FXO_11 remote 10.10.50.23 5060 address-translation outgoing-call request-uri user-part fix 10012 host-part to-header target-param none address-translation incoming-call called-e164 request-uri
A154: 153 | B154: =+IF(Data!$C$5>ROW(Generic!B154)-ROW(Generic!$B$143),"","#") ->  | C154: =+CONCATENATE(" interface sip IF_SIP_",'Line Table'!A13,CHAR(13),CHAR(10),," bind context sip-gateway GW_SIP_",'Line Table'!A13,CHAR(13),CHAR(10),," ",+'Line Table'!C13,CHAR(13),CHAR(10),," early-disconnect",CHAR(13),CHAR(10),," route call dest-interface IF_FXO_",'Line Table'!A13,CHAR(13),CHAR(10),," remote ",Data!$C$24," ",Data!$C$25,CHAR(13),CHAR(10),," address-translation outgoing-call request-uri user-part fix ",'Line Table'!B13," host-part to-header target-param none",CHAR(13),CHAR(10),," address-translation incoming-call called-e164 request-uri",CHAR(13),CHAR(10),,CHAR(13),CHAR(10),) -> interface sip IF_SIP_12 bind context sip-gateway GW_SIP_12 early-connect early-disconnect route call dest-interface IF_FXO_12 remote 10.10.50.23 5060 address-translation outgoing-call request-uri user-part fix 10013 host-part to-header target-param none address-translation incoming-call called-e164 request-uri
A155: 154 | B155: =+IF(Data!$C$5>ROW(Generic!B155)-ROW(Generic!$B$143),"","#") -> # | C155: =+CONCATENATE(" interface sip IF_SIP_",'Line Table'!A14,CHAR(13),CHAR(10),," bind context sip-gateway GW_SIP_",'Line Table'!A14,CHAR(13),CHAR(10),," ",+'Line Table'!C14,CHAR(13),CHAR(10),," early-disconnect",CHAR(13),CHAR(10),," route call dest-interface IF_FXO_",'Line Table'!A14,CHAR(13),CHAR(10),," remote ",Data!$C$24," ",Data!$C$25,CHAR(13),CHAR(10),," address-translation outgoing-call request-uri user-part fix ",'Line Table'!B14," host-part to-header target-param none",CHAR(13),CHAR(10),," address-translation incoming-call called-e164 request-uri",CHAR(13),CHAR(10),,CHAR(13),CHAR(10),) -> interface sip IF_SIP_13 bind context sip-gateway GW_SIP_13 early-connect early-disconnect route call dest-interface IF_FXO_13 remote 10.10.50.23 5060 address-translation outgoing-call request-uri user-part fix 10014 host-part to-header target-param none address-translation incoming-call called-e164 request-uri
A156: 155 | B156: =+IF(Data!$C$5>ROW(Generic!B156)-ROW(Generic!$B$143),"","#") -> # | C156: =+CONCATENATE(" interface sip IF_SIP_",'Line Table'!A15,CHAR(13),CHAR(10),," bind context sip-gateway GW_SIP_",'Line Table'!A15,CHAR(13),CHAR(10),," ",+'Line Table'!C15,CHAR(13),CHAR(10),," early-disconnect",CHAR(13),CHAR(10),," route call dest-interface IF_FXO_",'Line Table'!A15,CHAR(13),CHAR(10),," remote ",Data!$C$24," ",Data!$C$25,CHAR(13),CHAR(10),," address-translation outgoing-call request-uri user-part fix ",'Line Table'!B15," host-part to-header target-param none",CHAR(13),CHAR(10),," address-translation incoming-call called-e164 request-uri",CHAR(13),CHAR(10),,CHAR(13),CHAR(10),) -> interface sip IF_SIP_14 bind context sip-gateway GW_SIP_14 early-connect early-disconnect route call dest-interface IF_FXO_14 remote 10.10.50.23 5060 address-translation outgoing-call request-uri user-part fix 10015 host-part to-header target-param none address-translation incoming-call called-e164 request-uri
A157: 156 | B157: =+IF(Data!$C$5>ROW(Generic!B157)-ROW(Generic!$B$143),"","#") -> # | C157: =+CONCATENATE(" interface sip IF_SIP_",'Line Table'!A16,CHAR(13),CHAR(10),," bind context sip-gateway GW_SIP_",'Line Table'!A16,CHAR(13),CHAR(10),," ",+'Line Table'!C16,CHAR(13),CHAR(10),," early-disconnect",CHAR(13),CHAR(10),," route call dest-interface IF_FXO_",'Line Table'!A16,CHAR(13),CHAR(10),," remote ",Data!$C$24," ",Data!$C$25,CHAR(13),CHAR(10),," address-translation outgoing-call request-uri user-part fix ",'Line Table'!B16," host-part to-header target-param none",CHAR(13),CHAR(10),," address-translation incoming-call called-e164 request-uri",CHAR(13),CHAR(10),,CHAR(13),CHAR(10),) -> interface sip IF_SIP_15 bind context sip-gateway GW_SIP_15 early-connect early-disconnect route call dest-interface IF_FXO_15 remote 10.10.50.23 5060 address-translation outgoing-call request-uri user-part fix 10016 host-part to-header target-param none address-translation incoming-call called-e164 request-uri
A158: 157 | B158: =+IF(Data!$C$5>ROW(Generic!B158)-ROW(Generic!$B$143),"","#") -> # | C158: =+CONCATENATE(" interface sip IF_SIP_",'Line Table'!A17,CHAR(13),CHAR(10),," bind context sip-gateway GW_SIP_",'Line Table'!A17,CHAR(13),CHAR(10),," ",+'Line Table'!C17,CHAR(13),CHAR(10),," early-disconnect",CHAR(13),CHAR(10),," route call dest-interface IF_FXO_",'Line Table'!A17,CHAR(13),CHAR(10),," remote ",Data!$C$24," ",Data!$C$25,CHAR(13),CHAR(10),," address-translation outgoing-call request-uri user-part fix ",'Line Table'!B17," host-part to-header target-param none",CHAR(13),CHAR(10),," address-translation incoming-call called-e164 request-uri",CHAR(13),CHAR(10),,CHAR(13),CHAR(10),) -> interface sip IF_SIP_16 bind context sip-gateway GW_SIP_16 early-connect early-disconnect route call dest-interface IF_FXO_16 remote 10.10.50.23 5060 address-translation outgoing-call request-uri user-part fix 10017 host-part to-header target-param none address-translation incoming-call called-e164 request-uri
A159: 158 | B159: =+IF(Data!$C$5>ROW(Generic!B159)-ROW(Generic!$B$143),"","#") -> # | C159: =+CONCATENATE(" interface sip IF_SIP_",'Line Table'!A18,CHAR(13),CHAR(10),," bind context sip-gateway GW_SIP_",'Line Table'!A18,CHAR(13),CHAR(10),," ",+'Line Table'!C18,CHAR(13),CHAR(10),," early-disconnect",CHAR(13),CHAR(10),," route call dest-interface IF_FXO_",'Line Table'!A18,CHAR(13),CHAR(10),," remote ",Data!$C$24," ",Data!$C$25,CHAR(13),CHAR(10),," address-translation outgoing-call request-uri user-part fix ",'Line Table'!B18," host-part to-header target-param none",CHAR(13),CHAR(10),," address-translation incoming-call called-e164 request-uri",CHAR(13),CHAR(10),,CHAR(13),CHAR(10),) -> interface sip IF_SIP_17 bind context sip-gateway GW_SIP_17 early-connect early-disconnect route call dest-interface IF_FXO_17 remote 10.10.50.23 5060 address-translation outgoing-call request-uri user-part fix 10018 host-part to-header target-param none address-translation incoming-call called-e164 request-uri
A160: 159 | B160: =+IF(Data!$C$5>ROW(Generic!B160)-ROW(Generic!$B$143),"","#") -> # | C160: =+CONCATENATE(" interface sip IF_SIP_",'Line Table'!A19,CHAR(13),CHAR(10),," bind context sip-gateway GW_SIP_",'Line Table'!A19,CHAR(13),CHAR(10),," ",+'Line Table'!C19,CHAR(13),CHAR(10),," early-disconnect",CHAR(13),CHAR(10),," route call dest-interface IF_FXO_",'Line Table'!A19,CHAR(13),CHAR(10),," remote ",Data!$C$24," ",Data!$C$25,CHAR(13),CHAR(10),," address-translation outgoing-call request-uri user-part fix ",'Line Table'!B19," host-part to-header target-param none",CHAR(13),CHAR(10),," address-translation incoming-call called-e164 request-uri",CHAR(13),CHAR(10),,CHAR(13),CHAR(10),) -> interface sip IF_SIP_18 bind context sip-gateway GW_SIP_18 early-connect early-disconnect route call dest-interface IF_FXO_18 remote 10.10.50.23 5060 address-translation outgoing-call request-uri user-part fix 10019 host-part to-header target-param none address-translation incoming-call called-e164 request-uri
A161: 160 | B161: =+IF(Data!$C$5>ROW(Generic!B161)-ROW(Generic!$B$143),"","#") -> # | C161: =+CONCATENATE(" interface sip IF_SIP_",'Line Table'!A20,CHAR(13),CHAR(10),," bind context sip-gateway GW_SIP_",'Line Table'!A20,CHAR(13),CHAR(10),," ",+'Line Table'!C20,CHAR(13),CHAR(10),," early-disconnect",CHAR(13),CHAR(10),," route call dest-interface IF_FXO_",'Line Table'!A20,CHAR(13),CHAR(10),," remote ",Data!$C$24," ",Data!$C$25,CHAR(13),CHAR(10),," address-translation outgoing-call request-uri user-part fix ",'Line Table'!B20," host-part to-header target-param none",CHAR(13),CHAR(10),," address-translation incoming-call called-e164 request-uri",CHAR(13),CHAR(10),,CHAR(13),CHAR(10),) -> interface sip IF_SIP_19 bind context sip-gateway GW_SIP_19 early-connect early-disconnect route call dest-interface IF_FXO_19 remote 10.10.50.23 5060 address-translation outgoing-call request-uri user-part fix 10020 host-part to-header target-param none address-translation incoming-call called-e164 request-uri
A162: 161 | B162: =+IF(Data!$C$5>ROW(Generic!B162)-ROW(Generic!$B$143),"","#") -> # | C162: =+CONCATENATE(" interface sip IF_SIP_",'Line Table'!A21,CHAR(13),CHAR(10),," bind context sip-gateway GW_SIP_",'Line Table'!A21,CHAR(13),CHAR(10),," ",+'Line Table'!C21,CHAR(13),CHAR(10),," early-disconnect",CHAR(13),CHAR(10),," route call dest-interface IF_FXO_",'Line Table'!A21,CHAR(13),CHAR(10),," remote ",Data!$C$24," ",Data!$C$25,CHAR(13),CHAR(10),," address-translation outgoing-call request-uri user-part fix ",'Line Table'!B21," host-part to-header target-param none",CHAR(13),CHAR(10),," address-translation incoming-call called-e164 request-uri",CHAR(13),CHAR(10),,CHAR(13),CHAR(10),) -> interface sip IF_SIP_20 bind context sip-gateway GW_SIP_20 early-connect early-disconnect route call dest-interface IF_FXO_20 remote 10.10.50.23 5060 address-translation outgoing-call request-uri user-part fix 10021 host-part to-header target-param none address-translation incoming-call called-e164 request-uri
A163: 162 | B163: =+IF(Data!$C$5>ROW(Generic!B163)-ROW(Generic!$B$143),"","#") -> # | C163: =+CONCATENATE(" interface sip IF_SIP_",'Line Table'!A22,CHAR(13),CHAR(10),," bind context sip-gateway GW_SIP_",'Line Table'!A22,CHAR(13),CHAR(10),," ",+'Line Table'!C22,CHAR(13),CHAR(10),," early-disconnect",CHAR(13),CHAR(10),," route call dest-interface IF_FXO_",'Line Table'!A22,CHAR(13),CHAR(10),," remote ",Data!$C$24," ",Data!$C$25,CHAR(13),CHAR(10),," address-translation outgoing-call request-uri user-part fix ",'Line Table'!B22," host-part to-header target-param none",CHAR(13),CHAR(10),," address-translation incoming-call called-e164 request-uri",CHAR(13),CHAR(10),,CHAR(13),CHAR(10),) -> interface sip IF_SIP_21 bind context sip-gateway GW_SIP_21 early-connect early-disconnect route call dest-interface IF_FXO_21 remote 10.10.50.23 5060 address-translation outgoing-call request-uri user-part fix 10022 host-part to-header target-param none address-translation incoming-call called-e164 request-uri
A164: 163 | B164: =+IF(Data!$C$5>ROW(Generic!B164)-ROW(Generic!$B$143),"","#") -> # | C164: =+CONCATENATE(" interface sip IF_SIP_",'Line Table'!A23,CHAR(13),CHAR(10),," bind context sip-gateway GW_SIP_",'Line Table'!A23,CHAR(13),CHAR(10),," ",+'Line Table'!C23,CHAR(13),CHAR(10),," early-disconnect",CHAR(13),CHAR(10),," route call dest-interface IF_FXO_",'Line Table'!A23,CHAR(13),CHAR(10),," remote ",Data!$C$24," ",Data!$C$25,CHAR(13),CHAR(10),," address-translation outgoing-call request-uri user-part fix ",'Line Table'!B23," host-part to-header target-param none",CHAR(13),CHAR(10),," address-translation incoming-call called-e164 request-uri",CHAR(13),CHAR(10),,CHAR(13),CHAR(10),) -> interface sip IF_SIP_22 bind context sip-gateway GW_SIP_22 early-connect early-disconnect route call dest-interface IF_FXO_22 remote 10.10.50.23 5060 address-translation outgoing-call request-uri user-part fix 10023 host-part to-header target-param none address-translation incoming-call called-e164 request-uri
A165: 164 | B165: =+IF(Data!$C$5>ROW(Generic!B165)-ROW(Generic!$B$143),"","#") -> # | C165: =+CONCATENATE(" interface sip IF_SIP_",'Line Table'!A24,CHAR(13),CHAR(10),," bind context sip-gateway GW_SIP_",'Line Table'!A24,CHAR(13),CHAR(10),," ",+'Line Table'!C24,CHAR(13),CHAR(10),," early-disconnect",CHAR(13),CHAR(10),," route call dest-interface IF_FXO_",'Line Table'!A24,CHAR(13),CHAR(10),," remote ",Data!$C$24," ",Data!$C$25,CHAR(13),CHAR(10),," address-translation outgoing-call request-uri user-part fix ",'Line Table'!B24," host-part to-header target-param none",CHAR(13),CHAR(10),," address-translation incoming-call called-e164 request-uri",CHAR(13),CHAR(10),,CHAR(13),CHAR(10),) -> interface sip IF_SIP_23 bind context sip-gateway GW_SIP_23 early-connect early-disconnect route call dest-interface IF_FXO_23 remote 10.10.50.23 5060 address-translation outgoing-call request-uri user-part fix 10024 host-part to-header target-param none address-translation incoming-call called-e164 request-uri
A166: 165 | B166: =+IF(Data!$C$5>ROW(Generic!B166)-ROW(Generic!$B$143),"","#") -> # | C166: =+CONCATENATE(" interface sip IF_SIP_",'Line Table'!A25,CHAR(13),CHAR(10),," bind context sip-gateway GW_SIP_",'Line Table'!A25,CHAR(13),CHAR(10),," ",+'Line Table'!C25,CHAR(13),CHAR(10),," early-disconnect",CHAR(13),CHAR(10),," route call dest-interface IF_FXO_",'Line Table'!A25,CHAR(13),CHAR(10),," remote ",Data!$C$24," ",Data!$C$25,CHAR(13),CHAR(10),," address-translation outgoing-call request-uri user-part fix ",'Line Table'!B25," host-part to-header target-param none",CHAR(13),CHAR(10),," address-translation incoming-call called-e164 request-uri",CHAR(13),CHAR(10),,CHAR(13),CHAR(10),) -> interface sip IF_SIP_24 bind context sip-gateway GW_SIP_24 early-connect early-disconnect route call dest-interface IF_FXO_24 remote 10.10.50.23 5060 address-translation outgoing-call request-uri user-part fix 10025 host-part to-header target-param none address-translation incoming-call called-e164 request-uri
A167: 166 | B167: =+IF(Data!$C$5>ROW(Generic!B167)-ROW(Generic!$B$143),"","#") -> # | C167: =+CONCATENATE(" interface sip IF_SIP_",'Line Table'!A26,CHAR(13),CHAR(10),," bind context sip-gateway GW_SIP_",'Line Table'!A26,CHAR(13),CHAR(10),," ",+'Line Table'!C26,CHAR(13),CHAR(10),," early-disconnect",CHAR(13),CHAR(10),," route call dest-interface IF_FXO_",'Line Table'!A26,CHAR(13),CHAR(10),," remote ",Data!$C$24," ",Data!$C$25,CHAR(13),CHAR(10),," address-translation outgoing-call request-uri user-part fix ",'Line Table'!B26," host-part to-header target-param none",CHAR(13),CHAR(10),," address-translation incoming-call called-e164 request-uri",CHAR(13),CHAR(10),,CHAR(13),CHAR(10),) -> interface sip IF_SIP_25 bind context sip-gateway GW_SIP_25 early-connect early-disconnect route call dest-interface IF_FXO_25 remote 10.10.50.23 5060 address-translation outgoing-call request-uri user-part fix 10026 host-part to-header target-param none address-translation incoming-call called-e164 request-uri
A168: 167 | B168: =+IF(Data!$C$5>ROW(Generic!B168)-ROW(Generic!$B$143),"","#") -> # | C168: =+CONCATENATE(" interface sip IF_SIP_",'Line Table'!A27,CHAR(13),CHAR(10),," bind context sip-gateway GW_SIP_",'Line Table'!A27,CHAR(13),CHAR(10),," ",+'Line Table'!C27,CHAR(13),CHAR(10),," early-disconnect",CHAR(13),CHAR(10),," route call dest-interface IF_FXO_",'Line Table'!A27,CHAR(13),CHAR(10),," remote ",Data!$C$24," ",Data!$C$25,CHAR(13),CHAR(10),," address-translation outgoing-call request-uri user-part fix ",'Line Table'!B27," host-part to-header target-param none",CHAR(13),CHAR(10),," address-translation incoming-call called-e164 request-uri",CHAR(13),CHAR(10),,CHAR(13),CHAR(10),) -> interface sip IF_SIP_26 bind context sip-gateway GW_SIP_26 early-connect early-disconnect route call dest-interface IF_FXO_26 remote 10.10.50.23 5060 address-translation outgoing-call request-uri user-part fix 10027 host-part to-header target-param none address-translation incoming-call called-e164 request-uri
A169: 168 | B169: =+IF(Data!$C$5>ROW(Generic!B169)-ROW(Generic!$B$143),"","#") -> # | C169: =+CONCATENATE(" interface sip IF_SIP_",'Line Table'!A28,CHAR(13),CHAR(10),," bind context sip-gateway GW_SIP_",'Line Table'!A28,CHAR(13),CHAR(10),," ",+'Line Table'!C28,CHAR(13),CHAR(10),," early-disconnect",CHAR(13),CHAR(10),," route call dest-interface IF_FXO_",'Line Table'!A28,CHAR(13),CHAR(10),," remote ",Data!$C$24," ",Data!$C$25,CHAR(13),CHAR(10),," address-translation outgoing-call request-uri user-part fix ",'Line Table'!B28," host-part to-header target-param none",CHAR(13),CHAR(10),," address-translation incoming-call called-e164 request-uri",CHAR(13),CHAR(10),,CHAR(13),CHAR(10),) -> interface sip IF_SIP_27 bind context sip-gateway GW_SIP_27 early-connect early-disconnect route call dest-interface IF_FXO_27 remote 10.10.50.23 5060 address-translation outgoing-call request-uri user-part fix 10028 host-part to-header target-param none address-translation incoming-call called-e164 request-uri
A170: 169 | B170: =+IF(Data!$C$5>ROW(Generic!B170)-ROW(Generic!$B$143),"","#") -> # | C170: =+CONCATENATE(" interface sip IF_SIP_",'Line Table'!A29,CHAR(13),CHAR(10),," bind context sip-gateway GW_SIP_",'Line Table'!A29,CHAR(13),CHAR(10),," ",+'Line Table'!C29,CHAR(13),CHAR(10),," early-disconnect",CHAR(13),CHAR(10),," route call dest-interface IF_FXO_",'Line Table'!A29,CHAR(13),CHAR(10),," remote ",Data!$C$24," ",Data!$C$25,CHAR(13),CHAR(10),," address-translation outgoing-call request-uri user-part fix ",'Line Table'!B29," host-part to-header target-param none",CHAR(13),CHAR(10),," address-translation incoming-call called-e164 request-uri",CHAR(13),CHAR(10),,CHAR(13),CHAR(10),) -> interface sip IF_SIP_28 bind context sip-gateway GW_SIP_28 early-connect early-disconnect route call dest-interface IF_FXO_28 remote 10.10.50.23 5060 address-translation outgoing-call request-uri user-part fix 10029 host-part to-header target-param none address-translation incoming-call called-e164 request-uri
A171: 170 | B171: =+IF(Data!$C$5>ROW(Generic!B171)-ROW(Generic!$B$143),"","#") -> # | C171: =+CONCATENATE(" interface sip IF_SIP_",'Line Table'!A30,CHAR(13),CHAR(10),," bind context sip-gateway GW_SIP_",'Line Table'!A30,CHAR(13),CHAR(10),," ",+'Line Table'!C30,CHAR(13),CHAR(10),," early-disconnect",CHAR(13),CHAR(10),," route call dest-interface IF_FXO_",'Line Table'!A30,CHAR(13),CHAR(10),," remote ",Data!$C$24," ",Data!$C$25,CHAR(13),CHAR(10),," address-translation outgoing-call request-uri user-part fix ",'Line Table'!B30," host-part to-header target-param none",CHAR(13),CHAR(10),," address-translation incoming-call called-e164 request-uri",CHAR(13),CHAR(10),,CHAR(13),CHAR(10),) -> interface sip IF_SIP_29 bind context sip-gateway GW_SIP_29 early-connect early-disconnect route call dest-interface IF_FXO_29 remote 10.10.50.23 5060 address-translation outgoing-call request-uri user-part fix 10030 host-part to-header target-param none address-translation incoming-call called-e164 request-uri
A172: 171 | B172: =+IF(Data!$C$5>ROW(Generic!B172)-ROW(Generic!$B$143),"","#") -> # | C172: =+CONCATENATE(" interface sip IF_SIP_",'Line Table'!A31,CHAR(13),CHAR(10),," bind context sip-gateway GW_SIP_",'Line Table'!A31,CHAR(13),CHAR(10),," ",+'Line Table'!C31,CHAR(13),CHAR(10),," early-disconnect",CHAR(13),CHAR(10),," route call dest-interface IF_FXO_",'Line Table'!A31,CHAR(13),CHAR(10),," remote ",Data!$C$24," ",Data!$C$25,CHAR(13),CHAR(10),," address-translation outgoing-call request-uri user-part fix ",'Line Table'!B31," host-part to-header target-param none",CHAR(13),CHAR(10),," address-translation incoming-call called-e164 request-uri",CHAR(13),CHAR(10),,CHAR(13),CHAR(10),) -> interface sip IF_SIP_30 bind context sip-gateway GW_SIP_30 early-connect early-disconnect route call dest-interface IF_FXO_30 remote 10.10.50.23 5060 address-translation outgoing-call request-uri user-part fix 10031 host-part to-header target-param none address-translation incoming-call called-e164 request-uri
A173: 172 | B173: =+IF(Data!$C$5>ROW(Generic!B173)-ROW(Generic!$B$143),"","#") -> # | C173: =+CONCATENATE(" interface sip IF_SIP_",'Line Table'!A32,CHAR(13),CHAR(10),," bind context sip-gateway GW_SIP_",'Line Table'!A32,CHAR(13),CHAR(10),," ",+'Line Table'!C32,CHAR(13),CHAR(10),," early-disconnect",CHAR(13),CHAR(10),," route call dest-interface IF_FXO_",'Line Table'!A32,CHAR(13),CHAR(10),," remote ",Data!$C$24," ",Data!$C$25,CHAR(13),CHAR(10),," address-translation outgoing-call request-uri user-part fix ",'Line Table'!B32," host-part to-header target-param none",CHAR(13),CHAR(10),," address-translation incoming-call called-e164 request-uri",CHAR(13),CHAR(10),,CHAR(13),CHAR(10),) -> interface sip IF_SIP_31 bind context sip-gateway GW_SIP_31 early-connect early-disconnect route call dest-interface IF_FXO_31 remote 10.10.50.23 5060 address-translation outgoing-call request-uri user-part fix 10032 host-part to-header target-param none address-translation incoming-call called-e164 request-uri
A174: 173 | B174: =+IF(Data!$C$5>ROW(Generic!B174)-ROW(Generic!$B$143),"","#") -> # | C174: =+CONCATENATE(" interface sip IF_SIP_",'Line Table'!A33,CHAR(13),CHAR(10),," bind context sip-gateway GW_SIP_",'Line Table'!A33,CHAR(13),CHAR(10),," ",+'Line Table'!C33,CHAR(13),CHAR(10),," early-disconnect",CHAR(13),CHAR(10),," route call dest-interface IF_FXO_",'Line Table'!A33,CHAR(13),CHAR(10),," remote ",Data!$C$24," ",Data!$C$25,CHAR(13),CHAR(10),," address-translation outgoing-call request-uri user-part fix ",'Line Table'!B33," host-part to-header target-param none",CHAR(13),CHAR(10),," address-translation incoming-call called-e164 request-uri",CHAR(13),CHAR(10),,CHAR(13),CHAR(10),) -> interface sip IF_SIP_32 bind context sip-gateway GW_SIP_32 early-connect early-disconnect route call dest-interface IF_FXO_32 remote 10.10.50.23 5060 address-translation outgoing-call request-uri user-part fix 10033 host-part to-header target-param none address-translation incoming-call called-e164 request-uri
A175: 174
A176: 175 | B176: =+IF(Data!$C$5>ROW(Generic!B176)-ROW(Generic!$B$176),"","#") ->  | C176: =+CONCATENATE(" interface fxo IF_FXO_",'Line Table'!A2,CHAR(13),CHAR(10)," route call dest-interface IF_SIP_",'Line Table'!A2,CHAR(13),CHAR(10)," loop-break-duration min 200 max 1000",CHAR(13),CHAR(10)," ",'Line Table'!D2,CHAR(13),CHAR(10)," mute-dialing",CHAR(13),CHAR(10)," disconnect-signal loop-break",CHAR(13),CHAR(10)," disconnect-signal busy-tone",CHAR(13),CHAR(10)," dial-after timeout 1") -> interface fxo IF_FXO_1 route call dest-interface IF_SIP_1 loop-break-duration min 200 max 1000 ring-number on-caller-id mute-dialing disconnect-signal loop-break disconnect-signal busy-tone dial-after timeout 1
A177: 176 | B177: =+IF(Data!$C$5>ROW(Generic!B177)-ROW(Generic!$B$176),"","#") ->  | C177: =+CONCATENATE(" interface fxo IF_FXO_",'Line Table'!A3,CHAR(13),CHAR(10)," route call dest-interface IF_SIP_",'Line Table'!A3,CHAR(13),CHAR(10)," loop-break-duration min 200 max 1000",CHAR(13),CHAR(10)," ",'Line Table'!D3,CHAR(13),CHAR(10)," mute-dialing",CHAR(13),CHAR(10)," disconnect-signal loop-break",CHAR(13),CHAR(10)," disconnect-signal busy-tone",CHAR(13),CHAR(10)," dial-after timeout 1") -> interface fxo IF_FXO_2 route call dest-interface IF_SIP_2 loop-break-duration min 200 max 1000 ring-number on-caller-id mute-dialing disconnect-signal loop-break disconnect-signal busy-tone dial-after timeout 1
A178: 177 | B178: =+IF(Data!$C$5>ROW(Generic!B178)-ROW(Generic!$B$176),"","#") ->  | C178: =+CONCATENATE(" interface fxo IF_FXO_",'Line Table'!A4,CHAR(13),CHAR(10)," route call dest-interface IF_SIP_",'Line Table'!A4,CHAR(13),CHAR(10)," loop-break-duration min 200 max 1000",CHAR(13),CHAR(10)," ",'Line Table'!D4,CHAR(13),CHAR(10)," mute-dialing",CHAR(13),CHAR(10)," disconnect-signal loop-break",CHAR(13),CHAR(10)," disconnect-signal busy-tone",CHAR(13),CHAR(10)," dial-after timeout 1") -> interface fxo IF_FXO_3 route call dest-interface IF_SIP_3 loop-break-duration min 200 max 1000 ring-number on-caller-id mute-dialing disconnect-signal loop-break disconnect-signal busy-tone dial-after timeout 1
A179: 178 | B179: =+IF(Data!$C$5>ROW(Generic!B179)-ROW(Generic!$B$176),"","#") ->  | C179: =+CONCATENATE(" interface fxo IF_FXO_",'Line Table'!A5,CHAR(13),CHAR(10)," route call dest-interface IF_SIP_",'Line Table'!A5,CHAR(13),CHAR(10)," loop-break-duration min 200 max 1000",CHAR(13),CHAR(10)," ",'Line Table'!D5,CHAR(13),CHAR(10)," mute-dialing",CHAR(13),CHAR(10)," disconnect-signal loop-break",CHAR(13),CHAR(10)," disconnect-signal busy-tone",CHAR(13),CHAR(10)," dial-after timeout 1") -> interface fxo IF_FXO_4 route call dest-interface IF_SIP_4 loop-break-duration min 200 max 1000 ring-number on-caller-id mute-dialing disconnect-signal loop-break disconnect-signal busy-tone dial-after timeout 1
A180: 179 | B180: =+IF(Data!$C$5>ROW(Generic!B180)-ROW(Generic!$B$176),"","#") ->  | C180: =+CONCATENATE(" interface fxo IF_FXO_",'Line Table'!A6,CHAR(13),CHAR(10)," route call dest-interface IF_SIP_",'Line Table'!A6,CHAR(13),CHAR(10)," loop-break-duration min 200 max 1000",CHAR(13),CHAR(10)," ",'Line Table'!D6,CHAR(13),CHAR(10)," mute-dialing",CHAR(13),CHAR(10)," disconnect-signal loop-break",CHAR(13),CHAR(10)," disconnect-signal busy-tone",CHAR(13),CHAR(10)," dial-after timeout 1") -> interface fxo IF_FXO_5 route call dest-interface IF_SIP_5 loop-break-duration min 200 max 1000 ring-number on-caller-id mute-dialing disconnect-signal loop-break disconnect-signal busy-tone dial-after timeout 1
A181: 180 | B181: =+IF(Data!$C$5>ROW(Generic!B181)-ROW(Generic!$B$176),"","#") ->  | C181: =+CONCATENATE(" interface fxo IF_FXO_",'Line Table'!A7,CHAR(13),CHAR(10)," route call dest-interface IF_SIP_",'Line Table'!A7,CHAR(13),CHAR(10)," loop-break-duration min 200 max 1000",CHAR(13),CHAR(10)," ",'Line Table'!D7,CHAR(13),CHAR(10)," mute-dialing",CHAR(13),CHAR(10)," disconnect-signal loop-break",CHAR(13),CHAR(10)," disconnect-signal busy-tone",CHAR(13),CHAR(10)," dial-after timeout 1") -> interface fxo IF_FXO_6 route call dest-interface IF_SIP_6 loop-break-duration min 200 max 1000 ring-number on-caller-id mute-dialing disconnect-signal loop-break disconnect-signal busy-tone dial-after timeout 1
A182: 181 | B182: =+IF(Data!$C$5>ROW(Generic!B182)-ROW(Generic!$B$176),"","#") ->  | C182: =+CONCATENATE(" interface fxo IF_FXO_",'Line Table'!A8,CHAR(13),CHAR(10)," route call dest-interface IF_SIP_",'Line Table'!A8,CHAR(13),CHAR(10)," loop-break-duration min 200 max 1000",CHAR(13),CHAR(10)," ",'Line Table'!D8,CHAR(13),CHAR(10)," mute-dialing",CHAR(13),CHAR(10)," disconnect-signal loop-break",CHAR(13),CHAR(10)," disconnect-signal busy-tone",CHAR(13),CHAR(10)," dial-after timeout 1") -> interface fxo IF_FXO_7 route call dest-interface IF_SIP_7 loop-break-duration min 200 max 1000 ring-number on-caller-id mute-dialing disconnect-signal loop-break disconnect-signal busy-tone dial-after timeout 1
A183: 182 | B183: =+IF(Data!$C$5>ROW(Generic!B183)-ROW(Generic!$B$176),"","#") ->  | C183: =+CONCATENATE(" interface fxo IF_FXO_",'Line Table'!A9,CHAR(13),CHAR(10)," route call dest-interface IF_SIP_",'Line Table'!A9,CHAR(13),CHAR(10)," loop-break-duration min 200 max 1000",CHAR(13),CHAR(10)," ",'Line Table'!D9,CHAR(13),CHAR(10)," mute-dialing",CHAR(13),CHAR(10)," disconnect-signal loop-break",CHAR(13),CHAR(10)," disconnect-signal busy-tone",CHAR(13),CHAR(10)," dial-after timeout 1") -> interface fxo IF_FXO_8 route call dest-interface IF_SIP_8 loop-break-duration min 200 max 1000 ring-number on-caller-id mute-dialing disconnect-signal loop-break disconnect-signal busy-tone dial-after timeout 1
A184: 183 | B184: =+IF(Data!$C$5>ROW(Generic!B184)-ROW(Generic!$B$176),"","#") ->  | C184: =+CONCATENATE(" interface fxo IF_FXO_",'Line Table'!A10,CHAR(13),CHAR(10)," route call dest-interface IF_SIP_",'Line Table'!A10,CHAR(13),CHAR(10)," loop-break-duration min 200 max 1000",CHAR(13),CHAR(10)," ",'Line Table'!D10,CHAR(13),CHAR(10)," mute-dialing",CHAR(13),CHAR(10)," disconnect-signal loop-break",CHAR(13),CHAR(10)," disconnect-signal busy-tone",CHAR(13),CHAR(10)," dial-after timeout 1") -> interface fxo IF_FXO_9 route call dest-interface IF_SIP_9 loop-break-duration min 200 max 1000 ring-number on-caller-id mute-dialing disconnect-signal loop-break disconnect-signal busy-tone dial-after timeout 1
A185: 184 | B185: =+IF(Data!$C$5>ROW(Generic!B185)-ROW(Generic!$B$176),"","#") ->  | C185: =+CONCATENATE(" interface fxo IF_FXO_",'Line Table'!A11,CHAR(13),CHAR(10)," route call dest-interface IF_SIP_",'Line Table'!A11,CHAR(13),CHAR(10)," loop-break-duration min 200 max 1000",CHAR(13),CHAR(10)," ",'Line Table'!D11,CHAR(13),CHAR(10)," mute-dialing",CHAR(13),CHAR(10)," disconnect-signal loop-break",CHAR(13),CHAR(10)," disconnect-signal busy-tone",CHAR(13),CHAR(10)," dial-after timeout 1") -> interface fxo IF_FXO_10 route call dest-interface IF_SIP_10 loop-break-duration min 200 max 1000 ring-number on-caller-id mute-dialing disconnect-signal loop-break disconnect-signal busy-tone dial-after timeout 1
A186: 185 | B186: =+IF(Data!$C$5>ROW(Generic!B186)-ROW(Generic!$B$176),"","#") ->  | C186: =+CONCATENATE(" interface fxo IF_FXO_",'Line Table'!A12,CHAR(13),CHAR(10)," route call dest-interface IF_SIP_",'Line Table'!A12,CHAR(13),CHAR(10)," loop-break-duration min 200 max 1000",CHAR(13),CHAR(10)," ",'Line Table'!D12,CHAR(13),CHAR(10)," mute-dialing",CHAR(13),CHAR(10)," disconnect-signal loop-break",CHAR(13),CHAR(10)," disconnect-signal busy-tone",CHAR(13),CHAR(10)," dial-after timeout 1") -> interface fxo IF_FXO_11 route call dest-interface IF_SIP_11 loop-break-duration min 200 max 1000 ring-number on-caller-id mute-dialing disconnect-signal loop-break disconnect-signal busy-tone dial-after timeout 1
A187: 186 | B187: =+IF(Data!$C$5>ROW(Generic!B187)-ROW(Generic!$B$176),"","#") ->  | C187: =+CONCATENATE(" interface fxo IF_FXO_",'Line Table'!A13,CHAR(13),CHAR(10)," route call dest-interface IF_SIP_",'Line Table'!A13,CHAR(13),CHAR(10)," loop-break-duration min 200 max 1000",CHAR(13),CHAR(10)," ",'Line Table'!D13,CHAR(13),CHAR(10)," mute-dialing",CHAR(13),CHAR(10)," disconnect-signal loop-break",CHAR(13),CHAR(10)," disconnect-signal busy-tone",CHAR(13),CHAR(10)," dial-after timeout 1") -> interface fxo IF_FXO_12 route call dest-interface IF_SIP_12 loop-break-duration min 200 max 1000 ring-number on-caller-id mute-dialing disconnect-signal loop-break disconnect-signal busy-tone dial-after timeout 1
A188: 187 | B188: =+IF(Data!$C$5>ROW(Generic!B188)-ROW(Generic!$B$176),"","#") -> # | C188: =+CONCATENATE(" interface fxo IF_FXO_",'Line Table'!A14,CHAR(13),CHAR(10)," route call dest-interface IF_SIP_",'Line Table'!A14,CHAR(13),CHAR(10)," loop-break-duration min 200 max 1000",CHAR(13),CHAR(10)," ",'Line Table'!D14,CHAR(13),CHAR(10)," mute-dialing",CHAR(13),CHAR(10)," disconnect-signal loop-break",CHAR(13),CHAR(10)," disconnect-signal busy-tone",CHAR(13),CHAR(10)," dial-after timeout 1") -> interface fxo IF_FXO_13 route call dest-interface IF_SIP_13 loop-break-duration min 200 max 1000 ring-number on-caller-id mute-dialing disconnect-signal loop-break disconnect-signal busy-tone dial-after timeout 1
A189: 188 | B189: =+IF(Data!$C$5>ROW(Generic!B189)-ROW(Generic!$B$176),"","#") -> # | C189: =+CONCATENATE(" interface fxo IF_FXO_",'Line Table'!A15,CHAR(13),CHAR(10)," route call dest-interface IF_SIP_",'Line Table'!A15,CHAR(13),CHAR(10)," loop-break-duration min 200 max 1000",CHAR(13),CHAR(10)," ",'Line Table'!D15,CHAR(13),CHAR(10)," mute-dialing",CHAR(13),CHAR(10)," disconnect-signal loop-break",CHAR(13),CHAR(10)," disconnect-signal busy-tone",CHAR(13),CHAR(10)," dial-after timeout 1") -> interface fxo IF_FXO_14 route call dest-interface IF_SIP_14 loop-break-duration min 200 max 1000 ring-number on-caller-id mute-dialing disconnect-signal loop-break disconnect-signal busy-tone dial-after timeout 1
A190: 189 | B190: =+IF(Data!$C$5>ROW(Generic!B190)-ROW(Generic!$B$176),"","#") -> # | C190: =+CONCATENATE(" interface fxo IF_FXO_",'Line Table'!A16,CHAR(13),CHAR(10)," route call dest-interface IF_SIP_",'Line Table'!A16,CHAR(13),CHAR(10)," loop-break-duration min 200 max 1000",CHAR(13),CHAR(10)," ",'Line Table'!D16,CHAR(13),CHAR(10)," mute-dialing",CHAR(13),CHAR(10)," disconnect-signal loop-break",CHAR(13),CHAR(10)," disconnect-signal busy-tone",CHAR(13),CHAR(10)," dial-after timeout 1") -> interface fxo IF_FXO_15 route call dest-interface IF_SIP_15 loop-break-duration min 200 max 1000 ring-number on-caller-id mute-dialing disconnect-signal loop-break disconnect-signal busy-tone dial-after timeout 1
A191: 190 | B191: =+IF(Data!$C$5>ROW(Generic!B191)-ROW(Generic!$B$176),"","#") -> # | C191: =+CONCATENATE(" interface fxo IF_FXO_",'Line Table'!A17,CHAR(13),CHAR(10)," route call dest-interface IF_SIP_",'Line Table'!A17,CHAR(13),CHAR(10)," loop-break-duration min 200 max 1000",CHAR(13),CHAR(10)," ",'Line Table'!D17,CHAR(13),CHAR(10)," mute-dialing",CHAR(13),CHAR(10)," disconnect-signal loop-break",CHAR(13),CHAR(10)," disconnect-signal busy-tone",CHAR(13),CHAR(10)," dial-after timeout 1") -> interface fxo IF_FXO_16 route call dest-interface IF_SIP_16 loop-break-duration min 200 max 1000 ring-number on-caller-id mute-dialing disconnect-signal loop-break disconnect-signal busy-tone dial-after timeout 1
A192: 191 | B192: =+IF(Data!$C$5>ROW(Generic!B192)-ROW(Generic!$B$176),"","#") -> # | C192: =+CONCATENATE(" interface fxo IF_FXO_",'Line Table'!A18,CHAR(13),CHAR(10)," route call dest-interface IF_SIP_",'Line Table'!A18,CHAR(13),CHAR(10)," loop-break-duration min 200 max 1000",CHAR(13),CHAR(10)," ",'Line Table'!D18,CHAR(13),CHAR(10)," mute-dialing",CHAR(13),CHAR(10)," disconnect-signal loop-break",CHAR(13),CHAR(10)," disconnect-signal busy-tone",CHAR(13),CHAR(10)," dial-after timeout 1") -> interface fxo IF_FXO_17 route call dest-interface IF_SIP_17 loop-break-duration min 200 max 1000 ring-number on-caller-id mute-dialing disconnect-signal loop-break disconnect-signal busy-tone dial-after timeout 1
A193: 192 | B193: =+IF(Data!$C$5>ROW(Generic!B193)-ROW(Generic!$B$176),"","#") -> # | C193: =+CONCATENATE(" interface fxo IF_FXO_",'Line Table'!A19,CHAR(13),CHAR(10)," route call dest-interface IF_SIP_",'Line Table'!A19,CHAR(13),CHAR(10)," loop-break-duration min 200 max 1000",CHAR(13),CHAR(10)," ",'Line Table'!D19,CHAR(13),CHAR(10)," mute-dialing",CHAR(13),CHAR(10)," disconnect-signal loop-break",CHAR(13),CHAR(10)," disconnect-signal busy-tone",CHAR(13),CHAR(10)," dial-after timeout 1") -> interface fxo IF_FXO_18 route call dest-interface IF_SIP_18 loop-break-duration min 200 max 1000 ring-number on-caller-id mute-dialing disconnect-signal loop-break disconnect-signal busy-tone dial-after timeout 1
A194: 193 | B194: =+IF(Data!$C$5>ROW(Generic!B194)-ROW(Generic!$B$176),"","#") -> # | C194: =+CONCATENATE(" interface fxo IF_FXO_",'Line Table'!A20,CHAR(13),CHAR(10)," route call dest-interface IF_SIP_",'Line Table'!A20,CHAR(13),CHAR(10)," loop-break-duration min 200 max 1000",CHAR(13),CHAR(10)," ",'Line Table'!D20,CHAR(13),CHAR(10)," mute-dialing",CHAR(13),CHAR(10)," disconnect-signal loop-break",CHAR(13),CHAR(10)," disconnect-signal busy-tone",CHAR(13),CHAR(10)," dial-after timeout 1") -> interface fxo IF_FXO_19 route call dest-interface IF_SIP_19 loop-break-duration min 200 max 1000 ring-number on-caller-id mute-dialing disconnect-signal loop-break disconnect-signal busy-tone dial-after timeout 1
A195: 194 | B195: =+IF(Data!$C$5>ROW(Generic!B195)-ROW(Generic!$B$176),"","#") -> # | C195: =+CONCATENATE(" interface fxo IF_FXO_",'Line Table'!A21,CHAR(13),CHAR(10)," route call dest-interface IF_SIP_",'Line Table'!A21,CHAR(13),CHAR(10)," loop-break-duration min 200 max 1000",CHAR(13),CHAR(10)," ",'Line Table'!D21,CHAR(13),CHAR(10)," mute-dialing",CHAR(13),CHAR(10)," disconnect-signal loop-break",CHAR(13),CHAR(10)," disconnect-signal busy-tone",CHAR(13),CHAR(10)," dial-after timeout 1") -> interface fxo IF_FXO_20 route call dest-interface IF_SIP_20 loop-break-duration min 200 max 1000 ring-number on-caller-id mute-dialing disconnect-signal loop-break disconnect-signal busy-tone dial-after timeout 1
A196: 195 | B196: =+IF(Data!$C$5>ROW(Generic!B196)-ROW(Generic!$B$176),"","#") -> # | C196: =+CONCATENATE(" interface fxo IF_FXO_",'Line Table'!A22,CHAR(13),CHAR(10)," route call dest-interface IF_SIP_",'Line Table'!A22,CHAR(13),CHAR(10)," loop-break-duration min 200 max 1000",CHAR(13),CHAR(10)," ",'Line Table'!D22,CHAR(13),CHAR(10)," mute-dialing",CHAR(13),CHAR(10)," disconnect-signal loop-break",CHAR(13),CHAR(10)," disconnect-signal busy-tone",CHAR(13),CHAR(10)," dial-after timeout 1") -> interface fxo IF_FXO_21 route call dest-interface IF_SIP_21 loop-break-duration min 200 max 1000 ring-number on-caller-id mute-dialing disconnect-signal loop-break disconnect-signal busy-tone dial-after timeout 1
A197: 196 | B197: =+IF(Data!$C$5>ROW(Generic!B197)-ROW(Generic!$B$176),"","#") -> # | C197: =+CONCATENATE(" interface fxo IF_FXO_",'Line Table'!A23,CHAR(13),CHAR(10)," route call dest-interface IF_SIP_",'Line Table'!A23,CHAR(13),CHAR(10)," loop-break-duration min 200 max 1000",CHAR(13),CHAR(10)," ",'Line Table'!D23,CHAR(13),CHAR(10)," mute-dialing",CHAR(13),CHAR(10)," disconnect-signal loop-break",CHAR(13),CHAR(10)," disconnect-signal busy-tone",CHAR(13),CHAR(10)," dial-after timeout 1") -> interface fxo IF_FXO_22 route call dest-interface IF_SIP_22 loop-break-duration min 200 max 1000 ring-number on-caller-id mute-dialing disconnect-signal loop-break disconnect-signal busy-tone dial-after timeout 1
A198: 197 | B198: =+IF(Data!$C$5>ROW(Generic!B198)-ROW(Generic!$B$176),"","#") -> # | C198: =+CONCATENATE(" interface fxo IF_FXO_",'Line Table'!A24,CHAR(13),CHAR(10)," route call dest-interface IF_SIP_",'Line Table'!A24,CHAR(13),CHAR(10)," loop-break-duration min 200 max 1000",CHAR(13),CHAR(10)," ",'Line Table'!D24,CHAR(13),CHAR(10)," mute-dialing",CHAR(13),CHAR(10)," disconnect-signal loop-break",CHAR(13),CHAR(10)," disconnect-signal busy-tone",CHAR(13),CHAR(10)," dial-after timeout 1") -> interface fxo IF_FXO_23 route call dest-interface IF_SIP_23 loop-break-duration min 200 max 1000 ring-number on-caller-id mute-dialing disconnect-signal loop-break disconnect-signal busy-tone dial-after timeout 1
A199: 198 | B199: =+IF(Data!$C$5>ROW(Generic!B199)-ROW(Generic!$B$176),"","#") -> # | C199: =+CONCATENATE(" interface fxo IF_FXO_",'Line Table'!A25,CHAR(13),CHAR(10)," route call dest-interface IF_SIP_",'Line Table'!A25,CHAR(13),CHAR(10)," loop-break-duration min 200 max 1000",CHAR(13),CHAR(10)," ",'Line Table'!D25,CHAR(13),CHAR(10)," mute-dialing",CHAR(13),CHAR(10)," disconnect-signal loop-break",CHAR(13),CHAR(10)," disconnect-signal busy-tone",CHAR(13),CHAR(10)," dial-after timeout 1") -> interface fxo IF_FXO_24 route call dest-interface IF_SIP_24 loop-break-duration min 200 max 1000 ring-number on-caller-id mute-dialing disconnect-signal loop-break disconnect-signal busy-tone dial-after timeout 1
A200: 199 | B200: =+IF(Data!$C$5>ROW(Generic!B200)-ROW(Generic!$B$176),"","#") -> # | C200: =+CONCATENATE(" interface fxo IF_FXO_",'Line Table'!A26,CHAR(13),CHAR(10)," route call dest-interface IF_SIP_",'Line Table'!A26,CHAR(13),CHAR(10)," loop-break-duration min 200 max 1000",CHAR(13),CHAR(10)," ",'Line Table'!D26,CHAR(13),CHAR(10)," mute-dialing",CHAR(13),CHAR(10)," disconnect-signal loop-break",CHAR(13),CHAR(10)," disconnect-signal busy-tone",CHAR(13),CHAR(10)," dial-after timeout 1") -> interface fxo IF_FXO_25 route call dest-interface IF_SIP_25 loop-break-duration min 200 max 1000 ring-number on-caller-id mute-dialing disconnect-signal loop-break disconnect-signal busy-tone dial-after timeout 1
... 309 more rows

Sheet Brekeke (hidden)
A1: LINE # | B1: DISCARD (#) | C1: COMMAND | D1: Column1
A2: 1 | C2: ####################################################################################
A3: 2 | C3: =+CONCATENATE("# Configuration file for SmartNode with: ",Data!C5," FXO and ", Data!C6," FXS") -> # Configuration file for SmartNode with: 12 FXO and 0 FXS
A4: 3 | C4: =+IF(Data!C7="Y","# With 2 ethernet ports","# With one ethernet port") -> # With one ethernet port
A5: 4 | C5: =+CONCATENATE("# Configuration file name is ",Data!C11) -> # Configuration file name is PattonSample
A6: 5 | C6: # Brekeke IPPBX
A7: 6 | C7: ####################################################################################
A8: 7 | C8: =+CONCATENATE("# ",Data!B14," ",Data!C14) -> # LAN Interface Data
A9: 8 | C9: =+CONCATENATE("# ",Data!B15," ",Data!C15) -> # IP Address 10.10.1.10
A10: 9 | C10: =+CONCATENATE("# ",Data!B16," ",Data!C16) -> # IP Mask 255.255.255.0
A11: 10 | C11: ####################################################################################
A12: 11 | C12: =+CONCATENATE("# ",Data!B18," ",Data!C18) -> # WAN Interface Data
A13: 12 | C13: =+CONCATENATE("# ",Data!B19," ",Data!C19) -> # IP Address dhcp
A14: 13 | C14: =+CONCATENATE("# ",Data!B20," ",Data!C20) -> # IP Mask
A15: 14 | C15: ####################################################################################
A16: 15 | C16: =+CONCATENATE("# ",Data!B22," ",Data!C22) -> # Default Gateway
A17: 16 | C17: ####################################################################################
A18: 17 | C18: =+CONCATENATE("# ",Data!B23," ",Data!C23) -> # IP-PBX/SIP PROXY DATA
A19: 18 | C19: =+CONCATENATE("# ",Data!B24," ",Data!C24) -> # IP-PBX Ip Address / Name / Domain 10.10.50.23
A20: 19 | C20: =+CONCATENATE("# ",Data!B25," ",Data!C25) -> # IP-PBX SIP Port 5060
A21: 20 | C21: ####################################################################################
A22: 21 | C22: =+CONCATENATE("# ",Data!B27," ",Data!C27) -> # LOCALIZATION DATA
A23: 22 | C23: =+CONCATENATE("# ",Data!B28," ",Data!C28) -> # Country United States
A24: 23 | C24: ####################################################################################
A25: 24 | C25: # Supported firmware versions R5.x
A26: 25 | C26: =+CONCATENATE("# Tool version ",Data!$C$4) -> # Tool version V2_1 06222011
A27: 26 | C27: # Adapted: Ernesto Casas
A28: 27 | C28: # for comments, feedback or suggestions please send an email to: ecasas@patton.com
A29: 28 | C29: ####################################################################################
A30: 29
A31: 30 | C31: webserver port 80 language en
A32: 31 | C32: =+CONCATENATE("sntp-client server ",Data!C9) -> sntp-client server 1.1.1.1
A33: 32 | B33: =+IF(Data!C10="","#","") ->  | C33: =+CONCATENATE("dns-client server ",Data!C10) -> dns-client server 8.8.8.8
A34: 33
A35: 34 | C35: system
A36: 35 | C36: ic voice 0
A37: 36 | C37: low-bitrate-codec g729
A38: 37 | C38: profile ppp default
A39: 38
A40: 39 | B40: =+IF(Data!$C$5>ROW(Brekeke!B40)-ROW(Brekeke!$B$477),"","#") ->  | C40: =+CONCATENATE("# Call Progress tones based on country selection. Your selected country is: ",Data!$C$28) -> # Call Progress tones based on country selection. Your selected country is: United States
A41: 40
A42: 41 | C42: =+Data!$C$30 -> profile call-progress-tone defaultDialtone flush-play-list play 1 1000 350 -13 440 -13 profile call-progress-tone defaultAlertingtone flush-play-list play 1 1000 440 -19 480 -19 pause 2 3000 profile call-progress-tone defaultBusytone flush-play-list play 1 500 480 -24 620 -24 pause 2 500 profile call-progress-tone defaultReleasetone flush-play-list play 1 250 480 -24 620 -24 pause 2 250 profile call-progress-tone defaultCongestiontone flush-play-list play 1 250 480 -24 620 -24 pause 2 250
A43: 42 | B43: =+IF(Data!$C$5>ROW(Brekeke!B43)-ROW(Brekeke!$B$477),"","#") -> 
A44: 43 | C44: profile tone-set default
A45: 44 | C45: profile voip default
A46: 45 | C46: codec 1 g711alaw64k rx-length 20 tx-length 20
A47: 46 | C47: codec 2 g711ulaw64k rx-length 20 tx-length 20
A48: 47 | C48: fax transmission 1 relay t38-udp
A49: 48 | C49: fax transmission 2 bypass g711alaw64k
A50: 49 | C50: profile pstn default
A51: 50 | C51: profile sip default
A52: 51 | C52: profile aaa default
A53: 52 | C53: method 1 local
A54: 53 | C54: method 2 none
A55: 54
A56: 55 | C56: context ip router
A57: 56 | C57: interface IF_IP_LAN
A58: 57 | C58: =+CONCATENATE(" ipaddress ",Data!C15," ",Data!C16) -> ipaddress 10.10.1.10 255.255.255.0
A59: 58 | C59: tcp adjust-mss rx mtu
A60: 59 | C60: tcp adjust-mss tx mtu
A61: 60
A62: 61 | C62: interface IF_IP_WAN
A63: 62 | C63: =+CONCATENATE(" ipaddress ",Data!C19," ",Data!C20) -> ipaddress dhcp
A64: 63 | C64: tcp adjust-mss rx mtu
A65: 64 | C65: tcp adjust-mss tx mtu
A66: 65
A67: 66 | C67: context ip router
A68: 67 | C68: =+CONCATENATE(" route 0.0.0.0 0.0.0.0 ",Data!C22) -> route 0.0.0.0 0.0.0.0
A69: 68 | C69: context cs switch
A70: 69 | C70: =+IF(Data!C38=""," no digit-collection timeout",+CONCATENATE(" digit-collection timeout ",Data!C38)) -> digit-collection timeout 2
A71: 70
A72: 71 | B72: =+IF(Data!$C$6>0," ","#") -> # | C72: routing-table called-e164 RT_DIGITCOLLECTION
A73: 72 | B73: =+IF(Data!$C$6>0," ","#") -> # | C73: route .T dest-interface IF_SIP_PBX MT_EXT_TO_NAME
A74: 73
A75: 74 | B75: =+IF(Data!$C$6>0," ","#") -> # | C75: routing-table called-e164 RT_TO_FXS
A76: 75 | B76: =+IF(Data!$C$6>ROW(Brekeke!B76)-ROW(Brekeke!$B$76),"","#") -> # | C76: =+CONCATENATE(" route ",'Extension Table'!A2," dest-interface IF_FXS_",'Extension Table'!C2) -> route 101 dest-interface IF_FXS_1
A77: 76 | B77: =+IF(Data!$C$6>ROW(Brekeke!B77)-ROW(Brekeke!$B$76),"","#") -> # | C77: =+CONCATENATE(" route ",'Extension Table'!A3," dest-interface IF_FXS_",'Extension Table'!C3) -> route 102 dest-interface IF_FXS_2
A78: 77 | B78: =+IF(Data!$C$6>ROW(Brekeke!B78)-ROW(Brekeke!$B$76),"","#") -> # | C78: =+CONCATENATE(" route ",'Extension Table'!A4," dest-interface IF_FXS_",'Extension Table'!C4) -> route 103 dest-interface IF_FXS_3
A79: 78 | B79: =+IF(Data!$C$6>ROW(Brekeke!B79)-ROW(Brekeke!$B$76),"","#") -> # | C79: =+CONCATENATE(" route ",'Extension Table'!A5," dest-interface IF_FXS_",'Extension Table'!C5) -> route 104 dest-interface IF_FXS_4
A80: 79 | B80: =+IF(Data!$C$6>ROW(Brekeke!B80)-ROW(Brekeke!$B$76),"","#") -> # | C80: =+CONCATENATE(" route ",'Extension Table'!A6," dest-interface IF_FXS_",'Extension Table'!C6) -> route 105 dest-interface IF_FXS_5
A81: 80 | B81: =+IF(Data!$C$6>ROW(Brekeke!B81)-ROW(Brekeke!$B$76),"","#") -> # | C81: =+CONCATENATE(" route ",'Extension Table'!A7," dest-interface IF_FXS_",'Extension Table'!C7) -> route 106 dest-interface IF_FXS_6
A82: 81 | B82: =+IF(Data!$C$6>ROW(Brekeke!B82)-ROW(Brekeke!$B$76),"","#") -> # | C82: =+CONCATENATE(" route ",'Extension Table'!A8," dest-interface IF_FXS_",'Extension Table'!C8) -> route 107 dest-interface IF_FXS_7
A83: 82 | B83: =+IF(Data!$C$6>ROW(Brekeke!B83)-ROW(Brekeke!$B$76),"","#") -> # | C83: =+CONCATENATE(" route ",'Extension Table'!A9," dest-interface IF_FXS_",'Extension Table'!C9) -> route 108 dest-interface IF_FXS_8
A84: 83 | B84: =+IF(Data!$C$6>ROW(Brekeke!B84)-ROW(Brekeke!$B$76),"","#") -> # | C84: =+CONCATENATE(" route ",'Extension Table'!A10," dest-interface IF_FXS_",'Extension Table'!C10) -> route 109 dest-interface IF_FXS_9
A85: 84 | B85: =+IF(Data!$C$6>ROW(Brekeke!B85)-ROW(Brekeke!$B$76),"","#") -> # | C85: =+CONCATENATE(" route ",'Extension Table'!A11," dest-interface IF_FXS_",'Extension Table'!C11) -> route 110 dest-interface IF_FXS_10
A86: 85 | B86: =+IF(Data!$C$6>ROW(Brekeke!B86)-ROW(Brekeke!$B$76),"","#") -> # | C86: =+CONCATENATE(" route ",'Extension Table'!A12," dest-interface IF_FXS_",'Extension Table'!C12) -> route 111 dest-interface IF_FXS_11
A87: 86 | B87: =+IF(Data!$C$6>ROW(Brekeke!B87)-ROW(Brekeke!$B$76),"","#") -> # | C87: =+CONCATENATE(" route ",'Extension Table'!A13," dest-interface IF_FXS_",'Extension Table'!C13) -> route 112 dest-interface IF_FXS_12
A88: 87 | B88: =+IF(Data!$C$6>ROW(Brekeke!B88)-ROW(Brekeke!$B$76),"","#") -> # | C88: =+CONCATENATE(" route ",'Extension Table'!A14," dest-interface IF_FXS_",'Extension Table'!C14) -> route 113 dest-interface IF_FXS_13
A89: 88 | B89: =+IF(Data!$C$6>ROW(Brekeke!B89)-ROW(Brekeke!$B$76),"","#") -> # | C89: =+CONCATENATE(" route ",'Extension Table'!A15," dest-interface IF_FXS_",'Extension Table'!C15) -> route 114 dest-interface IF_FXS_14
A90: 89 | B90: =+IF(Data!$C$6>ROW(Brekeke!B90)-ROW(Brekeke!$B$76),"","#") -> # | C90: =+CONCATENATE(" route ",'Extension Table'!A16," dest-interface IF_FXS_",'Extension Table'!C16) -> route 115 dest-interface IF_FXS_15
A91: 90 | B91: =+IF(Data!$C$6>ROW(Brekeke!B91)-ROW(Brekeke!$B$76),"","#") -> # | C91: =+CONCATENATE(" route ",'Extension Table'!A17," dest-interface IF_FXS_",'Extension Table'!C17) -> route 116 dest-interface IF_FXS_16
A92: 91 | B92: =+IF(Data!$C$6>ROW(Brekeke!B92)-ROW(Brekeke!$B$76),"","#") -> # | C92: =+CONCATENATE(" route ",'Extension Table'!A18," dest-interface IF_FXS_",'Extension Table'!C18) -> route 117 dest-interface IF_FXS_17
A93: 92 | B93: =+IF(Data!$C$6>ROW(Brekeke!B93)-ROW(Brekeke!$B$76),"","#") -> # | C93: =+CONCATENATE(" route ",'Extension Table'!A19," dest-interface IF_FXS_",'Extension Table'!C19) -> route 118 dest-interface IF_FXS_18
A94: 93 | B94: =+IF(Data!$C$6>ROW(Brekeke!B94)-ROW(Brekeke!$B$76),"","#") -> # | C94: =+CONCATENATE(" route ",'Extension Table'!A20," dest-interface IF_FXS_",'Extension Table'!C20) -> route 119 dest-interface IF_FXS_19
A95: 94 | B95: =+IF(Data!$C$6>ROW(Brekeke!B95)-ROW(Brekeke!$B$76),"","#") -> # | C95: =+CONCATENATE(" route ",'Extension Table'!A21," dest-interface IF_FXS_",'Extension Table'!C21) -> route 120 dest-interface IF_FXS_20
A96: 95 | B96: =+IF(Data!$C$6>ROW(Brekeke!B96)-ROW(Brekeke!$B$76),"","#") -> # | C96: =+CONCATENATE(" route ",'Extension Table'!A22," dest-interface IF_FXS_",'Extension Table'!C22) -> route 121 dest-interface IF_FXS_21
A97: 96 | B97: =+IF(Data!$C$6>ROW(Brekeke!B97)-ROW(Brekeke!$B$76),"","#") -> # | C97: =+CONCATENATE(" route ",'Extension Table'!A23," dest-interface IF_FXS_",'Extension Table'!C23) -> route 122 dest-interface IF_FXS_22
A98: 97 | B98: =+IF(Data!$C$6>ROW(Brekeke!B98)-ROW(Brekeke!$B$76),"","#") -> # | C98: =+CONCATENATE(" route ",'Extension Table'!A24," dest-interface IF_FXS_",'Extension Table'!C24) -> route 123 dest-interface IF_FXS_23
A99: 98 | B99: =+IF(Data!$C$6>ROW(Brekeke!B99)-ROW(Brekeke!$B$76),"","#") -> # | C99: =+CONCATENATE(" route ",'Extension Table'!A25," dest-interface IF_FXS_",'Extension Table'!C25) -> route 124 dest-interface IF_FXS_24
A100: 99 | B100: =+IF(Data!$C$6>ROW(Brekeke!B100)-ROW(Brekeke!$B$76),"","#") -> # | C100: =+CONCATENATE(" route ",'Extension Table'!A26," dest-interface IF_FXS_",'Extension Table'!C26) -> route 125 dest-interface IF_FXS_25
A101: 100 | B101: =+IF(Data!$C$6>ROW(Brekeke!B101)-ROW(Brekeke!$B$76),"","#") -> # | C101: =+CONCATENATE(" route ",'Extension Table'!A27," dest-interface IF_FXS_",'Extension Table'!C27) -> route 126 dest-interface IF_FXS_26
A102: 101 | B102: =+IF(Data!$C$6>ROW(Brekeke!B102)-ROW(Brekeke!$B$76),"","#") -> # | C102: =+CONCATENATE(" route ",'Extension Table'!A28," dest-interface IF_FXS_",'Extension Table'!C28) -> route 127 dest-interface IF_FXS_27
A103: 102 | B103: =+IF(Data!$C$6>ROW(Brekeke!B103)-ROW(Brekeke!$B$76),"","#") -> # | C103: =+CONCATENATE(" route ",'Extension Table'!A29," dest-interface IF_FXS_",'Extension Table'!C29) -> route 128 dest-interface IF_FXS_28
A104: 103 | B104: =+IF(Data!$C$6>ROW(Brekeke!B104)-ROW(Brekeke!$B$76),"","#") -> # | C104: =+CONCATENATE(" route ",'Extension Table'!A30," dest-interface IF_FXS_",'Extension Table'!C30) -> route 129 dest-interface IF_FXS_29
A105: 104 | B105: =+IF(Data!$C$6>ROW(Brekeke!B105)-ROW(Brekeke!$B$76),"","#") -> # | C105: =+CONCATENATE(" route ",'Extension Table'!A31," dest-interface IF_FXS_",'Extension Table'!C31) -> route 130 dest-interface IF_FXS_30
A106: 105 | B106: =+IF(Data!$C$6>ROW(Brekeke!B106)-ROW(Brekeke!$B$76),"","#") -> # | C106: =+CONCATENATE(" route ",'Extension Table'!A32," dest-interface IF_FXS_",'Extension Table'!C32) -> route 131 dest-interface IF_FXS_31
A107: 106 | B107: =+IF(Data!$C$6>ROW(Brekeke!B107)-ROW(Brekeke!$B$76),"","#") -> # | C107: =+CONCATENATE(" route ",'Extension Table'!A33," dest-interface IF_FXS_",'Extension Table'!C33) -> route 132 dest-interface IF_FXS_32
A108: 107
A109: 108 | B109: =+IF(Data!$C$6>0," ","#") -> # | C109: mapping-table calling-e164 to calling-name MT_EXT_TO_NAME
A110: 109 | B110: =+IF(Data!$C$6>ROW(Brekeke!B110)-ROW(Brekeke!$B$110),"","#") -> # | C110: =+CONCATENATE(" map ",'Extension Table'!A2," to """,'Extension Table'!D2," ",'Extension Table'!E2,"""") -> map 101 to "Fname user 1 Lname user 1"
A111: 110 | B111: =+IF(Data!$C$6>ROW(Brekeke!B111)-ROW(Brekeke!$B$110),"","#") -> # | C111: =+CONCATENATE(" map ",'Extension Table'!A3," to """,'Extension Table'!D3," ",'Extension Table'!E3,"""") -> map 102 to "Fname user 2 Lname user 2"
A112: 111 | B112: =+IF(Data!$C$6>ROW(Brekeke!B112)-ROW(Brekeke!$B$110),"","#") -> # | C112: =+CONCATENATE(" map ",'Extension Table'!A4," to """,'Extension Table'!D4," ",'Extension Table'!E4,"""") -> map 103 to " "
A113: 112 | B113: =+IF(Data!$C$6>ROW(Brekeke!B113)-ROW(Brekeke!$B$110),"","#") -> # | C113: =+CONCATENATE(" map ",'Extension Table'!A5," to """,'Extension Table'!D5," ",'Extension Table'!E5,"""") -> map 104 to " "
A114: 113 | B114: =+IF(Data!$C$6>ROW(Brekeke!B114)-ROW(Brekeke!$B$110),"","#") -> # | C114: =+CONCATENATE(" map ",'Extension Table'!A6," to """,'Extension Table'!D6," ",'Extension Table'!E6,"""") -> map 105 to " "
A115: 114 | B115: =+IF(Data!$C$6>ROW(Brekeke!B115)-ROW(Brekeke!$B$110),"","#") -> # | C115: =+CONCATENATE(" map ",'Extension Table'!A7," to """,'Extension Table'!D7," ",'Extension Table'!E7,"""") -> map 106 to " "
A116: 115 | B116: =+IF(Data!$C$6>ROW(Brekeke!B116)-ROW(Brekeke!$B$110),"","#") -> # | C116: =+CONCATENATE(" map ",'Extension Table'!A8," to """,'Extension Table'!D8," ",'Extension Table'!E8,"""") -> map 107 to " "
A117: 116 | B117: =+IF(Data!$C$6>ROW(Brekeke!B117)-ROW(Brekeke!$B$110),"","#") -> # | C117: =+CONCATENATE(" map ",'Extension Table'!A9," to """,'Extension Table'!D9," ",'Extension Table'!E9,"""") -> map 108 to " "
A118: 117 | B118: =+IF(Data!$C$6>ROW(Brekeke!B118)-ROW(Brekeke!$B$110),"","#") -> # | C118: =+CONCATENATE(" map ",'Extension Table'!A10," to """,'Extension Table'!D10," ",'Extension Table'!E10,"""") -> map 109 to " "
A119: 118 | B119: =+IF(Data!$C$6>ROW(Brekeke!B119)-ROW(Brekeke!$B$110),"","#") -> # | C119: =+CONCATENATE(" map ",'Extension Table'!A11," to """,'Extension Table'!D11," ",'Extension Table'!E11,"""") -> map 110 to " "
A120: 119 | B120: =+IF(Data!$C$6>ROW(Brekeke!B120)-ROW(Brekeke!$B$110),"","#") -> # | C120: =+CONCATENATE(" map ",'Extension Table'!A12," to """,'Extension Table'!D12," ",'Extension Table'!E12,"""") -> map 111 to " "
A121: 120 | B121: =+IF(Data!$C$6>ROW(Brekeke!B121)-ROW(Brekeke!$B$110),"","#") -> # | C121: =+CONCATENATE(" map ",'Extension Table'!A13," to """,'Extension Table'!D13," ",'Extension Table'!E13,"""") -> map 112 to " "
A122: 121 | B122: =+IF(Data!$C$6>ROW(Brekeke!B122)-ROW(Brekeke!$B$110),"","#") -> # | C122: =+CONCATENATE(" map ",'Extension Table'!A14," to """,'Extension Table'!D14," ",'Extension Table'!E14,"""") -> map 113 to " "
A123: 122 | B123: =+IF(Data!$C$6>ROW(Brekeke!B123)-ROW(Brekeke!$B$110),"","#") -> # | C123: =+CONCATENATE(" map ",'Extension Table'!A15," to """,'Extension Table'!D15," ",'Extension Table'!E15,"""") -> map 114 to " "
A124: 123 | B124: =+IF(Data!$C$6>ROW(Brekeke!B124)-ROW(Brekeke!$B$110),"","#") -> # | C124: =+CONCATENATE(" map ",'Extension Table'!A16," to """,'Extension Table'!D16," ",'Extension Table'!E16,"""") -> map 115 to " "
A125: 124 | B125: =+IF(Data!$C$6>ROW(Brekeke!B125)-ROW(Brekeke!$B$110),"","#") -> # | C125: =+CONCATENATE(" map ",'Extension Table'!A17," to """,'Extension Table'!D17," ",'Extension Table'!E17,"""") -> map 116 to " "
A126: 125 | B126: =+IF(Data!$C$6>ROW(Brekeke!B126)-ROW(Brekeke!$B$110),"","#") -> # | C126: =+CONCATENATE(" map ",'Extension Table'!A18," to """,'Extension Table'!D18," ",'Extension Table'!E18,"""") -> map 117 to " "
A127: 126 | B127: =+IF(Data!$C$6>ROW(Brekeke!B127)-ROW(Brekeke!$B$110),"","#") -> # | C127: =+CONCATENATE(" map ",'Extension Table'!A19," to """,'Extension Table'!D19," ",'Extension Table'!E19,"""") -> map 118 to " "
A128: 127 | B128: =+IF(Data!$C$6>ROW(Brekeke!B128)-ROW(Brekeke!$B$110),"","#") -> # | C128: =+CONCATENATE(" map ",'Extension Table'!A20," to """,'Extension Table'!D20," ",'Extension Table'!E20,"""") -> map 119 to " "
A129: 128 | B129: =+IF(Data!$C$6>ROW(Brekeke!B129)-ROW(Brekeke!$B$110),"","#") -> # | C129: =+CONCATENATE(" map ",'Extension Table'!A21," to """,'Extension Table'!D21," ",'Extension Table'!E21,"""") -> map 120 to " "
A130: 129 | B130: =+IF(Data!$C$6>ROW(Brekeke!B130)-ROW(Brekeke!$B$110),"","#") -> # | C130: =+CONCATENATE(" map ",'Extension Table'!A22," to """,'Extension Table'!D22," ",'Extension Table'!E22,"""") -> map 121 to " "
A131: 130 | B131: =+IF(Data!$C$6>ROW(Brekeke!B131)-ROW(Brekeke!$B$110),"","#") -> # | C131: =+CONCATENATE(" map ",'Extension Table'!A23," to """,'Extension Table'!D23," ",'Extension Table'!E23,"""") -> map 122 to " "
A132: 131 | B132: =+IF(Data!$C$6>ROW(Brekeke!B132)-ROW(Brekeke!$B$110),"","#") -> # | C132: =+CONCATENATE(" map ",'Extension Table'!A24," to """,'Extension Table'!D24," ",'Extension Table'!E24,"""") -> map 123 to " "
A133: 132 | B133: =+IF(Data!$C$6>ROW(Brekeke!B133)-ROW(Brekeke!$B$110),"","#") -> # | C133: =+CONCATENATE(" map ",'Extension Table'!A25," to """,'Extension Table'!D25," ",'Extension Table'!E25,"""") -> map 124 to " "
A134: 133 | B134: =+IF(Data!$C$6>ROW(Brekeke!B134)-ROW(Brekeke!$B$110),"","#") -> # | C134: =+CONCATENATE(" map ",'Extension Table'!A26," to """,'Extension Table'!D26," ",'Extension Table'!E26,"""") -> map 125 to " "
A135: 134 | B135: =+IF(Data!$C$6>ROW(Brekeke!B135)-ROW(Brekeke!$B$110),"","#") -> # | C135: =+CONCATENATE(" map ",'Extension Table'!A27," to """,'Extension Table'!D27," ",'Extension Table'!E27,"""") -> map 126 to " "
A136: 135 | B136: =+IF(Data!$C$6>ROW(Brekeke!B136)-ROW(Brekeke!$B$110),"","#") -> # | C136: =+CONCATENATE(" map ",'Extension Table'!A28," to """,'Extension Table'!D28," ",'Extension Table'!E28,"""") -> map 127 to " "
A137: 136 | B137: =+IF(Data!$C$6>ROW(Brekeke!B137)-ROW(Brekeke!$B$110),"","#") -> # | C137: =+CONCATENATE(" map ",'Extension Table'!A29," to """,'Extension Table'!D29," ",'Extension Table'!E29,"""") -> map 128 to " "
A138: 137 | B138: =+IF(Data!$C$6>ROW(Brekeke!B138)-ROW(Brekeke!$B$110),"","#") -> # | C138: =+CONCATENATE(" map ",'Extension Table'!A30," to """,'Extension Table'!D30," ",'Extension Table'!E30,"""") -> map 129 to " "
A139: 138 | B139: =+IF(Data!$C$6>ROW(Brekeke!B139)-ROW(Brekeke!$B$110),"","#") -> # | C139: =+CONCATENATE(" map ",'Extension Table'!A31," to """,'Extension Table'!D31," ",'Extension Table'!E31,"""") -> map 130 to " "
A140: 139 | B140: =+IF(Data!$C$6>ROW(Brekeke!B140)-ROW(Brekeke!$B$110),"","#") -> # | C140: =+CONCATENATE(" map ",'Extension Table'!A32," to """,'Extension Table'!D32," ",'Extension Table'!E32,"""") -> map 131 to " "
A141: 140 | B141: =+IF(Data!$C$6>ROW(Brekeke!B141)-ROW(Brekeke!$B$110),"","#") -> # | C141: =+CONCATENATE(" map ",'Extension Table'!A33," to """,'Extension Table'!D33," ",'Extension Table'!E33,"""") -> map 132 to " "
A142: 141
A143: 142 | B143: =+IF(Data!$C$5>ROW(Brekeke!B143)-ROW(Brekeke!$B$143),"","#") ->  | C143: =+CONCATENATE(" interface sip IF_SIP_",'Line Table'!A2,CHAR(13),CHAR(10),," bind context sip-gateway GW_SIP_",'Line Table'!A2,CHAR(13),CHAR(10),," ",+'Line Table'!C2,CHAR(13),CHAR(10),," early-disconnect",CHAR(13),CHAR(10),," route call dest-interface IF_FXO_",'Line Table'!A2,CHAR(13),CHAR(10),," remote ",Data!$C$24," ",Data!$C$25,CHAR(13),CHAR(10),," address-translation outgoing-call request-uri user-part fix ",'Line Table'!B2," host-part to-header target-param none",CHAR(13),CHAR(10),," address-translation incoming-call called-e164 request-uri",CHAR(13),CHAR(10),,CHAR(13),CHAR(10),) -> interface sip IF_SIP_1 bind context sip-gateway GW_SIP_1 early-connect early-disconnect route call dest-interface IF_FXO_1 remote 10.10.50.23 5060 address-translation outgoing-call request-uri user-part fix 10002 host-part to-header target-param none address-translation incoming-call called-e164 request-uri
A144: 143 | B144: =+IF(Data!$C$5>ROW(Brekeke!B144)-ROW(Brekeke!$B$143),"","#") ->  | C144: =+CONCATENATE(" interface sip IF_SIP_",'Line Table'!A3,CHAR(13),CHAR(10),," bind context sip-gateway GW_SIP_",'Line Table'!A3,CHAR(13),CHAR(10),," ",+'Line Table'!C3,CHAR(13),CHAR(10),," early-disconnect",CHAR(13),CHAR(10),," route call dest-interface IF_FXO_",'Line Table'!A3,CHAR(13),CHAR(10),," remote ",Data!$C$24," ",Data!$C$25,CHAR(13),CHAR(10),," address-translation outgoing-call request-uri user-part fix ",'Line Table'!B3," host-part to-header target-param none",CHAR(13),CHAR(10),," address-translation incoming-call called-e164 request-uri",CHAR(13),CHAR(10),,CHAR(13),CHAR(10),) -> interface sip IF_SIP_2 bind context sip-gateway GW_SIP_2 early-connect early-disconnect route call dest-interface IF_FXO_2 remote 10.10.50.23 5060 address-translation outgoing-call request-uri user-part fix 10003 host-part to-header target-param none address-translation incoming-call called-e164 request-uri
A145: 144 | B145: =+IF(Data!$C$5>ROW(Brekeke!B145)-ROW(Brekeke!$B$143),"","#") ->  | C145: =+CONCATENATE(" interface sip IF_SIP_",'Line Table'!A4,CHAR(13),CHAR(10),," bind context sip-gateway GW_SIP_",'Line Table'!A4,CHAR(13),CHAR(10),," ",+'Line Table'!C4,CHAR(13),CHAR(10),," early-disconnect",CHAR(13),CHAR(10),," route call dest-interface IF_FXO_",'Line Table'!A4,CHAR(13),CHAR(10),," remote ",Data!$C$24," ",Data!$C$25,CHAR(13),CHAR(10),," address-translation outgoing-call request-uri user-part fix ",'Line Table'!B4," host-part to-header target-param none",CHAR(13),CHAR(10),," address-translation incoming-call called-e164 request-uri",CHAR(13),CHAR(10),,CHAR(13),CHAR(10),) -> interface sip IF_SIP_3 bind context sip-gateway GW_SIP_3 early-connect early-disconnect route call dest-interface IF_FXO_3 remote 10.10.50.23 5060 address-translation outgoing-call request-uri user-part fix 10004 host-part to-header target-param none address-translation incoming-call called-e164 request-uri
A146: 145 | B146: =+IF(Data!$C$5>ROW(Brekeke!B146)-ROW(Brekeke!$B$143),"","#") ->  | C146: =+CONCATENATE(" interface sip IF_SIP_",'Line Table'!A5,CHAR(13),CHAR(10),," bind context sip-gateway GW_SIP_",'Line Table'!A5,CHAR(13),CHAR(10),," ",+'Line Table'!C5,CHAR(13),CHAR(10),," early-disconnect",CHAR(13),CHAR(10),," route call dest-interface IF_FXO_",'Line Table'!A5,CHAR(13),CHAR(10),," remote ",Data!$C$24," ",Data!$C$25,CHAR(13),CHAR(10),," address-translation outgoing-call request-uri user-part fix ",'Line Table'!B5," host-part to-header target-param none",CHAR(13),CHAR(10),," address-translation incoming-call called-e164 request-uri",CHAR(13),CHAR(10),,CHAR(13),CHAR(10),) -> interface sip IF_SIP_4 bind context sip-gateway GW_SIP_4 early-connect early-disconnect route call dest-interface IF_FXO_4 remote 10.10.50.23 5060 address-translation outgoing-call request-uri user-part fix 10005 host-part to-header target-param none address-translation incoming-call called-e164 request-uri
A147: 146 | B147: =+IF(Data!$C$5>ROW(Brekeke!B147)-ROW(Brekeke!$B$143),"","#") ->  | C147: =+CONCATENATE(" interface sip IF_SIP_",'Line Table'!A6,CHAR(13),CHAR(10),," bind context sip-gateway GW_SIP_",'Line Table'!A6,CHAR(13),CHAR(10),," ",+'Line Table'!C6,CHAR(13),CHAR(10),," early-disconnect",CHAR(13),CHAR(10),," route call dest-interface IF_FXO_",'Line Table'!A6,CHAR(13),CHAR(10),," remote ",Data!$C$24," ",Data!$C$25,CHAR(13),CHAR(10),," address-translation outgoing-call request-uri user-part fix ",'Line Table'!B6," host-part to-header target-param none",CHAR(13),CHAR(10),," address-translation incoming-call called-e164 request-uri",CHAR(13),CHAR(10),,CHAR(13),CHAR(10),) -> interface sip IF_SIP_5 bind context sip-gateway GW_SIP_5 early-connect early-disconnect route call dest-interface IF_FXO_5 remote 10.10.50.23 5060 address-translation outgoing-call request-uri user-part fix 10006 host-part to-header target-param none address-translation incoming-call called-e164 request-uri
A148: 147 | B148: =+IF(Data!$C$5>ROW(Brekeke!B148)-ROW(Brekeke!$B$143),"","#") ->  | C148: =+CONCATENATE(" interface sip IF_SIP_",'Line Table'!A7,CHAR(13),CHAR(10),," bind context sip-gateway GW_SIP_",'Line Table'!A7,CHAR(13),CHAR(10),," ",+'Line Table'!C7,CHAR(13),CHAR(10),," early-disconnect",CHAR(13),CHAR(10),," route call dest-interface IF_FXO_",'Line Table'!A7,CHAR(13),CHAR(10),," remote ",Data!$C$24," ",Data!$C$25,CHAR(13),CHAR(10),," address-translation outgoing-call request-uri user-part fix ",'Line Table'!B7," host-part to-header target-param none",CHAR(13),CHAR(10),," address-translation incoming-call called-e164 request-uri",CHAR(13),CHAR(10),,CHAR(13),CHAR(10),) -> interface sip IF_SIP_6 bind context sip-gateway GW_SIP_6 early-connect early-disconnect route call dest-interface IF_FXO_6 remote 10.10.50.23 5060 address-translation outgoing-call request-uri user-part fix 10007 host-part to-header target-param none address-translation incoming-call called-e164 request-uri
A149: 148 | B149: =+IF(Data!$C$5>ROW(Brekeke!B149)-ROW(Brekeke!$B$143),"","#") ->  | C149: =+CONCATENATE(" interface sip IF_SIP_",'Line Table'!A8,CHAR(13),CHAR(10),," bind context sip-gateway GW_SIP_",'Line Table'!A8,CHAR(13),CHAR(10),," ",+'Line Table'!C8,CHAR(13),CHAR(10),," early-disconnect",CHAR(13),CHAR(10),," route call dest-interface IF_FXO_",'Line Table'!A8,CHAR(13),CHAR(10),," remote ",Data!$C$24," ",Data!$C$25,CHAR(13),CHAR(10),," address-translation outgoing-call request-uri user-part fix ",'Line Table'!B8," host-part to-header target-param none",CHAR(13),CHAR(10),," address-translation incoming-call called-e164 request-uri",CHAR(13),CHAR(10),,CHAR(13),CHAR(10),) -> interface sip IF_SIP_7 bind context sip-gateway GW_SIP_7 early-connect early-disconnect route call dest-interface IF_FXO_7 remote 10.10.50.23 5060 address-translation outgoing-call request-uri user-part fix 10008 host-part to-header target-param none address-translation incoming-call called-e164 request-uri
A150: 149 | B150: =+IF(Data!$C$5>ROW(Brekeke!B150)-ROW(Brekeke!$B$143),"","#") ->  | C150: =+CONCATENATE(" interface sip IF_SIP_",'Line Table'!A9,CHAR(13),CHAR(10),," bind context sip-gateway GW_SIP_",'Line Table'!A9,CHAR(13),CHAR(10),," ",+'Line Table'!C9,CHAR(13),CHAR(10),," early-disconnect",CHAR(13),CHAR(10),," route call dest-interface IF_FXO_",'Line Table'!A9,CHAR(13),CHAR(10),," remote ",Data!$C$24," ",Data!$C$25,CHAR(13),CHAR(10),," address-translation outgoing-call request-uri user-part fix ",'Line Table'!B9," host-part to-header target-param none",CHAR(13),CHAR(10),," address-translation incoming-call called-e164 request-uri",CHAR(13),CHAR(10),,CHAR(13),CHAR(10),) -> interface sip IF_SIP_8 bind context sip-gateway GW_SIP_8 early-connect early-disconnect route call dest-interface IF_FXO_8 remote 10.10.50.23 5060 address-translation outgoing-call request-uri user-part fix 10009 host-part to-header target-param none address-translation incoming-call called-e164 request-uri
A151: 150 | B151: =+IF(Data!$C$5>ROW(Brekeke!B151)-ROW(Brekeke!$B$143),"","#") ->  | C151: =+CONCATENATE(" interface sip IF_SIP_",'Line Table'!A10,CHAR(13),CHAR(10),," bind context sip-gateway GW_SIP_",'Line Table'!A10,CHAR(13),CHAR(10),," ",+'Line Table'!C10,CHAR(13),CHAR(10),," early-disconnect",CHAR(13),CHAR(10),," route call dest-interface IF_FXO_",'Line Table'!A10,CHAR(13),CHAR(10),," remote ",Data!$C$24," ",Data!$C$25,CHAR(13),CHAR(10),," address-translation outgoing-call request-uri user-part fix ",'Line Table'!B10," host-part to-header target-param none",CHAR(13),CHAR(10),," address-translation incoming-call called-e164 request-uri",CHAR(13),CHAR(10),,CHAR(13),CHAR(10),) -> interface sip IF_SIP_9 bind context sip-gateway GW_SIP_9 early-connect early-disconnect route call dest-interface IF_FXO_9 remote 10.10.50.23 5060 address-translation outgoing-call request-uri user-part fix 10010 host-part to-header target-param none address-translation incoming-call called-e164 request-uri
A152: 151 | B152: =+IF(Data!$C$5>ROW(Brekeke!B152)-ROW(Brekeke!$B$143),"","#") ->  | C152: =+CONCATENATE(" interface sip IF_SIP_",'Line Table'!A11,CHAR(13),CHAR(10),," bind context sip-gateway GW_SIP_",'Line Table'!A11,CHAR(13),CHAR(10),," ",+'Line Table'!C11,CHAR(13),CHAR(10),," early-disconnect",CHAR(13),CHAR(10),," route call dest-interface IF_FXO_",'Line Table'!A11,CHAR(13),CHAR(10),," remote ",Data!$C$24," ",Data!$C$25,CHAR(13),CHAR(10),," address-translation outgoing-call request-uri user-part fix ",'Line Table'!B11," host-part to-header target-param none",CHAR(13),CHAR(10),," address-translation incoming-call called-e164 request-uri",CHAR(13),CHAR(10),,CHAR(13),CHAR(10),) -> interface sip IF_SIP_10 bind context sip-gateway GW_SIP_10 early-connect early-disconnect route call dest-interface IF_FXO_10 remote 10.10.50.23 5060 address-translation outgoing-call request-uri user-part fix 10011 host-part to-header target-param none address-translation incoming-call called-e164 request-uri
A153: 152 | B153: =+IF(Data!$C$5>ROW(Brekeke!B153)-ROW(Brekeke!$B$143),"","#") ->  | C153: =+CONCATENATE(" interface sip IF_SIP_",'Line Table'!A12,CHAR(13),CHAR(10),," bind context sip-gateway GW_SIP_",'Line Table'!A12,CHAR(13),CHAR(10),," ",+'Line Table'!C12,CHAR(13),CHAR(10),," early-disconnect",CHAR(13),CHAR(10),," route call dest-interface IF_FXO_",'Line Table'!A12,CHAR(13),CHAR(10),," remote ",Data!$C$24," ",Data!$C$25,CHAR(13),CHAR(10),," address-translation outgoing-call request-uri user-part fix ",'Line Table'!B12," host-part to-header target-param none",CHAR(13),CHAR(10),," address-translation incoming-call called-e164 request-uri",CHAR(13),CHAR(10),,CHAR(13),CHAR(10),) -> interface sip IF_SIP_11 bind context sip-gateway GW_SIP_11 early-connect early-disconnect route call dest-interface IF_FXO_11 remote 10.10.50.23 5060 address-translation outgoing-call request-uri user-part fix 10012 host-part to-header target-param none address-translation incoming-call called-e164 request-uri
A154: 153 | B154: =+IF(Data!$C$5>ROW(Brekeke!B154)-ROW(Brekeke!$B$143),"","#") ->  | C154: =+CONCATENATE(" interface sip IF_SIP_",'Line Table'!A13,CHAR(13),CHAR(10),," bind context sip-gateway GW_SIP_",'Line Table'!A13,CHAR(13),CHAR(10),," ",+'Line Table'!C13,CHAR(13),CHAR(10),," early-disconnect",CHAR(13),CHAR(10),," route call dest-interface IF_FXO_",'Line Table'!A13,CHAR(13),CHAR(10),," remote ",Data!$C$24," ",Data!$C$25,CHAR(13),CHAR(10),," address-translation outgoing-call request-uri user-part fix ",'Line Table'!B13," host-part to-header target-param none",CHAR(13),CHAR(10),," address-translation incoming-call called-e164 request-uri",CHAR(13),CHAR(10),,CHAR(13),CHAR(10),) -> interface sip IF_SIP_12 bind context sip-gateway GW_SIP_12 early-connect early-disconnect route call dest-interface IF_FXO_12 remote 10.10.50.23 5060 address-translation outgoing-call request-uri user-part fix 10013 host-part to-header target-param none address-translation incoming-call called-e164 request-uri
A155: 154 | B155: =+IF(Data!$C$5>ROW(Brekeke!B155)-ROW(Brekeke!$B$143),"","#") -> # | C155: =+CONCATENATE(" interface sip IF_SIP_",'Line Table'!A14,CHAR(13),CHAR(10),," bind context sip-gateway GW_SIP_",'Line Table'!A14,CHAR(13),CHAR(10),," ",+'Line Table'!C14,CHAR(13),CHAR(10),," early-disconnect",CHAR(13),CHAR(10),," route call dest-interface IF_FXO_",'Line Table'!A14,CHAR(13),CHAR(10),," remote ",Data!$C$24," ",Data!$C$25,CHAR(13),CHAR(10),," address-translation outgoing-call request-uri user-part fix ",'Line Table'!B14," host-part to-header target-param none",CHAR(13),CHAR(10),," address-translation incoming-call called-e164 request-uri",CHAR(13),CHAR(10),,CHAR(13),CHAR(10),) -> interface sip IF_SIP_13 bind context sip-gateway GW_SIP_13 early-connect early-disconnect route call dest-interface IF_FXO_13 remote 10.10.50.23 5060 address-translation outgoing-call request-uri user-part fix 10014 host-part to-header target-param none address-translation incoming-call called-e164 request-uri
A156: 155 | B156: =+IF(Data!$C$5>ROW(Brekeke!B156)-ROW(Brekeke!$B$143),"","#") -> # | C156: =+CONCATENATE(" interface sip IF_SIP_",'Line Table'!A15,CHAR(13),CHAR(10),," bind context sip-gateway GW_SIP_",'Line Table'!A15,CHAR(13),CHAR(10),," ",+'Line Table'!C15,CHAR(13),CHAR(10),," early-disconnect",CHAR(13),CHAR(10),," route call dest-interface IF_FXO_",'Line Table'!A15,CHAR(13),CHAR(10),," remote ",Data!$C$24," ",Data!$C$25,CHAR(13),CHAR(10),," address-translation outgoing-call request-uri user-part fix ",'Line Table'!B15," host-part to-header target-param none",CHAR(13),CHAR(10),," address-translation incoming-call called-e164 request-uri",CHAR(13),CHAR(10),,CHAR(13),CHAR(10),) -> interface sip IF_SIP_14 bind context sip-gateway GW_SIP_14 early-connect early-disconnect route call dest-interface IF_FXO_14 remote 10.10.50.23 5060 address-translation outgoing-call request-uri user-part fix 10015 host-part to-header target-param none address-translation incoming-call called-e164 request-uri
A157: 156 | B157: =+IF(Data!$C$5>ROW(Brekeke!B157)-ROW(Brekeke!$B$143),"","#") -> # | C157: =+CONCATENATE(" interface sip IF_SIP_",'Line Table'!A16,CHAR(13),CHAR(10),," bind context sip-gateway GW_SIP_",'Line Table'!A16,CHAR(13),CHAR(10),," ",+'Line Table'!C16,CHAR(13),CHAR(10),," early-disconnect",CHAR(13),CHAR(10),," route call dest-interface IF_FXO_",'Line Table'!A16,CHAR(13),CHAR(10),," remote ",Data!$C$24," ",Data!$C$25,CHAR(13),CHAR(10),," address-translation outgoing-call request-uri user-part fix ",'Line Table'!B16," host-part to-header target-param none",CHAR(13),CHAR(10),," address-translation incoming-call called-e164 request-uri",CHAR(13),CHAR(10),,CHAR(13),CHAR(10),) -> interface sip IF_SIP_15 bind context sip-gateway GW_SIP_15 early-connect early-disconnect route call dest-interface IF_FXO_15 remote 10.10.50.23 5060 address-translation outgoing-call request-uri user-part fix 10016 host-part to-header target-param none address-translation incoming-call called-e164 request-uri
A158: 157 | B158: =+IF(Data!$C$5>ROW(Brekeke!B158)-ROW(Brekeke!$B$143),"","#") -> # | C158: =+CONCATENATE(" interface sip IF_SIP_",'Line Table'!A17,CHAR(13),CHAR(10),," bind context sip-gateway GW_SIP_",'Line Table'!A17,CHAR(13),CHAR(10),," ",+'Line Table'!C17,CHAR(13),CHAR(10),," early-disconnect",CHAR(13),CHAR(10),," route call dest-interface IF_FXO_",'Line Table'!A17,CHAR(13),CHAR(10),," remote ",Data!$C$24," ",Data!$C$25,CHAR(13),CHAR(10),," address-translation outgoing-call request-uri user-part fix ",'Line Table'!B17," host-part to-header target-param none",CHAR(13),CHAR(10),," address-translation incoming-call called-e164 request-uri",CHAR(13),CHAR(10),,CHAR(13),CHAR(10),) -> interface sip IF_SIP_16 bind context sip-gateway GW_SIP_16 early-connect early-disconnect route call dest-interface IF_FXO_16 remote 10.10.50.23 5060 address-translation outgoing-call request-uri user-part fix 10017 host-part to-header target-param none address-translation incoming-call called-e164 request-uri
A159: 158 | B159: =+IF(Data!$C$5>ROW(Brekeke!B159)-ROW(Brekeke!$B$143),"","#") -> # | C159: =+CONCATENATE(" interface sip IF_SIP_",'Line Table'!A18,CHAR(13),CHAR(10),," bind context sip-gateway GW_SIP_",'Line Table'!A18,CHAR(13),CHAR(10),," ",+'Line Table'!C18,CHAR(13),CHAR(10),," early-disconnect",CHAR(13),CHAR(10),," route call dest-interface IF_FXO_",'Line Table'!A18,CHAR(13),CHAR(10),," remote ",Data!$C$24," ",Data!$C$25,CHAR(13),CHAR(10),," address-translation outgoing-call request-uri user-part fix ",'Line Table'!B18," host-part to-header target-param none",CHAR(13),CHAR(10),," address-translation incoming-call called-e164 request-uri",CHAR(13),CHAR(10),,CHAR(13),CHAR(10),) -> interface sip IF_SIP_17 bind context sip-gateway GW_SIP_17 early-connect early-disconnect route call dest-interface IF_FXO_17 remote 10.10.50.23 5060 address-translation outgoing-call request-uri user-part fix 10018 host-part to-header target-param none address-translation incoming-call called-e164 request-uri
A160: 159 | B160: =+IF(Data!$C$5>ROW(Brekeke!B160)-ROW(Brekeke!$B$143),"","#") -> # | C160: =+CONCATENATE(" interface sip IF_SIP_",'Line Table'!A19,CHAR(13),CHAR(10),," bind context sip-gateway GW_SIP_",'Line Table'!A19,CHAR(13),CHAR(10),," ",+'Line Table'!C19,CHAR(13),CHAR(10),," early-disconnect",CHAR(13),CHAR(10),," route call dest-interface IF_FXO_",'Line Table'!A19,CHAR(13),CHAR(10),," remote ",Data!$C$24," ",Data!$C$25,CHAR(13),CHAR(10),," address-translation outgoing-call request-uri user-part fix ",'Line Table'!B19," host-part to-header target-param none",CHAR(13),CHAR(10),," address-translation incoming-call called-e164 request-uri",CHAR(13),CHAR(10),,CHAR(13),CHAR(10),) -> interface sip IF_SIP_18 bind context sip-gateway GW_SIP_18 early-connect early-disconnect route call dest-interface IF_FXO_18 remote 10.10.50.23 5060 address-translation outgoing-call request-uri user-part fix 10019 host-part to-header target-param none address-translation incoming-call called-e164 request-uri
A161: 160 | B161: =+IF(Data!$C$5>ROW(Brekeke!B161)-ROW(Brekeke!$B$143),"","#") -> # | C161: =+CONCATENATE(" interface sip IF_SIP_",'Line Table'!A20,CHAR(13),CHAR(10),," bind context sip-gateway GW_SIP_",'Line Table'!A20,CHAR(13),CHAR(10),," ",+'Line Table'!C20,CHAR(13),CHAR(10),," early-disconnect",CHAR(13),CHAR(10),," route call dest-interface IF_FXO_",'Line Table'!A20,CHAR(13),CHAR(10),," remote ",Data!$C$24," ",Data!$C$25,CHAR(13),CHAR(10),," address-translation outgoing-call request-uri user-part fix ",'Line Table'!B20," host-part to-header target-param none",CHAR(13),CHAR(10),," address-translation incoming-call called-e164 request-uri",CHAR(13),CHAR(10),,CHAR(13),CHAR(10),) -> interface sip IF_SIP_19 bind context sip-gateway GW_SIP_19 early-connect early-disconnect route call dest-interface IF_FXO_19 remote 10.10.50.23 5060 address-translation outgoing-call request-uri user-part fix 10020 host-part to-header target-param none address-translation incoming-call called-e164 request-uri
A162: 161 | B162: =+IF(Data!$C$5>ROW(Brekeke!B162)-ROW(Brekeke!$B$143),"","#") -> # | C162: =+CONCATENATE(" interface sip IF_SIP_",'Line Table'!A21,CHAR(13),CHAR(10),," bind context sip-gateway GW_SIP_",'Line Table'!A21,CHAR(13),CHAR(10),," ",+'Line Table'!C21,CHAR(13),CHAR(10),," early-disconnect",CHAR(13),CHAR(10),," route call dest-interface IF_FXO_",'Line Table'!A21,CHAR(13),CHAR(10),," remote ",Data!$C$24," ",Data!$C$25,CHAR(13),CHAR(10),," address-translation outgoing-call request-uri user-part fix ",'Line Table'!B21," host-part to-header target-param none",CHAR(13),CHAR(10),," address-translation incoming-call called-e164 request-uri",CHAR(13),CHAR(10),,CHAR(13),CHAR(10),) -> interface sip IF_SIP_20 bind context sip-gateway GW_SIP_20 early-connect early-disconnect route call dest-interface IF_FXO_20 remote 10.10.50.23 5060 address-translation outgoing-call request-uri user-part fix 10021 host-part to-header target-param none address-translation incoming-call called-e164 request-uri
A163: 162 | B163: =+IF(Data!$C$5>ROW(Brekeke!B163)-ROW(Brekeke!$B$143),"","#") -> # | C163: =+CONCATENATE(" interface sip IF_SIP_",'Line Table'!A22,CHAR(13),CHAR(10),," bind context sip-gateway GW_SIP_",'Line Table'!A22,CHAR(13),CHAR(10),," ",+'Line Table'!C22,CHAR(13),CHAR(10),," early-disconnect",CHAR(13),CHAR(10),," route call dest-interface IF_FXO_",'Line Table'!A22,CHAR(13),CHAR(10),," remote ",Data!$C$24," ",Data!$C$25,CHAR(13),CHAR(10),," address-translation outgoing-call request-uri user-part fix ",'Line Table'!B22," host-part to-header target-param none",CHAR(13),CHAR(10),," address-translation incoming-call called-e164 request-uri",CHAR(13),CHAR(10),,CHAR(13),CHAR(10),) -> interface sip IF_SIP_21 bind context sip-gateway GW_SIP_21 early-connect early-disconnect route call dest-interface IF_FXO_21 remote 10.10.50.23 5060 address-translation outgoing-call request-uri user-part fix 10022 host-part to-header target-param none address-translation incoming-call called-e164 request-uri
A164: 163 | B164: =+IF(Data!$C$5>ROW(Brekeke!B164)-ROW(Brekeke!$B$143),"","#") -> # | C164: =+CONCATENATE(" interface sip IF_SIP_",'Line Table'!A23,CHAR(13),CHAR(10),," bind context sip-gateway GW_SIP_",'Line Table'!A23,CHAR(13),CHAR(10),," ",+'Line Table'!C23,CHAR(13),CHAR(10),," early-disconnect",CHAR(13),CHAR(10),," route call dest-interface IF_FXO_",'Line Table'!A23,CHAR(13),CHAR(10),," remote ",Data!$C$24," ",Data!$C$25,CHAR(13),CHAR(10),," address-translation outgoing-call request-uri user-part fix ",'Line Table'!B23," host-part to-header target-param none",CHAR(13),CHAR(10),," address-translation incoming-call called-e164 request-uri",CHAR(13),CHAR(10),,CHAR(13),CHAR(10),) -> interface sip IF_SIP_22 bind context sip-gateway GW_SIP_22 early-connect early-disconnect route call dest-interface IF_FXO_22 remote 10.10.50.23 5060 address-translation outgoing-call request-uri user-part fix 10023 host-part to-header target-param none address-translation incoming-call called-e164 request-uri
A165: 164 | B165: =+IF(Data!$C$5>ROW(Brekeke!B165)-ROW(Brekeke!$B$143),"","#") -> # | C165: =+CONCATENATE(" interface sip IF_SIP_",'Line Table'!A24,CHAR(13),CHAR(10),," bind context sip-gateway GW_SIP_",'Line Table'!A24,CHAR(13),CHAR(10),," ",+'Line Table'!C24,CHAR(13),CHAR(10),," early-disconnect",CHAR(13),CHAR(10),," route call dest-interface IF_FXO_",'Line Table'!A24,CHAR(13),CHAR(10),," remote ",Data!$C$24," ",Data!$C$25,CHAR(13),CHAR(10),," address-translation outgoing-call request-uri user-part fix ",'Line Table'!B24," host-part to-header target-param none",CHAR(13),CHAR(10),," address-translation incoming-call called-e164 request-uri",CHAR(13),CHAR(10),,CHAR(13),CHAR(10),) -> interface sip IF_SIP_23 bind context sip-gateway GW_SIP_23 early-connect early-disconnect route call dest-interface IF_FXO_23 remote 10.10.50.23 5060 address-translation outgoing-call request-uri user-part fix 10024 host-part to-header target-param none address-translation incoming-call called-e164 request-uri
A166: 165 | B166: =+IF(Data!$C$5>ROW(Brekeke!B166)-ROW(Brekeke!$B$143),"","#") -> # | C166: =+CONCATENATE(" interface sip IF_SIP_",'Line Table'!A25,CHAR(13),CHAR(10),," bind context sip-gateway GW_SIP_",'Line Table'!A25,CHAR(13),CHAR(10),," ",+'Line Table'!C25,CHAR(13),CHAR(10),," early-disconnect",CHAR(13),CHAR(10),," route call dest-interface IF_FXO_",'Line Table'!A25,CHAR(13),CHAR(10),," remote ",Data!$C$24," ",Data!$C$25,CHAR(13),CHAR(10),," address-translation outgoing-call request-uri user-part fix ",'Line Table'!B25," host-part to-header target-param none",CHAR(13),CHAR(10),," address-translation incoming-call called-e164 request-uri",CHAR(13),CHAR(10),,CHAR(13),CHAR(10),) -> interface sip IF_SIP_24 bind context sip-gateway GW_SIP_24 early-connect early-disconnect route call dest-interface IF_FXO_24 remote 10.10.50.23 5060 address-translation outgoing-call request-uri user-part fix 10025 host-part to-header target-param none address-translation incoming-call called-e164 request-uri
A167: 166 | B167: =+IF(Data!$C$5>ROW(Brekeke!B167)-ROW(Brekeke!$B$143),"","#") -> # | C167: =+CONCATENATE(" interface sip IF_SIP_",'Line Table'!A26,CHAR(13),CHAR(10),," bind context sip-gateway GW_SIP_",'Line Table'!A26,CHAR(13),CHAR(10),," ",+'Line Table'!C26,CHAR(13),CHAR(10),," early-disconnect",CHAR(13),CHAR(10),," route call dest-interface IF_FXO_",'Line Table'!A26,CHAR(13),CHAR(10),," remote ",Data!$C$24," ",Data!$C$25,CHAR(13),CHAR(10),," address-translation outgoing-call request-uri user-part fix ",'Line Table'!B26," host-part to-header target-param none",CHAR(13),CHAR(10),," address-translation incoming-call called-e164 request-uri",CHAR(13),CHAR(10),,CHAR(13),CHAR(10),) -> interface sip IF_SIP_25 bind context sip-gateway GW_SIP_25 early-connect early-disconnect route call dest-interface IF_FXO_25 remote 10.10.50.23 5060 address-translation outgoing-call request-uri user-part fix 10026 host-part to-header target-param none address-translation incoming-call called-e164 request-uri
A168: 167 | B168: =+IF(Data!$C$5>ROW(Brekeke!B168)-ROW(Brekeke!$B$143),"","#") -> # | C168: =+CONCATENATE(" interface sip IF_SIP_",'Line Table'!A27,CHAR(13),CHAR(10),," bind context sip-gateway GW_SIP_",'Line Table'!A27,CHAR(13),CHAR(10),," ",+'Line Table'!C27,CHAR(13),CHAR(10),," early-disconnect",CHAR(13),CHAR(10),," route call dest-interface IF_FXO_",'Line Table'!A27,CHAR(13),CHAR(10),," remote ",Data!$C$24," ",Data!$C$25,CHAR(13),CHAR(10),," address-translation outgoing-call request-uri user-part fix ",'Line Table'!B27," host-part to-header target-param none",CHAR(13),CHAR(10),," address-translation incoming-call called-e164 request-uri",CHAR(13),CHAR(10),,CHAR(13),CHAR(10),) -> interface sip IF_SIP_26 bind context sip-gateway GW_SIP_26 early-connect early-disconnect route call dest-interface IF_FXO_26 remote 10.10.50.23 5060 address-translation outgoing-call request-uri user-part fix 10027 host-part to-header target-param none address-translation incoming-call called-e164 request-uri
A169: 168 | B169: =+IF(Data!$C$5>ROW(Brekeke!B169)-ROW(Brekeke!$B$143),"","#") -> # | C169: =+CONCATENATE(" interface sip IF_SIP_",'Line Table'!A28,CHAR(13),CHAR(10),," bind context sip-gateway GW_SIP_",'Line Table'!A28,CHAR(13),CHAR(10),," ",+'Line Table'!C28,CHAR(13),CHAR(10),," early-disconnect",CHAR(13),CHAR(10),," route call dest-interface IF_FXO_",'Line Table'!A28,CHAR(13),CHAR(10),," remote ",Data!$C$24," ",Data!$C$25,CHAR(13),CHAR(10),," address-translation outgoing-call request-uri user-part fix ",'Line Table'!B28," host-part to-header target-param none",CHAR(13),CHAR(10),," address-translation incoming-call called-e164 request-uri",CHAR(13),CHAR(10),,CHAR(13),CHAR(10),) -> interface sip IF_SIP_27 bind context sip-gateway GW_SIP_27 early-connect early-disconnect route call dest-interface IF_FXO_27 remote 10.10.50.23 5060 address-translation outgoing-call request-uri user-part fix 10028 host-part to-header target-param none address-translation incoming-call called-e164 request-uri
A170: 169 | B170: =+IF(Data!$C$5>ROW(Brekeke!B170)-ROW(Brekeke!$B$143),"","#") -> # | C170: =+CONCATENATE(" interface sip IF_SIP_",'Line Table'!A29,CHAR(13),CHAR(10),," bind context sip-gateway GW_SIP_",'Line Table'!A29,CHAR(13),CHAR(10),," ",+'Line Table'!C29,CHAR(13),CHAR(10),," early-disconnect",CHAR(13),CHAR(10),," route call dest-interface IF_FXO_",'Line Table'!A29,CHAR(13),CHAR(10),," remote ",Data!$C$24," ",Data!$C$25,CHAR(13),CHAR(10),," address-translation outgoing-call request-uri user-part fix ",'Line Table'!B29," host-part to-header target-param none",CHAR(13),CHAR(10),," address-translation incoming-call called-e164 request-uri",CHAR(13),CHAR(10),,CHAR(13),CHAR(10),) -> interface sip IF_SIP_28 bind context sip-gateway GW_SIP_28 early-connect early-disconnect route call dest-interface IF_FXO_28 remote 10.10.50.23 5060 address-translation outgoing-call request-uri user-part fix 10029 host-part to-header target-param none address-translation incoming-call called-e164 request-uri
A171: 170 | B171: =+IF(Data!$C$5>ROW(Brekeke!B171)-ROW(Brekeke!$B$143),"","#") -> # | C171: =+CONCATENATE(" interface sip IF_SIP_",'Line Table'!A30,CHAR(13),CHAR(10),," bind context sip-gateway GW_SIP_",'Line Table'!A30,CHAR(13),CHAR(10),," ",+'Line Table'!C30,CHAR(13),CHAR(10),," early-disconnect",CHAR(13),CHAR(10),," route call dest-interface IF_FXO_",'Line Table'!A30,CHAR(13),CHAR(10),," remote ",Data!$C$24," ",Data!$C$25,CHAR(13),CHAR(10),," address-translation outgoing-call request-uri user-part fix ",'Line Table'!B30," host-part to-header target-param none",CHAR(13),CHAR(10),," address-translation incoming-call called-e164 request-uri",CHAR(13),CHAR(10),,CHAR(13),CHAR(10),) -> interface sip IF_SIP_29 bind context sip-gateway GW_SIP_29 early-connect early-disconnect route call dest-interface IF_FXO_29 remote 10.10.50.23 5060 address-translation outgoing-call request-uri user-part fix 10030 host-part to-header target-param none address-translation incoming-call called-e164 request-uri
A172: 171 | B172: =+IF(Data!$C$5>ROW(Brekeke!B172)-ROW(Brekeke!$B$143),"","#") -> # | C172: =+CONCATENATE(" interface sip IF_SIP_",'Line Table'!A31,CHAR(13),CHAR(10),," bind context sip-gateway GW_SIP_",'Line Table'!A31,CHAR(13),CHAR(10),," ",+'Line Table'!C31,CHAR(13),CHAR(10),," early-disconnect",CHAR(13),CHAR(10),," route call dest-interface IF_FXO_",'Line Table'!A31,CHAR(13),CHAR(10),," remote ",Data!$C$24," ",Data!$C$25,CHAR(13),CHAR(10),," address-translation outgoing-call request-uri user-part fix ",'Line Table'!B31," host-part to-header target-param none",CHAR(13),CHAR(10),," address-translation incoming-call called-e164 request-uri",CHAR(13),CHAR(10),,CHAR(13),CHAR(10),) -> interface sip IF_SIP_30 bind context sip-gateway GW_SIP_30 early-connect early-disconnect route call dest-interface IF_FXO_30 remote 10.10.50.23 5060 address-translation outgoing-call request-uri user-part fix 10031 host-part to-header target-param none address-translation incoming-call called-e164 request-uri
A173: 172 | B173: =+IF(Data!$C$5>ROW(Brekeke!B173)-ROW(Brekeke!$B$143),"","#") -> # | C173: =+CONCATENATE(" interface sip IF_SIP_",'Line Table'!A32,CHAR(13),CHAR(10),," bind context sip-gateway GW_SIP_",'Line Table'!A32,CHAR(13),CHAR(10),," ",+'Line Table'!C32,CHAR(13),CHAR(10),," early-disconnect",CHAR(13),CHAR(10),," route call dest-interface IF_FXO_",'Line Table'!A32,CHAR(13),CHAR(10),," remote ",Data!$C$24," ",Data!$C$25,CHAR(13),CHAR(10),," address-translation outgoing-call request-uri user-part fix ",'Line Table'!B32," host-part to-header target-param none",CHAR(13),CHAR(10),," address-translation incoming-call called-e164 request-uri",CHAR(13),CHAR(10),,CHAR(13),CHAR(10),) -> interface sip IF_SIP_31 bind context sip-gateway GW_SIP_31 early-connect early-disconnect route call dest-interface IF_FXO_31 remote 10.10.50.23 5060 address-translation outgoing-call request-uri user-part fix 10032 host-part to-header target-param none address-translation incoming-call called-e164 request-uri
A174: 173 | B174: =+IF(Data!$C$5>ROW(Brekeke!B174)-ROW(Brekeke!$B$143),"","#") -> # | C174: =+CONCATENATE(" interface sip IF_SIP_",'Line Table'!A33,CHAR(13),CHAR(10),," bind context sip-gateway GW_SIP_",'Line Table'!A33,CHAR(13),CHAR(10),," ",+'Line Table'!C33,CHAR(13),CHAR(10),," early-disconnect",CHAR(13),CHAR(10),," route call dest-interface IF_FXO_",'Line Table'!A33,CHAR(13),CHAR(10),," remote ",Data!$C$24," ",Data!$C$25,CHAR(13),CHAR(10),," address-translation outgoing-call request-uri user-part fix ",'Line Table'!B33," host-part to-header target-param none",CHAR(13),CHAR(10),," address-translation incoming-call called-e164 request-uri",CHAR(13),CHAR(10),,CHAR(13),CHAR(10),) -> interface sip IF_SIP_32 bind context sip-gateway GW_SIP_32 early-connect early-disconnect route call dest-interface IF_FXO_32 remote 10.10.50.23 5060 address-translation outgoing-call request-uri user-part fix 10033 host-part to-header target-param none address-translation incoming-call called-e164 request-uri
A175: 174
A176: 175 | B176: =+IF(Data!$C$5>ROW(Brekeke!B176)-ROW(Brekeke!$B$176),"","#") ->  | C176: =+CONCATENATE(" interface fxo IF_FXO_",'Line Table'!A2,CHAR(13),CHAR(10)," route call dest-interface IF_SIP_",'Line Table'!A2,CHAR(13),CHAR(10)," loop-break-duration min 200 max 1000",CHAR(13),CHAR(10)," ",'Line Table'!D2,CHAR(13),CHAR(10)," mute-dialing",CHAR(13),CHAR(10)," disconnect-signal loop-break",CHAR(13),CHAR(10)," disconnect-signal busy-tone",CHAR(13),CHAR(10)," dial-after timeout 1") -> interface fxo IF_FXO_1 route call dest-interface IF_SIP_1 loop-break-duration min 200 max 1000 ring-number on-caller-id mute-dialing disconnect-signal loop-break disconnect-signal busy-tone dial-after timeout 1
A177: 176 | B177: =+IF(Data!$C$5>ROW(Brekeke!B177)-ROW(Brekeke!$B$176),"","#") ->  | C177: =+CONCATENATE(" interface fxo IF_FXO_",'Line Table'!A3,CHAR(13),CHAR(10)," route call dest-interface IF_SIP_",'Line Table'!A3,CHAR(13),CHAR(10)," loop-break-duration min 200 max 1000",CHAR(13),CHAR(10)," ",'Line Table'!D3,CHAR(13),CHAR(10)," mute-dialing",CHAR(13),CHAR(10)," disconnect-signal loop-break",CHAR(13),CHAR(10)," disconnect-signal busy-tone",CHAR(13),CHAR(10)," dial-after timeout 1") -> interface fxo IF_FXO_2 route call dest-interface IF_SIP_2 loop-break-duration min 200 max 1000 ring-number on-caller-id mute-dialing disconnect-signal loop-break disconnect-signal busy-tone dial-after timeout 1
A178: 177 | B178: =+IF(Data!$C$5>ROW(Brekeke!B178)-ROW(Brekeke!$B$176),"","#") ->  | C178: =+CONCATENATE(" interface fxo IF_FXO_",'Line Table'!A4,CHAR(13),CHAR(10)," route call dest-interface IF_SIP_",'Line Table'!A4,CHAR(13),CHAR(10)," loop-break-duration min 200 max 1000",CHAR(13),CHAR(10)," ",'Line Table'!D4,CHAR(13),CHAR(10)," mute-dialing",CHAR(13),CHAR(10)," disconnect-signal loop-break",CHAR(13),CHAR(10)," disconnect-signal busy-tone",CHAR(13),CHAR(10)," dial-after timeout 1") -> interface fxo IF_FXO_3 route call dest-interface IF_SIP_3 loop-break-duration min 200 max 1000 ring-number on-caller-id mute-dialing disconnect-signal loop-break disconnect-signal busy-tone dial-after timeout 1
A179: 178 | B179: =+IF(Data!$C$5>ROW(Brekeke!B179)-ROW(Brekeke!$B$176),"","#") ->  | C179: =+CONCATENATE(" interface fxo IF_FXO_",'Line Table'!A5,CHAR(13),CHAR(10)," route call dest-interface IF_SIP_",'Line Table'!A5,CHAR(13),CHAR(10)," loop-break-duration min 200 max 1000",CHAR(13),CHAR(10)," ",'Line Table'!D5,CHAR(13),CHAR(10)," mute-dialing",CHAR(13),CHAR(10)," disconnect-signal loop-break",CHAR(13),CHAR(10)," disconnect-signal busy-tone",CHAR(13),CHAR(10)," dial-after timeout 1") -> interface fxo IF_FXO_4 route call dest-interface IF_SIP_4 loop-break-duration min 200 max 1000 ring-number on-caller-id mute-dialing disconnect-signal loop-break disconnect-signal busy-tone dial-after timeout 1
A180: 179 | B180: =+IF(Data!$C$5>ROW(Brekeke!B180)-ROW(Brekeke!$B$176),"","#") ->  | C180: =+CONCATENATE(" interface fxo IF_FXO_",'Line Table'!A6,CHAR(13),CHAR(10)," route call dest-interface IF_SIP_",'Line Table'!A6,CHAR(13),CHAR(10)," loop-break-duration min 200 max 1000",CHAR(13),CHAR(10)," ",'Line Table'!D6,CHAR(13),CHAR(10)," mute-dialing",CHAR(13),CHAR(10)," disconnect-signal loop-break",CHAR(13),CHAR(10)," disconnect-signal busy-tone",CHAR(13),CHAR(10)," dial-after timeout 1") -> interface fxo IF_FXO_5 route call dest-interface IF_SIP_5 loop-break-duration min 200 max 1000 ring-number on-caller-id mute-dialing disconnect-signal loop-break disconnect-signal busy-tone dial-after timeout 1
A181: 180 | B181: =+IF(Data!$C$5>ROW(Brekeke!B181)-ROW(Brekeke!$B$176),"","#") ->  | C181: =+CONCATENATE(" interface fxo IF_FXO_",'Line Table'!A7,CHAR(13),CHAR(10)," route call dest-interface IF_SIP_",'Line Table'!A7,CHAR(13),CHAR(10)," loop-break-duration min 200 max 1000",CHAR(13),CHAR(10)," ",'Line Table'!D7,CHAR(13),CHAR(10)," mute-dialing",CHAR(13),CHAR(10)," disconnect-signal loop-break",CHAR(13),CHAR(10)," disconnect-signal busy-tone",CHAR(13),CHAR(10)," dial-after timeout 1") -> interface fxo IF_FXO_6 route call dest-interface IF_SIP_6 loop-break-duration min 200 max 1000 ring-number on-caller-id mute-dialing disconnect-signal loop-break disconnect-signal busy-tone dial-after timeout 1
A182: 181 | B182: =+IF(Data!$C$5>ROW(Brekeke!B182)-ROW(Brekeke!$B$176),"","#") ->  | C182: =+CONCATENATE(" interface fxo IF_FXO_",'Line Table'!A8,CHAR(13),CHAR(10)," route call dest-interface IF_SIP_",'Line Table'!A8,CHAR(13),CHAR(10)," loop-break-duration min 200 max 1000",CHAR(13),CHAR(10)," ",'Line Table'!D8,CHAR(13),CHAR(10)," mute-dialing",CHAR(13),CHAR(10)," disconnect-signal loop-break",CHAR(13),CHAR(10)," disconnect-signal busy-tone",CHAR(13),CHAR(10)," dial-after timeout 1") -> interface fxo IF_FXO_7 route call dest-interface IF_SIP_7 loop-break-duration min 200 max 1000 ring-number on-caller-id mute-dialing disconnect-signal loop-break disconnect-signal busy-tone dial-after timeout 1
A183: 182 | B183: =+IF(Data!$C$5>ROW(Brekeke!B183)-ROW(Brekeke!$B$176),"","#") ->  | C183: =+CONCATENATE(" interface fxo IF_FXO_",'Line Table'!A9,CHAR(13),CHAR(10)," route call dest-interface IF_SIP_",'Line Table'!A9,CHAR(13),CHAR(10)," loop-break-duration min 200 max 1000",CHAR(13),CHAR(10)," ",'Line Table'!D9,CHAR(13),CHAR(10)," mute-dialing",CHAR(13),CHAR(10)," disconnect-signal loop-break",CHAR(13),CHAR(10)," disconnect-signal busy-tone",CHAR(13),CHAR(10)," dial-after timeout 1") -> interface fxo IF_FXO_8 route call dest-interface IF_SIP_8 loop-break-duration min 200 max 1000 ring-number on-caller-id mute-dialing disconnect-signal loop-break disconnect-signal busy-tone dial-after timeout 1
A184: 183 | B184: =+IF(Data!$C$5>ROW(Brekeke!B184)-ROW(Brekeke!$B$176),"","#") ->  | C184: =+CONCATENATE(" interface fxo IF_FXO_",'Line Table'!A10,CHAR(13),CHAR(10)," route call dest-interface IF_SIP_",'Line Table'!A10,CHAR(13),CHAR(10)," loop-break-duration min 200 max 1000",CHAR(13),CHAR(10)," ",'Line Table'!D10,CHAR(13),CHAR(10)," mute-dialing",CHAR(13),CHAR(10)," disconnect-signal loop-break",CHAR(13),CHAR(10)," disconnect-signal busy-tone",CHAR(13),CHAR(10)," dial-after timeout 1") -> interface fxo IF_FXO_9 route call dest-interface IF_SIP_9 loop-break-duration min 200 max 1000 ring-number on-caller-id mute-dialing disconnect-signal loop-break disconnect-signal busy-tone dial-after timeout 1
A185: 184 | B185: =+IF(Data!$C$5>ROW(Brekeke!B185)-ROW(Brekeke!$B$176),"","#") ->  | C185: =+CONCATENATE(" interface fxo IF_FXO_",'Line Table'!A11,CHAR(13),CHAR(10)," route call dest-interface IF_SIP_",'Line Table'!A11,CHAR(13),CHAR(10)," loop-break-duration min 200 max 1000",CHAR(13),CHAR(10)," ",'Line Table'!D11,CHAR(13),CHAR(10)," mute-dialing",CHAR(13),CHAR(10)," disconnect-signal loop-break",CHAR(13),CHAR(10)," disconnect-signal busy-tone",CHAR(13),CHAR(10)," dial-after timeout 1") -> interface fxo IF_FXO_10 route call dest-interface IF_SIP_10 loop-break-duration min 200 max 1000 ring-number on-caller-id mute-dialing disconnect-signal loop-break disconnect-signal busy-tone dial-after timeout 1
A186: 185 | B186: =+IF(Data!$C$5>ROW(Brekeke!B186)-ROW(Brekeke!$B$176),"","#") ->  | C186: =+CONCATENATE(" interface fxo IF_FXO_",'Line Table'!A12,CHAR(13),CHAR(10)," route call dest-interface IF_SIP_",'Line Table'!A12,CHAR(13),CHAR(10)," loop-break-duration min 200 max 1000",CHAR(13),CHAR(10)," ",'Line Table'!D12,CHAR(13),CHAR(10)," mute-dialing",CHAR(13),CHAR(10)," disconnect-signal loop-break",CHAR(13),CHAR(10)," disconnect-signal busy-tone",CHAR(13),CHAR(10)," dial-after timeout 1") -> interface fxo IF_FXO_11 route call dest-interface IF_SIP_11 loop-break-duration min 200 max 1000 ring-number on-caller-id mute-dialing disconnect-signal loop-break disconnect-signal busy-tone dial-after timeout 1
A187: 186 | B187: =+IF(Data!$C$5>ROW(Brekeke!B187)-ROW(Brekeke!$B$176),"","#") ->  | C187: =+CONCATENATE(" interface fxo IF_FXO_",'Line Table'!A13,CHAR(13),CHAR(10)," route call dest-interface IF_SIP_",'Line Table'!A13,CHAR(13),CHAR(10)," loop-break-duration min 200 max 1000",CHAR(13),CHAR(10)," ",'Line Table'!D13,CHAR(13),CHAR(10)," mute-dialing",CHAR(13),CHAR(10)," disconnect-signal loop-break",CHAR(13),CHAR(10)," disconnect-signal busy-tone",CHAR(13),CHAR(10)," dial-after timeout 1") -> interface fxo IF_FXO_12 route call dest-interface IF_SIP_12 loop-break-duration min 200 max 1000 ring-number on-caller-id mute-dialing disconnect-signal loop-break disconnect-signal busy-tone dial-after timeout 1
A188: 187 | B188: =+IF(Data!$C$5>ROW(Brekeke!B188)-ROW(Brekeke!$B$176),"","#") -> # | C188: =+CONCATENATE(" interface fxo IF_FXO_",'Line Table'!A14,CHAR(13),CHAR(10)," route call dest-interface IF_SIP_",'Line Table'!A14,CHAR(13),CHAR(10)," loop-break-duration min 200 max 1000",CHAR(13),CHAR(10)," ",'Line Table'!D14,CHAR(13),CHAR(10)," mute-dialing",CHAR(13),CHAR(10)," disconnect-signal loop-break",CHAR(13),CHAR(10)," disconnect-signal busy-tone",CHAR(13),CHAR(10)," dial-after timeout 1") -> interface fxo IF_FXO_13 route call dest-interface IF_SIP_13 loop-break-duration min 200 max 1000 ring-number on-caller-id mute-dialing disconnect-signal loop-break disconnect-signal busy-tone dial-after timeout 1
A189: 188 | B189: =+IF(Data!$C$5>ROW(Brekeke!B189)-ROW(Brekeke!$B$176),"","#") -> # | C189: =+CONCATENATE(" interface fxo IF_FXO_",'Line Table'!A15,CHAR(13),CHAR(10)," route call dest-interface IF_SIP_",'Line Table'!A15,CHAR(13),CHAR(10)," loop-break-duration min 200 max 1000",CHAR(13),CHAR(10)," ",'Line Table'!D15,CHAR(13),CHAR(10)," mute-dialing",CHAR(13),CHAR(10)," disconnect-signal loop-break",CHAR(13),CHAR(10)," disconnect-signal busy-tone",CHAR(13),CHAR(10)," dial-after timeout 1") -> interface fxo IF_FXO_14 route call dest-interface IF_SIP_14 loop-break-duration min 200 max 1000 ring-number on-caller-id mute-dialing disconnect-signal loop-break disconnect-signal busy-tone dial-after timeout 1
A190: 189 | B190: =+IF(Data!$C$5>ROW(Brekeke!B190)-ROW(Brekeke!$B$176),"","#") -> # | C190: =+CONCATENATE(" interface fxo IF_FXO_",'Line Table'!A16,CHAR(13),CHAR(10)," route call dest-interface IF_SIP_",'Line Table'!A16,CHAR(13),CHAR(10)," loop-break-duration min 200 max 1000",CHAR(13),CHAR(10)," ",'Line Table'!D16,CHAR(13),CHAR(10)," mute-dialing",CHAR(13),CHAR(10)," disconnect-signal loop-break",CHAR(13),CHAR(10)," disconnect-signal busy-tone",CHAR(13),CHAR(10)," dial-after timeout 1") -> interface fxo IF_FXO_15 route call dest-interface IF_SIP_15 loop-break-duration min 200 max 1000 ring-number on-caller-id mute-dialing disconnect-signal loop-break disconnect-signal busy-tone dial-after timeout 1
A191: 190 | B191: =+IF(Data!$C$5>ROW(Brekeke!B191)-ROW(Brekeke!$B$176),"","#") -> # | C191: =+CONCATENATE(" interface fxo IF_FXO_",'Line Table'!A17,CHAR(13),CHAR(10)," route call dest-interface IF_SIP_",'Line Table'!A17,CHAR(13),CHAR(10)," loop-break-duration min 200 max 1000",CHAR(13),CHAR(10)," ",'Line Table'!D17,CHAR(13),CHAR(10)," mute-dialing",CHAR(13),CHAR(10)," disconnect-signal loop-break",CHAR(13),CHAR(10)," disconnect-signal busy-tone",CHAR(13),CHAR(10)," dial-after timeout 1") -> interface fxo IF_FXO_16 route call dest-interface IF_SIP_16 loop-break-duration min 200 max 1000 ring-number on-caller-id mute-dialing disconnect-signal loop-break disconnect-signal busy-tone dial-after timeout 1
A192: 191 | B192: =+IF(Data!$C$5>ROW(Brekeke!B192)-ROW(Brekeke!$B$176),"","#") -> # | C192: =+CONCATENATE(" interface fxo IF_FXO_",'Line Table'!A18,CHAR(13),CHAR(10)," route call dest-interface IF_SIP_",'Line Table'!A18,CHAR(13),CHAR(10)," loop-break-duration min 200 max 1000",CHAR(13),CHAR(10)," ",'Line Table'!D18,CHAR(13),CHAR(10)," mute-dialing",CHAR(13),CHAR(10)," disconnect-signal loop-break",CHAR(13),CHAR(10)," disconnect-signal busy-tone",CHAR(13),CHAR(10)," dial-after timeout 1") -> interface fxo IF_FXO_17 route call dest-interface IF_SIP_17 loop-break-duration min 200 max 1000 ring-number on-caller-id mute-dialing disconnect-signal loop-break disconnect-signal busy-tone dial-after timeout 1
A193: 192 | B193: =+IF(Data!$C$5>ROW(Brekeke!B193)-ROW(Brekeke!$B$176),"","#") -> # | C193: =+CONCATENATE(" interface fxo IF_FXO_",'Line Table'!A19,CHAR(13),CHAR(10)," route call dest-interface IF_SIP_",'Line Table'!A19,CHAR(13),CHAR(10)," loop-break-duration min 200 max 1000",CHAR(13),CHAR(10)," ",'Line Table'!D19,CHAR(13),CHAR(10)," mute-dialing",CHAR(13),CHAR(10)," disconnect-signal loop-break",CHAR(13),CHAR(10)," disconnect-signal busy-tone",CHAR(13),CHAR(10)," dial-after timeout 1") -> interface fxo IF_FXO_18 route call dest-interface IF_SIP_18 loop-break-duration min 200 max 1000 ring-number on-caller-id mute-dialing disconnect-signal loop-break disconnect-signal busy-tone dial-after timeout 1
A194: 193 | B194: =+IF(Data!$C$5>ROW(Brekeke!B194)-ROW(Brekeke!$B$176),"","#") -> # | C194: =+CONCATENATE(" interface fxo IF_FXO_",'Line Table'!A20,CHAR(13),CHAR(10)," route call dest-interface IF_SIP_",'Line Table'!A20,CHAR(13),CHAR(10)," loop-break-duration min 200 max 1000",CHAR(13),CHAR(10)," ",'Line Table'!D20,CHAR(13),CHAR(10)," mute-dialing",CHAR(13),CHAR(10)," disconnect-signal loop-break",CHAR(13),CHAR(10)," disconnect-signal busy-tone",CHAR(13),CHAR(10)," dial-after timeout 1") -> interface fxo IF_FXO_19 route call dest-interface IF_SIP_19 loop-break-duration min 200 max 1000 ring-number on-caller-id mute-dialing disconnect-signal loop-break disconnect-signal busy-tone dial-after timeout 1
A195: 194 | B195: =+IF(Data!$C$5>ROW(Brekeke!B195)-ROW(Brekeke!$B$176),"","#") -> # | C195: =+CONCATENATE(" interface fxo IF_FXO_",'Line Table'!A21,CHAR(13),CHAR(10)," route call dest-interface IF_SIP_",'Line Table'!A21,CHAR(13),CHAR(10)," loop-break-duration min 200 max 1000",CHAR(13),CHAR(10)," ",'Line Table'!D21,CHAR(13),CHAR(10)," mute-dialing",CHAR(13),CHAR(10)," disconnect-signal loop-break",CHAR(13),CHAR(10)," disconnect-signal busy-tone",CHAR(13),CHAR(10)," dial-after timeout 1") -> interface fxo IF_FXO_20 route call dest-interface IF_SIP_20 loop-break-duration min 200 max 1000 ring-number on-caller-id mute-dialing disconnect-signal loop-break disconnect-signal busy-tone dial-after timeout 1
A196: 195 | B196: =+IF(Data!$C$5>ROW(Brekeke!B196)-ROW(Brekeke!$B$176),"","#") -> # | C196: =+CONCATENATE(" interface fxo IF_FXO_",'Line Table'!A22,CHAR(13),CHAR(10)," route call dest-interface IF_SIP_",'Line Table'!A22,CHAR(13),CHAR(10)," loop-break-duration min 200 max 1000",CHAR(13),CHAR(10)," ",'Line Table'!D22,CHAR(13),CHAR(10)," mute-dialing",CHAR(13),CHAR(10)," disconnect-signal loop-break",CHAR(13),CHAR(10)," disconnect-signal busy-tone",CHAR(13),CHAR(10)," dial-after timeout 1") -> interface fxo IF_FXO_21 route call dest-interface IF_SIP_21 loop-break-duration min 200 max 1000 ring-number on-caller-id mute-dialing disconnect-signal loop-break disconnect-signal busy-tone dial-after timeout 1
A197: 196 | B197: =+IF(Data!$C$5>ROW(Brekeke!B197)-ROW(Brekeke!$B$176),"","#") -> # | C197: =+CONCATENATE(" interface fxo IF_FXO_",'Line Table'!A23,CHAR(13),CHAR(10)," route call dest-interface IF_SIP_",'Line Table'!A23,CHAR(13),CHAR(10)," loop-break-duration min 200 max 1000",CHAR(13),CHAR(10)," ",'Line Table'!D23,CHAR(13),CHAR(10)," mute-dialing",CHAR(13),CHAR(10)," disconnect-signal loop-break",CHAR(13),CHAR(10)," disconnect-signal busy-tone",CHAR(13),CHAR(10)," dial-after timeout 1") -> interface fxo IF_FXO_22 route call dest-interface IF_SIP_22 loop-break-duration min 200 max 1000 ring-number on-caller-id mute-dialing disconnect-signal loop-break disconnect-signal busy-tone dial-after timeout 1
A198: 197 | B198: =+IF(Data!$C$5>ROW(Brekeke!B198)-ROW(Brekeke!$B$176),"","#") -> # | C198: =+CONCATENATE(" interface fxo IF_FXO_",'Line Table'!A24,CHAR(13),CHAR(10)," route call dest-interface IF_SIP_",'Line Table'!A24,CHAR(13),CHAR(10)," loop-break-duration min 200 max 1000",CHAR(13),CHAR(10)," ",'Line Table'!D24,CHAR(13),CHAR(10)," mute-dialing",CHAR(13),CHAR(10)," disconnect-signal loop-break",CHAR(13),CHAR(10)," disconnect-signal busy-tone",CHAR(13),CHAR(10)," dial-after timeout 1") -> interface fxo IF_FXO_23 route call dest-interface IF_SIP_23 loop-break-duration min 200 max 1000 ring-number on-caller-id mute-dialing disconnect-signal loop-break disconnect-signal busy-tone dial-after timeout 1
A199: 198 | B199: =+IF(Data!$C$5>ROW(Brekeke!B199)-ROW(Brekeke!$B$176),"","#") -> # | C199: =+CONCATENATE(" interface fxo IF_FXO_",'Line Table'!A25,CHAR(13),CHAR(10)," route call dest-interface IF_SIP_",'Line Table'!A25,CHAR(13),CHAR(10)," loop-break-duration min 200 max 1000",CHAR(13),CHAR(10)," ",'Line Table'!D25,CHAR(13),CHAR(10)," mute-dialing",CHAR(13),CHAR(10)," disconnect-signal loop-break",CHAR(13),CHAR(10)," disconnect-signal busy-tone",CHAR(13),CHAR(10)," dial-after timeout 1") -> interface fxo IF_FXO_24 route call dest-interface IF_SIP_24 loop-break-duration min 200 max 1000 ring-number on-caller-id mute-dialing disconnect-signal loop-break disconnect-signal busy-tone dial-after timeout 1
A200: 199 | B200: =+IF(Data!$C$5>ROW(Brekeke!B200)-ROW(Brekeke!$B$176),"","#") -> # | C200: =+CONCATENATE(" interface fxo IF_FXO_",'Line Table'!A26,CHAR(13),CHAR(10)," route call dest-interface IF_SIP_",'Line Table'!A26,CHAR(13),CHAR(10)," loop-break-duration min 200 max 1000",CHAR(13),CHAR(10)," ",'Line Table'!D26,CHAR(13),CHAR(10)," mute-dialing",CHAR(13),CHAR(10)," disconnect-signal loop-break",CHAR(13),CHAR(10)," disconnect-signal busy-tone",CHAR(13),CHAR(10)," dial-after timeout 1") -> interface fxo IF_FXO_25 route call dest-interface IF_SIP_25 loop-break-duration min 200 max 1000 ring-number on-caller-id mute-dialing disconnect-signal loop-break disconnect-signal busy-tone dial-after timeout 1
... 309 more rows

Sheet 3CX (hidden)
A1: LINE # | B1: DISCARD (#) | C1: COMMAND | D1: Column1
A2: 1 | C2: ####################################################################################
A3: 2 | C3: =+CONCATENATE("# Configuration file for SmartNode with: ",Data!C5," FXO and ", Data!C6," FXS") -> # Configuration file for SmartNode with: 12 FXO and 0 FXS
A4: 3 | C4: =+IF(Data!C7="Y","# With 2 ethernet ports","# With one ethernet port") -> # With one ethernet port
A5: 4 | C5: =+CONCATENATE("# Configuration file name is ",Data!C11) -> # Configuration file name is PattonSample
A6: 5 | C6: # 3CX IPPBX
A7: 6 | C7: ####################################################################################
A8: 7 | C8: =+CONCATENATE("# ",Data!B14," ",Data!C14) -> # LAN Interface Data
A9: 8 | C9: =+CONCATENATE("# ",Data!B15," ",Data!C15) -> # IP Address 10.10.1.10
A10: 9 | C10: =+CONCATENATE("# ",Data!B16," ",Data!C16) -> # IP Mask 255.255.255.0
A11: 10 | C11: ####################################################################################
A12: 11 | C12: =+CONCATENATE("# ",Data!B18," ",Data!C18) -> # WAN Interface Data
A13: 12 | C13: =+CONCATENATE("# ",Data!B19," ",Data!C19) -> # IP Address dhcp
A14: 13 | C14: =+CONCATENATE("# ",Data!B20," ",Data!C20) -> # IP Mask
A15: 14 | C15: ####################################################################################
A16: 15 | C16: =+CONCATENATE("# ",Data!B22," ",Data!C22) -> # Default Gateway
A17: 16 | C17: ####################################################################################
A18: 17 | C18: =+CONCATENATE("# ",Data!B23," ",Data!C23) -> # IP-PBX/SIP PROXY DATA
A19: 18 | C19: =+CONCATENATE("# ",Data!B24," ",Data!C24) -> # IP-PBX Ip Address / Name / Domain 10.10.50.23
A20: 19 | C20: =+CONCATENATE("# ",Data!B25," ",Data!C25) -> # IP-PBX SIP Port 5060
A21: 20 | C21: ####################################################################################
A22: 21 | C22: =+CONCATENATE("# ",Data!B27," ",Data!C27) -> # LOCALIZATION DATA
A23: 22 | C23: =+CONCATENATE("# ",Data!B28," ",Data!C28) -> # Country United States
A24: 23 | C24: ####################################################################################
A25: 24 | C25: # Supported firmware versions R5.x
A26: 25 | C26: =+CONCATENATE("# Tool version ",Data!$C$4) -> # Tool version V2_1 06222011
A27: 26 | C27: # Adapted: Ernesto Casas
A28: 27 | C28: # for comments, feedback or suggestions please send an email to: ecasas@patton.com
A29: 28 | C29: ####################################################################################
A30: 29
A31: 30 | C31: webserver port 80 language en
A32: 31 | C32: =+CONCATENATE("sntp-client server ",Data!C9) -> sntp-client server 1.1.1.1
A33: 32 | B33: =+IF(Data!C10="","#","") ->  | C33: =+CONCATENATE("dns-client server ",Data!C10) -> dns-client server 8.8.8.8
A34: 33
A35: 34 | C35: system
A36: 35 | C36: ic voice 0
A37: 36 | C37: low-bitrate-codec g729
A38: 37 | C38: profile ppp default
A39: 38
A40: 39 | B40: =+IF(Data!$C$5>ROW('3CX'!B40)-ROW('3CX'!$B$480),"","#") ->  | C40: =+CONCATENATE("# Call Progress tones based on country selection. Your selected country is: ",Data!$C$28) -> # Call Progress tones based on country selection. Your selected country is: United States
A41: 40
A42: 41 | C42: =+Data!$C$30 -> profile call-progress-tone defaultDialtone flush-play-list play 1 1000 350 -13 440 -13 profile call-progress-tone defaultAlertingtone flush-play-list play 1 1000 440 -19 480 -19 pause 2 3000 profile call-progress-tone defaultBusytone flush-play-list play 1 500 480 -24 620 -24 pause 2 500 profile call-progress-tone defaultReleasetone flush-play-list play 1 250 480 -24 620 -24 pause 2 250 profile call-progress-tone defaultCongestiontone flush-play-list play 1 250 480 -24 620 -24 pause 2 250
A43: 42 | B43: =+IF(Data!$C$5>ROW('3CX'!B43)-ROW('3CX'!$B$480),"","#") -> 
A44: 43 | C44: profile tone-set default
A45: 44 | C45: profile voip default
A46: 45 | C46: codec 1 g711alaw64k rx-length 20 tx-length 20
A47: 46 | C47: codec 2 g711ulaw64k rx-length 20 tx-length 20
A48: 47 | C48: fax transmission 1 relay t38-udp
A49: 48 | C49: fax transmission 2 bypass g711alaw64k
A50: 49 | C50: profile pstn default
A51: 50 | C51: profile sip default
A52: 51 | C52: profile aaa default
A53: 52 | C53: method 1 local
A54: 53 | C54: method 2 none
A55: 54
A56: 55 | C56: context ip router
A57: 56 | C57: interface IF_IP_LAN
A58: 57 | C58: =+CONCATENATE(" ipaddress ",Data!C15," ",Data!C16) -> ipaddress 10.10.1.10 255.255.255.0
A59: 58 | C59: tcp adjust-mss rx mtu
A60: 59 | C60: tcp adjust-mss tx mtu
A61: 60
A62: 61 | C62: interface IF_IP_WAN
A63: 62 | C63: =+CONCATENATE(" ipaddress ",Data!C19," ",Data!C20) -> ipaddress dhcp
A64: 63 | C64: tcp adjust-mss rx mtu
A65: 64 | C65: tcp adjust-mss tx mtu
A66: 65
A67: 66 | C67: context ip router
A68: 67 | C68: =+CONCATENATE(" route 0.0.0.0 0.0.0.0 ",Data!C22) -> route 0.0.0.0 0.0.0.0
A69: 68 | C69: context cs switch
A70: 69 | C70: =+IF(Data!C38=""," no digit-collection timeout",+CONCATENATE(" digit-collection timeout ",Data!C38)) -> digit-collection timeout 2
A71: 70
A72: 71 | B72: =+IF(Data!$C$6>0," ","#") -> # | C72: routing-table called-e164 RT_DIGITCOLLECTION
A73: 72 | B73: =+IF(Data!$C$6>0," ","#") -> # | C73: route .T dest-interface IF_SIP_PBX MT_EXT_TO_NAME
A74: 73
A75: 74 | B75: =+IF(Data!$C$6>0," ","#") -> # | C75: routing-table called-e164 RT_TO_FXS
A76: 75 | B76: =+IF(Data!$C$6>ROW('3CX'!B76)-ROW('3CX'!$B$76),"","#") -> # | C76: =+CONCATENATE(" route ",'Extension Table'!A2," dest-interface IF_FXS_",'Extension Table'!C2) -> route 101 dest-interface IF_FXS_1
A77: 76 | B77: =+IF(Data!$C$6>ROW('3CX'!B77)-ROW('3CX'!$B$76),"","#") -> # | C77: =+CONCATENATE(" route ",'Extension Table'!A3," dest-interface IF_FXS_",'Extension Table'!C3) -> route 102 dest-interface IF_FXS_2
A78: 77 | B78: =+IF(Data!$C$6>ROW('3CX'!B78)-ROW('3CX'!$B$76),"","#") -> # | C78: =+CONCATENATE(" route ",'Extension Table'!A4," dest-interface IF_FXS_",'Extension Table'!C4) -> route 103 dest-interface IF_FXS_3
A79: 78 | B79: =+IF(Data!$C$6>ROW('3CX'!B79)-ROW('3CX'!$B$76),"","#") -> # | C79: =+CONCATENATE(" route ",'Extension Table'!A5," dest-interface IF_FXS_",'Extension Table'!C5) -> route 104 dest-interface IF_FXS_4
A80: 79 | B80: =+IF(Data!$C$6>ROW('3CX'!B80)-ROW('3CX'!$B$76),"","#") -> # | C80: =+CONCATENATE(" route ",'Extension Table'!A6," dest-interface IF_FXS_",'Extension Table'!C6) -> route 105 dest-interface IF_FXS_5
A81: 80 | B81: =+IF(Data!$C$6>ROW('3CX'!B81)-ROW('3CX'!$B$76),"","#") -> # | C81: =+CONCATENATE(" route ",'Extension Table'!A7," dest-interface IF_FXS_",'Extension Table'!C7) -> route 106 dest-interface IF_FXS_6
A82: 81 | B82: =+IF(Data!$C$6>ROW('3CX'!B82)-ROW('3CX'!$B$76),"","#") -> # | C82: =+CONCATENATE(" route ",'Extension Table'!A8," dest-interface IF_FXS_",'Extension Table'!C8) -> route 107 dest-interface IF_FXS_7
A83: 82 | B83: =+IF(Data!$C$6>ROW('3CX'!B83)-ROW('3CX'!$B$76),"","#") -> # | C83: =+CONCATENATE(" route ",'Extension Table'!A9," dest-interface IF_FXS_",'Extension Table'!C9) -> route 108 dest-interface IF_FXS_8
A84: 83 | B84: =+IF(Data!$C$6>ROW('3CX'!B84)-ROW('3CX'!$B$76),"","#") -> # | C84: =+CONCATENATE(" route ",'Extension Table'!A10," dest-interface IF_FXS_",'Extension Table'!C10) -> route 109 dest-interface IF_FXS_9
A85: 84 | B85: =+IF(Data!$C$6>ROW('3CX'!B85)-ROW('3CX'!$B$76),"","#") -> # | C85: =+CONCATENATE(" route ",'Extension Table'!A11," dest-interface IF_FXS_",'Extension Table'!C11) -> route 110 dest-interface IF_FXS_10
A86: 85 | B86: =+IF(Data!$C$6>ROW('3CX'!B86)-ROW('3CX'!$B$76),"","#") -> # | C86: =+CONCATENATE(" route ",'Extension Table'!A12," dest-interface IF_FXS_",'Extension Table'!C12) -> route 111 dest-interface IF_FXS_11
A87: 86 | B87: =+IF(Data!$C$6>ROW('3CX'!B87)-ROW('3CX'!$B$76),"","#") -> # | C87: =+CONCATENATE(" route ",'Extension Table'!A13," dest-interface IF_FXS_",'Extension Table'!C13) -> route 112 dest-interface IF_FXS_12
A88: 87 | B88: =+IF(Data!$C$6>ROW('3CX'!B88)-ROW('3CX'!$B$76),"","#") -> # | C88: =+CONCATENATE(" route ",'Extension Table'!A14," dest-interface IF_FXS_",'Extension Table'!C14) -> route 113 dest-interface IF_FXS_13
A89: 88 | B89: =+IF(Data!$C$6>ROW('3CX'!B89)-ROW('3CX'!$B$76),"","#") -> # | C89: =+CONCATENATE(" route ",'Extension Table'!A15," dest-interface IF_FXS_",'Extension Table'!C15) -> route 114 dest-interface IF_FXS_14
A90: 89 | B90: =+IF(Data!$C$6>ROW('3CX'!B90)-ROW('3CX'!$B$76),"","#") -> # | C90: =+CONCATENATE(" route ",'Extension Table'!A16," dest-interface IF_FXS_",'Extension Table'!C16) -> route 115 dest-interface IF_FXS_15
A91: 90 | B91: =+IF(Data!$C$6>ROW('3CX'!B91)-ROW('3CX'!$B$76),"","#") -> # | C91: =+CONCATENATE(" route ",'Extension Table'!A17," dest-interface IF_FXS_",'Extension Table'!C17) -> route 116 dest-interface IF_FXS_16
A92: 91 | B92: =+IF(Data!$C$6>ROW('3CX'!B92)-ROW('3CX'!$B$76),"","#") -> # | C92: =+CONCATENATE(" route ",'Extension Table'!A18," dest-interface IF_FXS_",'Extension Table'!C18) -> route 117 dest-interface IF_FXS_17
A93: 92 | B93: =+IF(Data!$C$6>ROW('3CX'!B93)-ROW('3CX'!$B$76),"","#") -> # | C93: =+CONCATENATE(" route ",'Extension Table'!A19," dest-interface IF_FXS_",'Extension Table'!C19) -> route 118 dest-interface IF_FXS_18
A94: 93 | B94: =+IF(Data!$C$6>ROW('3CX'!B94)-ROW('3CX'!$B$76),"","#") -> # | C94: =+CONCATENATE(" route ",'Extension Table'!A20," dest-interface IF_FXS_",'Extension Table'!C20) -> route 119 dest-interface IF_FXS_19
A95: 94 | B95: =+IF(Data!$C$6>ROW('3CX'!B95)-ROW('3CX'!$B$76),"","#") -> # | C95: =+CONCATENATE(" route ",'Extension Table'!A21," dest-interface IF_FXS_",'Extension Table'!C21) -> route 120 dest-interface IF_FXS_20
A96: 95 | B96: =+IF(Data!$C$6>ROW('3CX'!B96)-ROW('3CX'!$B$76),"","#") -> # | C96: =+CONCATENATE(" route ",'Extension Table'!A22," dest-interface IF_FXS_",'Extension Table'!C22) -> route 121 dest-interface IF_FXS_21
A97: 96 | B97: =+IF(Data!$C$6>ROW('3CX'!B97)-ROW('3CX'!$B$76),"","#") -> # | C97: =+CONCATENATE(" route ",'Extension Table'!A23," dest-interface IF_FXS_",'Extension Table'!C23) -> route 122 dest-interface IF_FXS_22
A98: 97 | B98: =+IF(Data!$C$6>ROW('3CX'!B98)-ROW('3CX'!$B$76),"","#") -> # | C98: =+CONCATENATE(" route ",'Extension Table'!A24," dest-interface IF_FXS_",'Extension Table'!C24) -> route 123 dest-interface IF_FXS_23
A99: 98 | B99: =+IF(Data!$C$6>ROW('3CX'!B99)-ROW('3CX'!$B$76),"","#") -> # | C99: =+CONCATENATE(" route ",'Extension Table'!A25," dest-interface IF_FXS_",'Extension Table'!C25) -> route 124 dest-interface IF_FXS_24
A100: 99 | B100: =+IF(Data!$C$6>ROW('3CX'!B100)-ROW('3CX'!$B$76),"","#") -> # | C100: =+CONCATENATE(" route ",'Extension Table'!A26," dest-interface IF_FXS_",'Extension Table'!C26) -> route 125 dest-interface IF_FXS_25
A101: 100 | B101: =+IF(Data!$C$6>ROW('3CX'!B101)-ROW('3CX'!$B$76),"","#") -> # | C101: =+CONCATENATE(" route ",'Extension Table'!A27," dest-interface IF_FXS_",'Extension Table'!C27) -> route 126 dest-interface IF_FXS_26
A102: 101 | B102: =+IF(Data!$C$6>ROW('3CX'!B102)-ROW('3CX'!$B$76),"","#") -> # | C102: =+CONCATENATE(" route ",'Extension Table'!A28," dest-interface IF_FXS_",'Extension Table'!C28) -> route 127 dest-interface IF_FXS_27
A103: 102 | B103: =+IF(Data!$C$6>ROW('3CX'!B103)-ROW('3CX'!$B$76),"","#") -> # | C103: =+CONCATENATE(" route ",'Extension Table'!A29," dest-interface IF_FXS_",'Extension Table'!C29) -> route 128 dest-interface IF_FXS_28
A104: 103 | B104: =+IF(Data!$C$6>ROW('3CX'!B104)-ROW('3CX'!$B$76),"","#") -> # | C104: =+CONCATENATE(" route ",'Extension Table'!A30," dest-interface IF_FXS_",'Extension Table'!C30) -> route 129 dest-interface IF_FXS_29
A105: 104 | B105: =+IF(Data!$C$6>ROW('3CX'!B105)-ROW('3CX'!$B$76),"","#") -> # | C105: =+CONCATENATE(" route ",'Extension Table'!A31," dest-interface IF_FXS_",'Extension Table'!C31) -> route 130 dest-interface IF_FXS_30
A106: 105 | B106: =+IF(Data!$C$6>ROW('3CX'!B106)-ROW('3CX'!$B$76),"","#") -> # | C106: =+CONCATENATE(" route ",'Extension Table'!A32," dest-interface IF_FXS_",'Extension Table'!C32) -> route 131 dest-interface IF_FXS_31
A107: 106 | B107: =+IF(Data!$C$6>ROW('3CX'!B107)-ROW('3CX'!$B$76),"","#") -> # | C107: =+CONCATENATE(" route ",'Extension Table'!A33," dest-interface IF_FXS_",'Extension Table'!C33) -> route 132 dest-interface IF_FXS_32
A108: 107
A109: 108 | B109: =+IF(Data!$C$6>0," ","#") -> # | C109: mapping-table calling-e164 to calling-name MT_EXT_TO_NAME
A110: 109 | B110: =+IF(Data!$C$6>ROW('3CX'!B110)-ROW('3CX'!$B$110),"","#") -> # | C110: =+CONCATENATE(" map ",'Extension Table'!A2," to """,'Extension Table'!D2," ",'Extension Table'!E2,"""") -> map 101 to "Fname user 1 Lname user 1"
A111: 110 | B111: =+IF(Data!$C$6>ROW('3CX'!B111)-ROW('3CX'!$B$110),"","#") -> # | C111: =+CONCATENATE(" map ",'Extension Table'!A3," to """,'Extension Table'!D3," ",'Extension Table'!E3,"""") -> map 102 to "Fname user 2 Lname user 2"
A112: 111 | B112: =+IF(Data!$C$6>ROW('3CX'!B112)-ROW('3CX'!$B$110),"","#") -> # | C112: =+CONCATENATE(" map ",'Extension Table'!A4," to """,'Extension Table'!D4," ",'Extension Table'!E4,"""") -> map 103 to " "
A113: 112 | B113: =+IF(Data!$C$6>ROW('3CX'!B113)-ROW('3CX'!$B$110),"","#") -> # | C113: =+CONCATENATE(" map ",'Extension Table'!A5," to """,'Extension Table'!D5," ",'Extension Table'!E5,"""") -> map 104 to " "
A114: 113 | B114: =+IF(Data!$C$6>ROW('3CX'!B114)-ROW('3CX'!$B$110),"","#") -> # | C114: =+CONCATENATE(" map ",'Extension Table'!A6," to """,'Extension Table'!D6," ",'Extension Table'!E6,"""") -> map 105 to " "
A115: 114 | B115: =+IF(Data!$C$6>ROW('3CX'!B115)-ROW('3CX'!$B$110),"","#") -> # | C115: =+CONCATENATE(" map ",'Extension Table'!A7," to """,'Extension Table'!D7," ",'Extension Table'!E7,"""") -> map 106 to " "
A116: 115 | B116: =+IF(Data!$C$6>ROW('3CX'!B116)-ROW('3CX'!$B$110),"","#") -> # | C116: =+CONCATENATE(" map ",'Extension Table'!A8," to """,'Extension Table'!D8," ",'Extension Table'!E8,"""") -> map 107 to " "
A117: 116 | B117: =+IF(Data!$C$6>ROW('3CX'!B117)-ROW('3CX'!$B$110),"","#") -> # | C117: =+CONCATENATE(" map ",'Extension Table'!A9," to """,'Extension Table'!D9," ",'Extension Table'!E9,"""") -> map 108 to " "
A118: 117 | B118: =+IF(Data!$C$6>ROW('3CX'!B118)-ROW('3CX'!$B$110),"","#") -> # | C118: =+CONCATENATE(" map ",'Extension Table'!A10," to """,'Extension Table'!D10," ",'Extension Table'!E10,"""") -> map 109 to " "
A119: 118 | B119: =+IF(Data!$C$6>ROW('3CX'!B119)-ROW('3CX'!$B$110),"","#") -> # | C119: =+CONCATENATE(" map ",'Extension Table'!A11," to """,'Extension Table'!D11," ",'Extension Table'!E11,"""") -> map 110 to " "
A120: 119 | B120: =+IF(Data!$C$6>ROW('3CX'!B120)-ROW('3CX'!$B$110),"","#") -> # | C120: =+CONCATENATE(" map ",'Extension Table'!A12," to """,'Extension Table'!D12," ",'Extension Table'!E12,"""") -> map 111 to " "
A121: 120 | B121: =+IF(Data!$C$6>ROW('3CX'!B121)-ROW('3CX'!$B$110),"","#") -> # | C121: =+CONCATENATE(" map ",'Extension Table'!A13," to """,'Extension Table'!D13," ",'Extension Table'!E13,"""") -> map 112 to " "
A122: 121 | B122: =+IF(Data!$C$6>ROW('3CX'!B122)-ROW('3CX'!$B$110),"","#") -> # | C122: =+CONCATENATE(" map ",'Extension Table'!A14," to """,'Extension Table'!D14," ",'Extension Table'!E14,"""") -> map 113 to " "
A123: 122 | B123: =+IF(Data!$C$6>ROW('3CX'!B123)-ROW('3CX'!$B$110),"","#") -> # | C123: =+CONCATENATE(" map ",'Extension Table'!A15," to """,'Extension Table'!D15," ",'Extension Table'!E15,"""") -> map 114 to " "
A124: 123 | B124: =+IF(Data!$C$6>ROW('3CX'!B124)-ROW('3CX'!$B$110),"","#") -> # | C124: =+CONCATENATE(" map ",'Extension Table'!A16," to """,'Extension Table'!D16," ",'Extension Table'!E16,"""") -> map 115 to " "
A125: 124 | B125: =+IF(Data!$C$6>ROW('3CX'!B125)-ROW('3CX'!$B$110),"","#") -> # | C125: =+CONCATENATE(" map ",'Extension Table'!A17," to """,'Extension Table'!D17," ",'Extension Table'!E17,"""") -> map 116 to " "
A126: 125 | B126: =+IF(Data!$C$6>ROW('3CX'!B126)-ROW('3CX'!$B$110),"","#") -> # | C126: =+CONCATENATE(" map ",'Extension Table'!A18," to """,'Extension Table'!D18," ",'Extension Table'!E18,"""") -> map 117 to " "
A127: 126 | B127: =+IF(Data!$C$6>ROW('3CX'!B127)-ROW('3CX'!$B$110),"","#") -> # | C127: =+CONCATENATE(" map ",'Extension Table'!A19," to """,'Extension Table'!D19," ",'Extension Table'!E19,"""") -> map 118 to " "
A128: 127 | B128: =+IF(Data!$C$6>ROW('3CX'!B128)-ROW('3CX'!$B$110),"","#") -> # | C128: =+CONCATENATE(" map ",'Extension Table'!A20," to """,'Extension Table'!D20," ",'Extension Table'!E20,"""") -> map 119 to " "
A129: 128 | B129: =+IF(Data!$C$6>ROW('3CX'!B129)-ROW('3CX'!$B$110),"","#") -> # | C129: =+CONCATENATE(" map ",'Extension Table'!A21," to """,'Extension Table'!D21," ",'Extension Table'!E21,"""") -> map 120 to " "
A130: 129 | B130: =+IF(Data!$C$6>ROW('3CX'!B130)-ROW('3CX'!$B$110),"","#") -> # | C130: =+CONCATENATE(" map ",'Extension Table'!A22," to """,'Extension Table'!D22," ",'Extension Table'!E22,"""") -> map 121 to " "
A131: 130 | B131: =+IF(Data!$C$6>ROW('3CX'!B131)-ROW('3CX'!$B$110),"","#") -> # | C131: =+CONCATENATE(" map ",'Extension Table'!A23," to """,'Extension Table'!D23," ",'Extension Table'!E23,"""") -> map 122 to " "
A132: 131 | B132: =+IF(Data!$C$6>ROW('3CX'!B132)-ROW('3CX'!$B$110),"","#") -> # | C132: =+CONCATENATE(" map ",'Extension Table'!A24," to """,'Extension Table'!D24," ",'Extension Table'!E24,"""") -> map 123 to " "
A133: 132 | B133: =+IF(Data!$C$6>ROW('3CX'!B133)-ROW('3CX'!$B$110),"","#") -> # | C133: =+CONCATENATE(" map ",'Extension Table'!A25," to """,'Extension Table'!D25," ",'Extension Table'!E25,"""") -> map 124 to " "
A134: 133 | B134: =+IF(Data!$C$6>ROW('3CX'!B134)-ROW('3CX'!$B$110),"","#") -> # | C134: =+CONCATENATE(" map ",'Extension Table'!A26," to """,'Extension Table'!D26," ",'Extension Table'!E26,"""") -> map 125 to " "
A135: 134 | B135: =+IF(Data!$C$6>ROW('3CX'!B135)-ROW('3CX'!$B$110),"","#") -> # | C135: =+CONCATENATE(" map ",'Extension Table'!A27," to """,'Extension Table'!D27," ",'Extension Table'!E27,"""") -> map 126 to " "
A136: 135 | B136: =+IF(Data!$C$6>ROW('3CX'!B136)-ROW('3CX'!$B$110),"","#") -> # | C136: =+CONCATENATE(" map ",'Extension Table'!A28," to """,'Extension Table'!D28," ",'Extension Table'!E28,"""") -> map 127 to " "
A137: 136 | B137: =+IF(Data!$C$6>ROW('3CX'!B137)-ROW('3CX'!$B$110),"","#") -> # | C137: =+CONCATENATE(" map ",'Extension Table'!A29," to """,'Extension Table'!D29," ",'Extension Table'!E29,"""") -> map 128 to " "
A138: 137 | B138: =+IF(Data!$C$6>ROW('3CX'!B138)-ROW('3CX'!$B$110),"","#") -> # | C138: =+CONCATENATE(" map ",'Extension Table'!A30," to """,'Extension Table'!D30," ",'Extension Table'!E30,"""") -> map 129 to " "
A139: 138 | B139: =+IF(Data!$C$6>ROW('3CX'!B139)-ROW('3CX'!$B$110),"","#") -> # | C139: =+CONCATENATE(" map ",'Extension Table'!A31," to """,'Extension Table'!D31," ",'Extension Table'!E31,"""") -> map 130 to " "
A140: 139 | B140: =+IF(Data!$C$6>ROW('3CX'!B140)-ROW('3CX'!$B$110),"","#") -> # | C140: =+CONCATENATE(" map ",'Extension Table'!A32," to """,'Extension Table'!D32," ",'Extension Table'!E32,"""") -> map 131 to " "
A141: 140 | B141: =+IF(Data!$C$6>ROW('3CX'!B141)-ROW('3CX'!$B$110),"","#") -> # | C141: =+CONCATENATE(" map ",'Extension Table'!A33," to """,'Extension Table'!D33," ",'Extension Table'!E33,"""") -> map 132 to " "
A142: 141
A143: 142 | B143: =+IF(Data!$C$5>ROW('3CX'!B143)-ROW('3CX'!$B$143),"","#") ->  | C143: =+CONCATENATE(" interface sip IF_SIP_",'Line Table'!A2,CHAR(13),CHAR(10),," bind context sip-gateway GW_SIP_",'Line Table'!A2,CHAR(13),CHAR(10),," ",+'Line Table'!C2,CHAR(13),CHAR(10),," early-disconnect",CHAR(13),CHAR(10),," route call dest-interface IF_FXO_",'Line Table'!A2,CHAR(13),CHAR(10),," remote ",Data!$C$24," ",Data!$C$25,CHAR(13),CHAR(10),," address-translation outgoing-call request-uri user-part fix ",'Line Table'!B2," host-part to-header target-param none",CHAR(13),CHAR(10),," address-translation incoming-call called-e164 request-uri",CHAR(13),CHAR(10),,CHAR(13),CHAR(10),) -> interface sip IF_SIP_1 bind context sip-gateway GW_SIP_1 early-connect early-disconnect route call dest-interface IF_FXO_1 remote 10.10.50.23 5060 address-translation outgoing-call request-uri user-part fix 10002 host-part to-header target-param none address-translation incoming-call called-e164 request-uri
A144: 143 | B144: =+IF(Data!$C$5>ROW('3CX'!B144)-ROW('3CX'!$B$143),"","#") ->  | C144: =+CONCATENATE(" interface sip IF_SIP_",'Line Table'!A3,CHAR(13),CHAR(10),," bind context sip-gateway GW_SIP_",'Line Table'!A3,CHAR(13),CHAR(10),," ",+'Line Table'!C3,CHAR(13),CHAR(10),," early-disconnect",CHAR(13),CHAR(10),," route call dest-interface IF_FXO_",'Line Table'!A3,CHAR(13),CHAR(10),," remote ",Data!$C$24," ",Data!$C$25,CHAR(13),CHAR(10),," address-translation outgoing-call request-uri user-part fix ",'Line Table'!B3," host-part to-header target-param none",CHAR(13),CHAR(10),," address-translation incoming-call called-e164 request-uri",CHAR(13),CHAR(10),,CHAR(13),CHAR(10),) -> interface sip IF_SIP_2 bind context sip-gateway GW_SIP_2 early-connect early-disconnect route call dest-interface IF_FXO_2 remote 10.10.50.23 5060 address-translation outgoing-call request-uri user-part fix 10003 host-part to-header target-param none address-translation incoming-call called-e164 request-uri
A145: 144 | B145: =+IF(Data!$C$5>ROW('3CX'!B145)-ROW('3CX'!$B$143),"","#") ->  | C145: =+CONCATENATE(" interface sip IF_SIP_",'Line Table'!A4,CHAR(13),CHAR(10),," bind context sip-gateway GW_SIP_",'Line Table'!A4,CHAR(13),CHAR(10),," ",+'Line Table'!C4,CHAR(13),CHAR(10),," early-disconnect",CHAR(13),CHAR(10),," route call dest-interface IF_FXO_",'Line Table'!A4,CHAR(13),CHAR(10),," remote ",Data!$C$24," ",Data!$C$25,CHAR(13),CHAR(10),," address-translation outgoing-call request-uri user-part fix ",'Line Table'!B4," host-part to-header target-param none",CHAR(13),CHAR(10),," address-translation incoming-call called-e164 request-uri",CHAR(13),CHAR(10),,CHAR(13),CHAR(10),) -> interface sip IF_SIP_3 bind context sip-gateway GW_SIP_3 early-connect early-disconnect route call dest-interface IF_FXO_3 remote 10.10.50.23 5060 address-translation outgoing-call request-uri user-part fix 10004 host-part to-header target-param none address-translation incoming-call called-e164 request-uri
A146: 145 | B146: =+IF(Data!$C$5>ROW('3CX'!B146)-ROW('3CX'!$B$143),"","#") ->  | C146: =+CONCATENATE(" interface sip IF_SIP_",'Line Table'!A5,CHAR(13),CHAR(10),," bind context sip-gateway GW_SIP_",'Line Table'!A5,CHAR(13),CHAR(10),," ",+'Line Table'!C5,CHAR(13),CHAR(10),," early-disconnect",CHAR(13),CHAR(10),," route call dest-interface IF_FXO_",'Line Table'!A5,CHAR(13),CHAR(10),," remote ",Data!$C$24," ",Data!$C$25,CHAR(13),CHAR(10),," address-translation outgoing-call request-uri user-part fix ",'Line Table'!B5," host-part to-header target-param none",CHAR(13),CHAR(10),," address-translation incoming-call called-e164 request-uri",CHAR(13),CHAR(10),,CHAR(13),CHAR(10),) -> interface sip IF_SIP_4 bind context sip-gateway GW_SIP_4 early-connect early-disconnect route call dest-interface IF_FXO_4 remote 10.10.50.23 5060 address-translation outgoing-call request-uri user-part fix 10005 host-part to-header target-param none address-translation incoming-call called-e164 request-uri
A147: 146 | B147: =+IF(Data!$C$5>ROW('3CX'!B147)-ROW('3CX'!$B$143),"","#") ->  | C147: =+CONCATENATE(" interface sip IF_SIP_",'Line Table'!A6,CHAR(13),CHAR(10),," bind context sip-gateway GW_SIP_",'Line Table'!A6,CHAR(13),CHAR(10),," ",+'Line Table'!C6,CHAR(13),CHAR(10),," early-disconnect",CHAR(13),CHAR(10),," route call dest-interface IF_FXO_",'Line Table'!A6,CHAR(13),CHAR(10),," remote ",Data!$C$24," ",Data!$C$25,CHAR(13),CHAR(10),," address-translation outgoing-call request-uri user-part fix ",'Line Table'!B6," host-part to-header target-param none",CHAR(13),CHAR(10),," address-translation incoming-call called-e164 request-uri",CHAR(13),CHAR(10),,CHAR(13),CHAR(10),) -> interface sip IF_SIP_5 bind context sip-gateway GW_SIP_5 early-connect early-disconnect route call dest-interface IF_FXO_5 remote 10.10.50.23 5060 address-translation outgoing-call request-uri user-part fix 10006 host-part to-header target-param none address-translation incoming-call called-e164 request-uri
A148: 147 | B148: =+IF(Data!$C$5>ROW('3CX'!B148)-ROW('3CX'!$B$143),"","#") ->  | C148: =+CONCATENATE(" interface sip IF_SIP_",'Line Table'!A7,CHAR(13),CHAR(10),," bind context sip-gateway GW_SIP_",'Line Table'!A7,CHAR(13),CHAR(10),," ",+'Line Table'!C7,CHAR(13),CHAR(10),," early-disconnect",CHAR(13),CHAR(10),," route call dest-interface IF_FXO_",'Line Table'!A7,CHAR(13),CHAR(10),," remote ",Data!$C$24," ",Data!$C$25,CHAR(13),CHAR(10),," address-translation outgoing-call request-uri user-part fix ",'Line Table'!B7," host-part to-header target-param none",CHAR(13),CHAR(10),," address-translation incoming-call called-e164 request-uri",CHAR(13),CHAR(10),,CHAR(13),CHAR(10),) -> interface sip IF_SIP_6 bind context sip-gateway GW_SIP_6 early-connect early-disconnect route call dest-interface IF_FXO_6 remote 10.10.50.23 5060 address-translation outgoing-call request-uri user-part fix 10007 host-part to-header target-param none address-translation incoming-call called-e164 request-uri
A149: 148 | B149: =+IF(Data!$C$5>ROW('3CX'!B149)-ROW('3CX'!$B$143),"","#") ->  | C149: =+CONCATENATE(" interface sip IF_SIP_",'Line Table'!A8,CHAR(13),CHAR(10),," bind context sip-gateway GW_SIP_",'Line Table'!A8,CHAR(13),CHAR(10),," ",+'Line Table'!C8,CHAR(13),CHAR(10),," early-disconnect",CHAR(13),CHAR(10),," route call dest-interface IF_FXO_",'Line Table'!A8,CHAR(13),CHAR(10),," remote ",Data!$C$24," ",Data!$C$25,CHAR(13),CHAR(10),," address-translation outgoing-call request-uri user-part fix ",'Line Table'!B8," host-part to-header target-param none",CHAR(13),CHAR(10),," address-translation incoming-call called-e164 request-uri",CHAR(13),CHAR(10),,CHAR(13),CHAR(10),) -> interface sip IF_SIP_7 bind context sip-gateway GW_SIP_7 early-connect early-disconnect route call dest-interface IF_FXO_7 remote 10.10.50.23 5060 address-translation outgoing-call request-uri user-part fix 10008 host-part to-header target-param none address-translation incoming-call called-e164 request-uri
A150: 149 | B150: =+IF(Data!$C$5>ROW('3CX'!B150)-ROW('3CX'!$B$143),"","#") ->  | C150: =+CONCATENATE(" interface sip IF_SIP_",'Line Table'!A9,CHAR(13),CHAR(10),," bind context sip-gateway GW_SIP_",'Line Table'!A9,CHAR(13),CHAR(10),," ",+'Line Table'!C9,CHAR(13),CHAR(10),," early-disconnect",CHAR(13),CHAR(10),," route call dest-interface IF_FXO_",'Line Table'!A9,CHAR(13),CHAR(10),," remote ",Data!$C$24," ",Data!$C$25,CHAR(13),CHAR(10),," address-translation outgoing-call request-uri user-part fix ",'Line Table'!B9," host-part to-header target-param none",CHAR(13),CHAR(10),," address-translation incoming-call called-e164 request-uri",CHAR(13),CHAR(10),,CHAR(13),CHAR(10),) -> interface sip IF_SIP_8 bind context sip-gateway GW_SIP_8 early-connect early-disconnect route call dest-interface IF_FXO_8 remote 10.10.50.23 5060 address-translation outgoing-call request-uri user-part fix 10009 host-part to-header target-param none address-translation incoming-call called-e164 request-uri
A151: 150 | B151: =+IF(Data!$C$5>ROW('3CX'!B151)-ROW('3CX'!$B$143),"","#") ->  | C151: =+CONCATENATE(" interface sip IF_SIP_",'Line Table'!A10,CHAR(13),CHAR(10),," bind context sip-gateway GW_SIP_",'Line Table'!A10,CHAR(13),CHAR(10),," ",+'Line Table'!C10,CHAR(13),CHAR(10),," early-disconnect",CHAR(13),CHAR(10),," route call dest-interface IF_FXO_",'Line Table'!A10,CHAR(13),CHAR(10),," remote ",Data!$C$24," ",Data!$C$25,CHAR(13),CHAR(10),," address-translation outgoing-call request-uri user-part fix ",'Line Table'!B10," host-part to-header target-param none",CHAR(13),CHAR(10),," address-translation incoming-call called-e164 request-uri",CHAR(13),CHAR(10),,CHAR(13),CHAR(10),) -> interface sip IF_SIP_9 bind context sip-gateway GW_SIP_9 early-connect early-disconnect route call dest-interface IF_FXO_9 remote 10.10.50.23 5060 address-translation outgoing-call request-uri user-part fix 10010 host-part to-header target-param none address-translation incoming-call called-e164 request-uri
A152: 151 | B152: =+IF(Data!$C$5>ROW('3CX'!B152)-ROW('3CX'!$B$143),"","#") ->  | C152: =+CONCATENATE(" interface sip IF_SIP_",'Line Table'!A11,CHAR(13),CHAR(10),," bind context sip-gateway GW_SIP_",'Line Table'!A11,CHAR(13),CHAR(10),," ",+'Line Table'!C11,CHAR(13),CHAR(10),," early-disconnect",CHAR(13),CHAR(10),," route call dest-interface IF_FXO_",'Line Table'!A11,CHAR(13),CHAR(10),," remote ",Data!$C$24," ",Data!$C$25,CHAR(13),CHAR(10),," address-translation outgoing-call request-uri user-part fix ",'Line Table'!B11," host-part to-header target-param none",CHAR(13),CHAR(10),," address-translation incoming-call called-e164 request-uri",CHAR(13),CHAR(10),,CHAR(13),CHAR(10),) -> interface sip IF_SIP_10 bind context sip-gateway GW_SIP_10 early-connect early-disconnect route call dest-interface IF_FXO_10 remote 10.10.50.23 5060 address-translation outgoing-call request-uri user-part fix 10011 host-part to-header target-param none address-translation incoming-call called-e164 request-uri
A153: 152 | B153: =+IF(Data!$C$5>ROW('3CX'!B153)-ROW('3CX'!$B$143),"","#") ->  | C153: =+CONCATENATE(" interface sip IF_SIP_",'Line Table'!A12,CHAR(13),CHAR(10),," bind context sip-gateway GW_SIP_",'Line Table'!A12,CHAR(13),CHAR(10),," ",+'Line Table'!C12,CHAR(13),CHAR(10),," early-disconnect",CHAR(13),CHAR(10),," route call dest-interface IF_FXO_",'Line Table'!A12,CHAR(13),CHAR(10),," remote ",Data!$C$24," ",Data!$C$25,CHAR(13),CHAR(10),," address-translation outgoing-call request-uri user-part fix ",'Line Table'!B12," host-part to-header target-param none",CHAR(13),CHAR(10),," address-translation incoming-call called-e164 request-uri",CHAR(13),CHAR(10),,CHAR(13),CHAR(10),) -> interface sip IF_SIP_11 bind context sip-gateway GW_SIP_11 early-connect early-disconnect route call dest-interface IF_FXO_11 remote 10.10.50.23 5060 address-translation outgoing-call request-uri user-part fix 10012 host-part to-header target-param none address-translation incoming-call called-e164 request-uri
A154: 153 | B154: =+IF(Data!$C$5>ROW('3CX'!B154)-ROW('3CX'!$B$143),"","#") ->  | C154: =+CONCATENATE(" interface sip IF_SIP_",'Line Table'!A13,CHAR(13),CHAR(10),," bind context sip-gateway GW_SIP_",'Line Table'!A13,CHAR(13),CHAR(10),," ",+'Line Table'!C13,CHAR(13),CHAR(10),," early-disconnect",CHAR(13),CHAR(10),," route call dest-interface IF_FXO_",'Line Table'!A13,CHAR(13),CHAR(10),," remote ",Data!$C$24," ",Data!$C$25,CHAR(13),CHAR(10),," address-translation outgoing-call request-uri user-part fix ",'Line Table'!B13," host-part to-header target-param none",CHAR(13),CHAR(10),," address-translation incoming-call called-e164 request-uri",CHAR(13),CHAR(10),,CHAR(13),CHAR(10),) -> interface sip IF_SIP_12 bind context sip-gateway GW_SIP_12 early-connect early-disconnect route call dest-interface IF_FXO_12 remote 10.10.50.23 5060 address-translation outgoing-call request-uri user-part fix 10013 host-part to-header target-param none address-translation incoming-call called-e164 request-uri
A155: 154 | B155: =+IF(Data!$C$5>ROW('3CX'!B155)-ROW('3CX'!$B$143),"","#") -> # | C155: =+CONCATENATE(" interface sip IF_SIP_",'Line Table'!A14,CHAR(13),CHAR(10),," bind context sip-gateway GW_SIP_",'Line Table'!A14,CHAR(13),CHAR(10),," ",+'Line Table'!C14,CHAR(13),CHAR(10),," early-disconnect",CHAR(13),CHAR(10),," route call dest-interface IF_FXO_",'Line Table'!A14,CHAR(13),CHAR(10),," remote ",Data!$C$24," ",Data!$C$25,CHAR(13),CHAR(10),," address-translation outgoing-call request-uri user-part fix ",'Line Table'!B14," host-part to-header target-param none",CHAR(13),CHAR(10),," address-translation incoming-call called-e164 request-uri",CHAR(13),CHAR(10),,CHAR(13),CHAR(10),) -> interface sip IF_SIP_13 bind context sip-gateway GW_SIP_13 early-connect early-disconnect route call dest-interface IF_FXO_13 remote 10.10.50.23 5060 address-translation outgoing-call request-uri user-part fix 10014 host-part to-header target-param none address-translation incoming-call called-e164 request-uri
A156: 155 | B156: =+IF(Data!$C$5>ROW('3CX'!B156)-ROW('3CX'!$B$143),"","#") -> # | C156: =+CONCATENATE(" interface sip IF_SIP_",'Line Table'!A15,CHAR(13),CHAR(10),," bind context sip-gateway GW_SIP_",'Line Table'!A15,CHAR(13),CHAR(10),," ",+'Line Table'!C15,CHAR(13),CHAR(10),," early-disconnect",CHAR(13),CHAR(10),," route call dest-interface IF_FXO_",'Line Table'!A15,CHAR(13),CHAR(10),," remote ",Data!$C$24," ",Data!$C$25,CHAR(13),CHAR(10),," address-translation outgoing-call request-uri user-part fix ",'Line Table'!B15," host-part to-header target-param none",CHAR(13),CHAR(10),," address-translation incoming-call called-e164 request-uri",CHAR(13),CHAR(10),,CHAR(13),CHAR(10),) -> interface sip IF_SIP_14 bind context sip-gateway GW_SIP_14 early-connect early-disconnect route call dest-interface IF_FXO_14 remote 10.10.50.23 5060 address-translation outgoing-call request-uri user-part fix 10015 host-part to-header target-param none address-translation incoming-call called-e164 request-uri
A157: 156 | B157: =+IF(Data!$C$5>ROW('3CX'!B157)-ROW('3CX'!$B$143),"","#") -> # | C157: =+CONCATENATE(" interface sip IF_SIP_",'Line Table'!A16,CHAR(13),CHAR(10),," bind context sip-gateway GW_SIP_",'Line Table'!A16,CHAR(13),CHAR(10),," ",+'Line Table'!C16,CHAR(13),CHAR(10),," early-disconnect",CHAR(13),CHAR(10),," route call dest-interface IF_FXO_",'Line Table'!A16,CHAR(13),CHAR(10),," remote ",Data!$C$24," ",Data!$C$25,CHAR(13),CHAR(10),," address-translation outgoing-call request-uri user-part fix ",'Line Table'!B16," host-part to-header target-param none",CHAR(13),CHAR(10),," address-translation incoming-call called-e164 request-uri",CHAR(13),CHAR(10),,CHAR(13),CHAR(10),) -> interface sip IF_SIP_15 bind context sip-gateway GW_SIP_15 early-connect early-disconnect route call dest-interface IF_FXO_15 remote 10.10.50.23 5060 address-translation outgoing-call request-uri user-part fix 10016 host-part to-header target-param none address-translation incoming-call called-e164 request-uri
A158: 157 | B158: =+IF(Data!$C$5>ROW('3CX'!B158)-ROW('3CX'!$B$143),"","#") -> # | C158: =+CONCATENATE(" interface sip IF_SIP_",'Line Table'!A17,CHAR(13),CHAR(10),," bind context sip-gateway GW_SIP_",'Line Table'!A17,CHAR(13),CHAR(10),," ",+'Line Table'!C17,CHAR(13),CHAR(10),," early-disconnect",CHAR(13),CHAR(10),," route call dest-interface IF_FXO_",'Line Table'!A17,CHAR(13),CHAR(10),," remote ",Data!$C$24," ",Data!$C$25,CHAR(13),CHAR(10),," address-translation outgoing-call request-uri user-part fix ",'Line Table'!B17," host-part to-header target-param none",CHAR(13),CHAR(10),," address-translation incoming-call called-e164 request-uri",CHAR(13),CHAR(10),,CHAR(13),CHAR(10),) -> interface sip IF_SIP_16 bind context sip-gateway GW_SIP_16 early-connect early-disconnect route call dest-interface IF_FXO_16 remote 10.10.50.23 5060 address-translation outgoing-call request-uri user-part fix 10017 host-part to-header target-param none address-translation incoming-call called-e164 request-uri
A159: 158 | B159: =+IF(Data!$C$5>ROW('3CX'!B159)-ROW('3CX'!$B$143),"","#") -> # | C159: =+CONCATENATE(" interface sip IF_SIP_",'Line Table'!A18,CHAR(13),CHAR(10),," bind context sip-gateway GW_SIP_",'Line Table'!A18,CHAR(13),CHAR(10),," ",+'Line Table'!C18,CHAR(13),CHAR(10),," early-disconnect",CHAR(13),CHAR(10),," route call dest-interface IF_FXO_",'Line Table'!A18,CHAR(13),CHAR(10),," remote ",Data!$C$24," ",Data!$C$25,CHAR(13),CHAR(10),," address-translation outgoing-call request-uri user-part fix ",'Line Table'!B18," host-part to-header target-param none",CHAR(13),CHAR(10),," address-translation incoming-call called-e164 request-uri",CHAR(13),CHAR(10),,CHAR(13),CHAR(10),) -> interface sip IF_SIP_17 bind context sip-gateway GW_SIP_17 early-connect early-disconnect route call dest-interface IF_FXO_17 remote 10.10.50.23 5060 address-translation outgoing-call request-uri user-part fix 10018 host-part to-header target-param none address-translation incoming-call called-e164 request-uri
A160: 159 | B160: =+IF(Data!$C$5>ROW('3CX'!B160)-ROW('3CX'!$B$143),"","#") -> # | C160: =+CONCATENATE(" interface sip IF_SIP_",'Line Table'!A19,CHAR(13),CHAR(10),," bind context sip-gateway GW_SIP_",'Line Table'!A19,CHAR(13),CHAR(10),," ",+'Line Table'!C19,CHAR(13),CHAR(10),," early-disconnect",CHAR(13),CHAR(10),," route call dest-interface IF_FXO_",'Line Table'!A19,CHAR(13),CHAR(10),," remote ",Data!$C$24," ",Data!$C$25,CHAR(13),CHAR(10),," address-translation outgoing-call request-uri user-part fix ",'Line Table'!B19," host-part to-header target-param none",CHAR(13),CHAR(10),," address-translation incoming-call called-e164 request-uri",CHAR(13),CHAR(10),,CHAR(13),CHAR(10),) -> interface sip IF_SIP_18 bind context sip-gateway GW_SIP_18 early-connect early-disconnect route call dest-interface IF_FXO_18 remote 10.10.50.23 5060 address-translation outgoing-call request-uri user-part fix 10019 host-part to-header target-param none address-translation incoming-call called-e164 request-uri
A161: 160 | B161: =+IF(Data!$C$5>ROW('3CX'!B161)-ROW('3CX'!$B$143),"","#") -> # | C161: =+CONCATENATE(" interface sip IF_SIP_",'Line Table'!A20,CHAR(13),CHAR(10),," bind context sip-gateway GW_SIP_",'Line Table'!A20,CHAR(13),CHAR(10),," ",+'Line Table'!C20,CHAR(13),CHAR(10),," early-disconnect",CHAR(13),CHAR(10),," route call dest-interface IF_FXO_",'Line Table'!A20,CHAR(13),CHAR(10),," remote ",Data!$C$24," ",Data!$C$25,CHAR(13),CHAR(10),," address-translation outgoing-call request-uri user-part fix ",'Line Table'!B20," host-part to-header target-param none",CHAR(13),CHAR(10),," address-translation incoming-call called-e164 request-uri",CHAR(13),CHAR(10),,CHAR(13),CHAR(10),) -> interface sip IF_SIP_19 bind context sip-gateway GW_SIP_19 early-connect early-disconnect route call dest-interface IF_FXO_19 remote 10.10.50.23 5060 address-translation outgoing-call request-uri user-part fix 10020 host-part to-header target-param none address-translation incoming-call called-e164 request-uri
A162: 161 | B162: =+IF(Data!$C$5>ROW('3CX'!B162)-ROW('3CX'!$B$143),"","#") -> # | C162: =+CONCATENATE(" interface sip IF_SIP_",'Line Table'!A21,CHAR(13),CHAR(10),," bind context sip-gateway GW_SIP_",'Line Table'!A21,CHAR(13),CHAR(10),," ",+'Line Table'!C21,CHAR(13),CHAR(10),," early-disconnect",CHAR(13),CHAR(10),," route call dest-interface IF_FXO_",'Line Table'!A21,CHAR(13),CHAR(10),," remote ",Data!$C$24," ",Data!$C$25,CHAR(13),CHAR(10),," address-translation outgoing-call request-uri user-part fix ",'Line Table'!B21," host-part to-header target-param none",CHAR(13),CHAR(10),," address-translation incoming-call called-e164 request-uri",CHAR(13),CHAR(10),,CHAR(13),CHAR(10),) -> interface sip IF_SIP_20 bind context sip-gateway GW_SIP_20 early-connect early-disconnect route call dest-interface IF_FXO_20 remote 10.10.50.23 5060 address-translation outgoing-call request-uri user-part fix 10021 host-part to-header target-param none address-translation incoming-call called-e164 request-uri
A163: 162 | B163: =+IF(Data!$C$5>ROW('3CX'!B163)-ROW('3CX'!$B$143),"","#") -> # | C163: =+CONCATENATE(" interface sip IF_SIP_",'Line Table'!A22,CHAR(13),CHAR(10),," bind context sip-gateway GW_SIP_",'Line Table'!A22,CHAR(13),CHAR(10),," ",+'Line Table'!C22,CHAR(13),CHAR(10),," early-disconnect",CHAR(13),CHAR(10),," route call dest-interface IF_FXO_",'Line Table'!A22,CHAR(13),CHAR(10),," remote ",Data!$C$24," ",Data!$C$25,CHAR(13),CHAR(10),," address-translation outgoing-call request-uri user-part fix ",'Line Table'!B22," host-part to-header target-param none",CHAR(13),CHAR(10),," address-translation incoming-call called-e164 request-uri",CHAR(13),CHAR(10),,CHAR(13),CHAR(10),) -> interface sip IF_SIP_21 bind context sip-gateway GW_SIP_21 early-connect early-disconnect route call dest-interface IF_FXO_21 remote 10.10.50.23 5060 address-translation outgoing-call request-uri user-part fix 10022 host-part to-header target-param none address-translation incoming-call called-e164 request-uri
A164: 163 | B164: =+IF(Data!$C$5>ROW('3CX'!B164)-ROW('3CX'!$B$143),"","#") -> # | C164: =+CONCATENATE(" interface sip IF_SIP_",'Line Table'!A23,CHAR(13),CHAR(10),," bind context sip-gateway GW_SIP_",'Line Table'!A23,CHAR(13),CHAR(10),," ",+'Line Table'!C23,CHAR(13),CHAR(10),," early-disconnect",CHAR(13),CHAR(10),," route call dest-interface IF_FXO_",'Line Table'!A23,CHAR(13),CHAR(10),," remote ",Data!$C$24," ",Data!$C$25,CHAR(13),CHAR(10),," address-translation outgoing-call request-uri user-part fix ",'Line Table'!B23," host-part to-header target-param none",CHAR(13),CHAR(10),," address-translation incoming-call called-e164 request-uri",CHAR(13),CHAR(10),,CHAR(13),CHAR(10),) -> interface sip IF_SIP_22 bind context sip-gateway GW_SIP_22 early-connect early-disconnect route call dest-interface IF_FXO_22 remote 10.10.50.23 5060 address-translation outgoing-call request-uri user-part fix 10023 host-part to-header target-param none address-translation incoming-call called-e164 request-uri
A165: 164 | B165: =+IF(Data!$C$5>ROW('3CX'!B165)-ROW('3CX'!$B$143),"","#") -> # | C165: =+CONCATENATE(" interface sip IF_SIP_",'Line Table'!A24,CHAR(13),CHAR(10),," bind context sip-gateway GW_SIP_",'Line Table'!A24,CHAR(13),CHAR(10),," ",+'Line Table'!C24,CHAR(13),CHAR(10),," early-disconnect",CHAR(13),CHAR(10),," route call dest-interface IF_FXO_",'Line Table'!A24,CHAR(13),CHAR(10),," remote ",Data!$C$24," ",Data!$C$25,CHAR(13),CHAR(10),," address-translation outgoing-call request-uri user-part fix ",'Line Table'!B24," host-part to-header target-param none",CHAR(13),CHAR(10),," address-translation incoming-call called-e164 request-uri",CHAR(13),CHAR(10),,CHAR(13),CHAR(10),) -> interface sip IF_SIP_23 bind context sip-gateway GW_SIP_23 early-connect early-disconnect route call dest-interface IF_FXO_23 remote 10.10.50.23 5060 address-translation outgoing-call request-uri user-part fix 10024 host-part to-header target-param none address-translation incoming-call called-e164 request-uri
A166: 165 | B166: =+IF(Data!$C$5>ROW('3CX'!B166)-ROW('3CX'!$B$143),"","#") -> # | C166: =+CONCATENATE(" interface sip IF_SIP_",'Line Table'!A25,CHAR(13),CHAR(10),," bind context sip-gateway GW_SIP_",'Line Table'!A25,CHAR(13),CHAR(10),," ",+'Line Table'!C25,CHAR(13),CHAR(10),," early-disconnect",CHAR(13),CHAR(10),," route call dest-interface IF_FXO_",'Line Table'!A25,CHAR(13),CHAR(10),," remote ",Data!$C$24," ",Data!$C$25,CHAR(13),CHAR(10),," address-translation outgoing-call request-uri user-part fix ",'Line Table'!B25," host-part to-header target-param none",CHAR(13),CHAR(10),," address-translation incoming-call called-e164 request-uri",CHAR(13),CHAR(10),,CHAR(13),CHAR(10),) -> interface sip IF_SIP_24 bind context sip-gateway GW_SIP_24 early-connect early-disconnect route call dest-interface IF_FXO_24 remote 10.10.50.23 5060 address-translation outgoing-call request-uri user-part fix 10025 host-part to-header target-param none address-translation incoming-call called-e164 request-uri
A167: 166 | B167: =+IF(Data!$C$5>ROW('3CX'!B167)-ROW('3CX'!$B$143),"","#") -> # | C167: =+CONCATENATE(" interface sip IF_SIP_",'Line Table'!A26,CHAR(13),CHAR(10),," bind context sip-gateway GW_SIP_",'Line Table'!A26,CHAR(13),CHAR(10),," ",+'Line Table'!C26,CHAR(13),CHAR(10),," early-disconnect",CHAR(13),CHAR(10),," route call dest-interface IF_FXO_",'Line Table'!A26,CHAR(13),CHAR(10),," remote ",Data!$C$24," ",Data!$C$25,CHAR(13),CHAR(10),," address-translation outgoing-call request-uri user-part fix ",'Line Table'!B26," host-part to-header target-param none",CHAR(13),CHAR(10),," address-translation incoming-call called-e164 request-uri",CHAR(13),CHAR(10),,CHAR(13),CHAR(10),) -> interface sip IF_SIP_25 bind context sip-gateway GW_SIP_25 early-connect early-disconnect route call dest-interface IF_FXO_25 remote 10.10.50.23 5060 address-translation outgoing-call request-uri user-part fix 10026 host-part to-header target-param none address-translation incoming-call called-e164 request-uri
A168: 167 | B168: =+IF(Data!$C$5>ROW('3CX'!B168)-ROW('3CX'!$B$143),"","#") -> # | C168: =+CONCATENATE(" interface sip IF_SIP_",'Line Table'!A27,CHAR(13),CHAR(10),," bind context sip-gateway GW_SIP_",'Line Table'!A27,CHAR(13),CHAR(10),," ",+'Line Table'!C27,CHAR(13),CHAR(10),," early-disconnect",CHAR(13),CHAR(10),," route call dest-interface IF_FXO_",'Line Table'!A27,CHAR(13),CHAR(10),," remote ",Data!$C$24," ",Data!$C$25,CHAR(13),CHAR(10),," address-translation outgoing-call request-uri user-part fix ",'Line Table'!B27," host-part to-header target-param none",CHAR(13),CHAR(10),," address-translation incoming-call called-e164 request-uri",CHAR(13),CHAR(10),,CHAR(13),CHAR(10),) -> interface sip IF_SIP_26 bind context sip-gateway GW_SIP_26 early-connect early-disconnect route call dest-interface IF_FXO_26 remote 10.10.50.23 5060 address-translation outgoing-call request-uri user-part fix 10027 host-part to-header target-param none address-translation incoming-call called-e164 request-uri
A169: 168 | B169: =+IF(Data!$C$5>ROW('3CX'!B169)-ROW('3CX'!$B$143),"","#") -> # | C169: =+CONCATENATE(" interface sip IF_SIP_",'Line Table'!A28,CHAR(13),CHAR(10),," bind context sip-gateway GW_SIP_",'Line Table'!A28,CHAR(13),CHAR(10),," ",+'Line Table'!C28,CHAR(13),CHAR(10),," early-disconnect",CHAR(13),CHAR(10),," route call dest-interface IF_FXO_",'Line Table'!A28,CHAR(13),CHAR(10),," remote ",Data!$C$24," ",Data!$C$25,CHAR(13),CHAR(10),," address-translation outgoing-call request-uri user-part fix ",'Line Table'!B28," host-part to-header target-param none",CHAR(13),CHAR(10),," address-translation incoming-call called-e164 request-uri",CHAR(13),CHAR(10),,CHAR(13),CHAR(10),) -> interface sip IF_SIP_27 bind context sip-gateway GW_SIP_27 early-connect early-disconnect route call dest-interface IF_FXO_27 remote 10.10.50.23 5060 address-translation outgoing-call request-uri user-part fix 10028 host-part to-header target-param none address-translation incoming-call called-e164 request-uri
A170: 169 | B170: =+IF(Data!$C$5>ROW('3CX'!B170)-ROW('3CX'!$B$143),"","#") -> # | C170: =+CONCATENATE(" interface sip IF_SIP_",'Line Table'!A29,CHAR(13),CHAR(10),," bind context sip-gateway GW_SIP_",'Line Table'!A29,CHAR(13),CHAR(10),," ",+'Line Table'!C29,CHAR(13),CHAR(10),," early-disconnect",CHAR(13),CHAR(10),," route call dest-interface IF_FXO_",'Line Table'!A29,CHAR(13),CHAR(10),," remote ",Data!$C$24," ",Data!$C$25,CHAR(13),CHAR(10),," address-translation outgoing-call request-uri user-part fix ",'Line Table'!B29," host-part to-header target-param none",CHAR(13),CHAR(10),," address-translation incoming-call called-e164 request-uri",CHAR(13),CHAR(10),,CHAR(13),CHAR(10),) -> interface sip IF_SIP_28 bind context sip-gateway GW_SIP_28 early-connect early-disconnect route call dest-interface IF_FXO_28 remote 10.10.50.23 5060 address-translation outgoing-call request-uri user-part fix 10029 host-part to-header target-param none address-translation incoming-call called-e164 request-uri
A171: 170 | B171: =+IF(Data!$C$5>ROW('3CX'!B171)-ROW('3CX'!$B$143),"","#") -> # | C171: =+CONCATENATE(" interface sip IF_SIP_",'Line Table'!A30,CHAR(13),CHAR(10),," bind context sip-gateway GW_SIP_",'Line Table'!A30,CHAR(13),CHAR(10),," ",+'Line Table'!C30,CHAR(13),CHAR(10),," early-disconnect",CHAR(13),CHAR(10),," route call dest-interface IF_FXO_",'Line Table'!A30,CHAR(13),CHAR(10),," remote ",Data!$C$24," ",Data!$C$25,CHAR(13),CHAR(10),," address-translation outgoing-call request-uri user-part fix ",'Line Table'!B30," host-part to-header target-param none",CHAR(13),CHAR(10),," address-translation incoming-call called-e164 request-uri",CHAR(13),CHAR(10),,CHAR(13),CHAR(10),) -> interface sip IF_SIP_29 bind context sip-gateway GW_SIP_29 early-connect early-disconnect route call dest-interface IF_FXO_29 remote 10.10.50.23 5060 address-translation outgoing-call request-uri user-part fix 10030 host-part to-header target-param none address-translation incoming-call called-e164 request-uri
A172: 171 | B172: =+IF(Data!$C$5>ROW('3CX'!B172)-ROW('3CX'!$B$143),"","#") -> # | C172: =+CONCATENATE(" interface sip IF_SIP_",'Line Table'!A31,CHAR(13),CHAR(10),," bind context sip-gateway GW_SIP_",'Line Table'!A31,CHAR(13),CHAR(10),," ",+'Line Table'!C31,CHAR(13),CHAR(10),," early-disconnect",CHAR(13),CHAR(10),," route call dest-interface IF_FXO_",'Line Table'!A31,CHAR(13),CHAR(10),," remote ",Data!$C$24," ",Data!$C$25,CHAR(13),CHAR(10),," address-translation outgoing-call request-uri user-part fix ",'Line Table'!B31," host-part to-header target-param none",CHAR(13),CHAR(10),," address-translation incoming-call called-e164 request-uri",CHAR(13),CHAR(10),,CHAR(13),CHAR(10),) -> interface sip IF_SIP_30 bind context sip-gateway GW_SIP_30 early-connect early-disconnect route call dest-interface IF_FXO_30 remote 10.10.50.23 5060 address-translation outgoing-call request-uri user-part fix 10031 host-part to-header target-param none address-translation incoming-call called-e164 request-uri
A173: 172 | B173: =+IF(Data!$C$5>ROW('3CX'!B173)-ROW('3CX'!$B$143),"","#") -> # | C173: =+CONCATENATE(" interface sip IF_SIP_",'Line Table'!A32,CHAR(13),CHAR(10),," bind context sip-gateway GW_SIP_",'Line Table'!A32,CHAR(13),CHAR(10),," ",+'Line Table'!C32,CHAR(13),CHAR(10),," early-disconnect",CHAR(13),CHAR(10),," route call dest-interface IF_FXO_",'Line Table'!A32,CHAR(13),CHAR(10),," remote ",Data!$C$24," ",Data!$C$25,CHAR(13),CHAR(10),," address-translation outgoing-call request-uri user-part fix ",'Line Table'!B32," host-part to-header target-param none",CHAR(13),CHAR(10),," address-translation incoming-call called-e164 request-uri",CHAR(13),CHAR(10),,CHAR(13),CHAR(10),) -> interface sip IF_SIP_31 bind context sip-gateway GW_SIP_31 early-connect early-disconnect route call dest-interface IF_FXO_31 remote 10.10.50.23 5060 address-translation outgoing-call request-uri user-part fix 10032 host-part to-header target-param none address-translation incoming-call called-e164 request-uri
A174: 173 | B174: =+IF(Data!$C$5>ROW('3CX'!B174)-ROW('3CX'!$B$143),"","#") -> # | C174: =+CONCATENATE(" interface sip IF_SIP_",'Line Table'!A33,CHAR(13),CHAR(10),," bind context sip-gateway GW_SIP_",'Line Table'!A33,CHAR(13),CHAR(10),," ",+'Line Table'!C33,CHAR(13),CHAR(10),," early-disconnect",CHAR(13),CHAR(10),," route call dest-interface IF_FXO_",'Line Table'!A33,CHAR(13),CHAR(10),," remote ",Data!$C$24," ",Data!$C$25,CHAR(13),CHAR(10),," address-translation outgoing-call request-uri user-part fix ",'Line Table'!B33," host-part to-header target-param none",CHAR(13),CHAR(10),," address-translation incoming-call called-e164 request-uri",CHAR(13),CHAR(10),,CHAR(13),CHAR(10),) -> interface sip IF_SIP_32 bind context sip-gateway GW_SIP_32 early-connect early-disconnect route call dest-interface IF_FXO_32 remote 10.10.50.23 5060 address-translation outgoing-call request-uri user-part fix 10033 host-part to-header target-param none address-translation incoming-call called-e164 request-uri
A175: 174
A176: 175 | B176: =+IF(Data!$C$5>ROW('3CX'!B176)-ROW('3CX'!$B$176),"","#") ->  | C176: =+CONCATENATE(" interface fxo IF_FXO_",'Line Table'!A2,CHAR(13),CHAR(10)," route call dest-interface IF_SIP_",'Line Table'!A2,CHAR(13),CHAR(10)," loop-break-duration min 200 max 1000",CHAR(13),CHAR(10)," ",'Line Table'!D2,CHAR(13),CHAR(10)," mute-dialing",CHAR(13),CHAR(10)," disconnect-signal loop-break",CHAR(13),CHAR(10)," disconnect-signal busy-tone",CHAR(13),CHAR(10)," dial-after timeout 1") -> interface fxo IF_FXO_1 route call dest-interface IF_SIP_1 loop-break-duration min 200 max 1000 ring-number on-caller-id mute-dialing disconnect-signal loop-break disconnect-signal busy-tone dial-after timeout 1
A177: 176 | B177: =+IF(Data!$C$5>ROW('3CX'!B177)-ROW('3CX'!$B$176),"","#") ->  | C177: =+CONCATENATE(" interface fxo IF_FXO_",'Line Table'!A3,CHAR(13),CHAR(10)," route call dest-interface IF_SIP_",'Line Table'!A3,CHAR(13),CHAR(10)," loop-break-duration min 200 max 1000",CHAR(13),CHAR(10)," ",'Line Table'!D3,CHAR(13),CHAR(10)," mute-dialing",CHAR(13),CHAR(10)," disconnect-signal loop-break",CHAR(13),CHAR(10)," disconnect-signal busy-tone",CHAR(13),CHAR(10)," dial-after timeout 1") -> interface fxo IF_FXO_2 route call dest-interface IF_SIP_2 loop-break-duration min 200 max 1000 ring-number on-caller-id mute-dialing disconnect-signal loop-break disconnect-signal busy-tone dial-after timeout 1
A178: 177 | B178: =+IF(Data!$C$5>ROW('3CX'!B178)-ROW('3CX'!$B$176),"","#") ->  | C178: =+CONCATENATE(" interface fxo IF_FXO_",'Line Table'!A4,CHAR(13),CHAR(10)," route call dest-interface IF_SIP_",'Line Table'!A4,CHAR(13),CHAR(10)," loop-break-duration min 200 max 1000",CHAR(13),CHAR(10)," ",'Line Table'!D4,CHAR(13),CHAR(10)," mute-dialing",CHAR(13),CHAR(10)," disconnect-signal loop-break",CHAR(13),CHAR(10)," disconnect-signal busy-tone",CHAR(13),CHAR(10)," dial-after timeout 1") -> interface fxo IF_FXO_3 route call dest-interface IF_SIP_3 loop-break-duration min 200 max 1000 ring-number on-caller-id mute-dialing disconnect-signal loop-break disconnect-signal busy-tone dial-after timeout 1
A179: 178 | B179: =+IF(Data!$C$5>ROW('3CX'!B179)-ROW('3CX'!$B$176),"","#") ->  | C179: =+CONCATENATE(" interface fxo IF_FXO_",'Line Table'!A5,CHAR(13),CHAR(10)," route call dest-interface IF_SIP_",'Line Table'!A5,CHAR(13),CHAR(10)," loop-break-duration min 200 max 1000",CHAR(13),CHAR(10)," ",'Line Table'!D5,CHAR(13),CHAR(10)," mute-dialing",CHAR(13),CHAR(10)," disconnect-signal loop-break",CHAR(13),CHAR(10)," disconnect-signal busy-tone",CHAR(13),CHAR(10)," dial-after timeout 1") -> interface fxo IF_FXO_4 route call dest-interface IF_SIP_4 loop-break-duration min 200 max 1000 ring-number on-caller-id mute-dialing disconnect-signal loop-break disconnect-signal busy-tone dial-after timeout 1
A180: 179 | B180: =+IF(Data!$C$5>ROW('3CX'!B180)-ROW('3CX'!$B$176),"","#") ->  | C180: =+CONCATENATE(" interface fxo IF_FXO_",'Line Table'!A6,CHAR(13),CHAR(10)," route call dest-interface IF_SIP_",'Line Table'!A6,CHAR(13),CHAR(10)," loop-break-duration min 200 max 1000",CHAR(13),CHAR(10)," ",'Line Table'!D6,CHAR(13),CHAR(10)," mute-dialing",CHAR(13),CHAR(10)," disconnect-signal loop-break",CHAR(13),CHAR(10)," disconnect-signal busy-tone",CHAR(13),CHAR(10)," dial-after timeout 1") -> interface fxo IF_FXO_5 route call dest-interface IF_SIP_5 loop-break-duration min 200 max 1000 ring-number on-caller-id mute-dialing disconnect-signal loop-break disconnect-signal busy-tone dial-after timeout 1
A181: 180 | B181: =+IF(Data!$C$5>ROW('3CX'!B181)-ROW('3CX'!$B$176),"","#") ->  | C181: =+CONCATENATE(" interface fxo IF_FXO_",'Line Table'!A7,CHAR(13),CHAR(10)," route call dest-interface IF_SIP_",'Line Table'!A7,CHAR(13),CHAR(10)," loop-break-duration min 200 max 1000",CHAR(13),CHAR(10)," ",'Line Table'!D7,CHAR(13),CHAR(10)," mute-dialing",CHAR(13),CHAR(10)," disconnect-signal loop-break",CHAR(13),CHAR(10)," disconnect-signal busy-tone",CHAR(13),CHAR(10)," dial-after timeout 1") -> interface fxo IF_FXO_6 route call dest-interface IF_SIP_6 loop-break-duration min 200 max 1000 ring-number on-caller-id mute-dialing disconnect-signal loop-break disconnect-signal busy-tone dial-after timeout 1
A182: 181 | B182: =+IF(Data!$C$5>ROW('3CX'!B182)-ROW('3CX'!$B$176),"","#") ->  | C182: =+CONCATENATE(" interface fxo IF_FXO_",'Line Table'!A8,CHAR(13),CHAR(10)," route call dest-interface IF_SIP_",'Line Table'!A8,CHAR(13),CHAR(10)," loop-break-duration min 200 max 1000",CHAR(13),CHAR(10)," ",'Line Table'!D8,CHAR(13),CHAR(10)," mute-dialing",CHAR(13),CHAR(10)," disconnect-signal loop-break",CHAR(13),CHAR(10)," disconnect-signal busy-tone",CHAR(13),CHAR(10)," dial-after timeout 1") -> interface fxo IF_FXO_7 route call dest-interface IF_SIP_7 loop-break-duration min 200 max 1000 ring-number on-caller-id mute-dialing disconnect-signal loop-break disconnect-signal busy-tone dial-after timeout 1
A183: 182 | B183: =+IF(Data!$C$5>ROW('3CX'!B183)-ROW('3CX'!$B$176),"","#") ->  | C183: =+CONCATENATE(" interface fxo IF_FXO_",'Line Table'!A9,CHAR(13),CHAR(10)," route call dest-interface IF_SIP_",'Line Table'!A9,CHAR(13),CHAR(10)," loop-break-duration min 200 max 1000",CHAR(13),CHAR(10)," ",'Line Table'!D9,CHAR(13),CHAR(10)," mute-dialing",CHAR(13),CHAR(10)," disconnect-signal loop-break",CHAR(13),CHAR(10)," disconnect-signal busy-tone",CHAR(13),CHAR(10)," dial-after timeout 1") -> interface fxo IF_FXO_8 route call dest-interface IF_SIP_8 loop-break-duration min 200 max 1000 ring-number on-caller-id mute-dialing disconnect-signal loop-break disconnect-signal busy-tone dial-after timeout 1
A184: 183 | B184: =+IF(Data!$C$5>ROW('3CX'!B184)-ROW('3CX'!$B$176),"","#") ->  | C184: =+CONCATENATE(" interface fxo IF_FXO_",'Line Table'!A10,CHAR(13),CHAR(10)," route call dest-interface IF_SIP_",'Line Table'!A10,CHAR(13),CHAR(10)," loop-break-duration min 200 max 1000",CHAR(13),CHAR(10)," ",'Line Table'!D10,CHAR(13),CHAR(10)," mute-dialing",CHAR(13),CHAR(10)," disconnect-signal loop-break",CHAR(13),CHAR(10)," disconnect-signal busy-tone",CHAR(13),CHAR(10)," dial-after timeout 1") -> interface fxo IF_FXO_9 route call dest-interface IF_SIP_9 loop-break-duration min 200 max 1000 ring-number on-caller-id mute-dialing disconnect-signal loop-break disconnect-signal busy-tone dial-after timeout 1
A185: 184 | B185: =+IF(Data!$C$5>ROW('3CX'!B185)-ROW('3CX'!$B$176),"","#") ->  | C185: =+CONCATENATE(" interface fxo IF_FXO_",'Line Table'!A11,CHAR(13),CHAR(10)," route call dest-interface IF_SIP_",'Line Table'!A11,CHAR(13),CHAR(10)," loop-break-duration min 200 max 1000",CHAR(13),CHAR(10)," ",'Line Table'!D11,CHAR(13),CHAR(10)," mute-dialing",CHAR(13),CHAR(10)," disconnect-signal loop-break",CHAR(13),CHAR(10)," disconnect-signal busy-tone",CHAR(13),CHAR(10)," dial-after timeout 1") -> interface fxo IF_FXO_10 route call dest-interface IF_SIP_10 loop-break-duration min 200 max 1000 ring-number on-caller-id mute-dialing disconnect-signal loop-break disconnect-signal busy-tone dial-after timeout 1
A186: 185 | B186: =+IF(Data!$C$5>ROW('3CX'!B186)-ROW('3CX'!$B$176),"","#") ->  | C186: =+CONCATENATE(" interface fxo IF_FXO_",'Line Table'!A12,CHAR(13),CHAR(10)," route call dest-interface IF_SIP_",'Line Table'!A12,CHAR(13),CHAR(10)," loop-break-duration min 200 max 1000",CHAR(13),CHAR(10)," ",'Line Table'!D12,CHAR(13),CHAR(10)," mute-dialing",CHAR(13),CHAR(10)," disconnect-signal loop-break",CHAR(13),CHAR(10)," disconnect-signal busy-tone",CHAR(13),CHAR(10)," dial-after timeout 1") -> interface fxo IF_FXO_11 route call dest-interface IF_SIP_11 loop-break-duration min 200 max 1000 ring-number on-caller-id mute-dialing disconnect-signal loop-break disconnect-signal busy-tone dial-after timeout 1
A187: 186 | B187: =+IF(Data!$C$5>ROW('3CX'!B187)-ROW('3CX'!$B$176),"","#") ->  | C187: =+CONCATENATE(" interface fxo IF_FXO_",'Line Table'!A13,CHAR(13),CHAR(10)," route call dest-interface IF_SIP_",'Line Table'!A13,CHAR(13),CHAR(10)," loop-break-duration min 200 max 1000",CHAR(13),CHAR(10)," ",'Line Table'!D13,CHAR(13),CHAR(10)," mute-dialing",CHAR(13),CHAR(10)," disconnect-signal loop-break",CHAR(13),CHAR(10)," disconnect-signal busy-tone",CHAR(13),CHAR(10)," dial-after timeout 1") -> interface fxo IF_FXO_12 route call dest-interface IF_SIP_12 loop-break-duration min 200 max 1000 ring-number on-caller-id mute-dialing disconnect-signal loop-break disconnect-signal busy-tone dial-after timeout 1
A188: 187 | B188: =+IF(Data!$C$5>ROW('3CX'!B188)-ROW('3CX'!$B$176),"","#") -> # | C188: =+CONCATENATE(" interface fxo IF_FXO_",'Line Table'!A14,CHAR(13),CHAR(10)," route call dest-interface IF_SIP_",'Line Table'!A14,CHAR(13),CHAR(10)," loop-break-duration min 200 max 1000",CHAR(13),CHAR(10)," ",'Line Table'!D14,CHAR(13),CHAR(10)," mute-dialing",CHAR(13),CHAR(10)," disconnect-signal loop-break",CHAR(13),CHAR(10)," disconnect-signal busy-tone",CHAR(13),CHAR(10)," dial-after timeout 1") -> interface fxo IF_FXO_13 route call dest-interface IF_SIP_13 loop-break-duration min 200 max 1000 ring-number on-caller-id mute-dialing disconnect-signal loop-break disconnect-signal busy-tone dial-after timeout 1
A189: 188 | B189: =+IF(Data!$C$5>ROW('3CX'!B189)-ROW('3CX'!$B$176),"","#") -> # | C189: =+CONCATENATE(" interface fxo IF_FXO_",'Line Table'!A15,CHAR(13),CHAR(10)," route call dest-interface IF_SIP_",'Line Table'!A15,CHAR(13),CHAR(10)," loop-break-duration min 200 max 1000",CHAR(13),CHAR(10)," ",'Line Table'!D15,CHAR(13),CHAR(10)," mute-dialing",CHAR(13),CHAR(10)," disconnect-signal loop-break",CHAR(13),CHAR(10)," disconnect-signal busy-tone",CHAR(13),CHAR(10)," dial-after timeout 1") -> interface fxo IF_FXO_14 route call dest-interface IF_SIP_14 loop-break-duration min 200 max 1000 ring-number on-caller-id mute-dialing disconnect-signal loop-break disconnect-signal busy-tone dial-after timeout 1
A190: 189 | B190: =+IF(Data!$C$5>ROW('3CX'!B190)-ROW('3CX'!$B$176),"","#") -> # | C190: =+CONCATENATE(" interface fxo IF_FXO_",'Line Table'!A16,CHAR(13),CHAR(10)," route call dest-interface IF_SIP_",'Line Table'!A16,CHAR(13),CHAR(10)," loop-break-duration min 200 max 1000",CHAR(13),CHAR(10)," ",'Line Table'!D16,CHAR(13),CHAR(10)," mute-dialing",CHAR(13),CHAR(10)," disconnect-signal loop-break",CHAR(13),CHAR(10)," disconnect-signal busy-tone",CHAR(13),CHAR(10)," dial-after timeout 1") -> interface fxo IF_FXO_15 route call dest-interface IF_SIP_15 loop-break-duration min 200 max 1000 ring-number on-caller-id mute-dialing disconnect-signal loop-break disconnect-signal busy-tone dial-after timeout 1
A191: 190 | B191: =+IF(Data!$C$5>ROW('3CX'!B191)-ROW('3CX'!$B$176),"","#") -> # | C191: =+CONCATENATE(" interface fxo IF_FXO_",'Line Table'!A17,CHAR(13),CHAR(10)," route call dest-interface IF_SIP_",'Line Table'!A17,CHAR(13),CHAR(10)," loop-break-duration min 200 max 1000",CHAR(13),CHAR(10)," ",'Line Table'!D17,CHAR(13),CHAR(10)," mute-dialing",CHAR(13),CHAR(10)," disconnect-signal loop-break",CHAR(13),CHAR(10)," disconnect-signal busy-tone",CHAR(13),CHAR(10)," dial-after timeout 1") -> interface fxo IF_FXO_16 route call dest-interface IF_SIP_16 loop-break-duration min 200 max 1000 ring-number on-caller-id mute-dialing disconnect-signal loop-break disconnect-signal busy-tone dial-after timeout 1
A192: 191 | B192: =+IF(Data!$C$5>ROW('3CX'!B192)-ROW('3CX'!$B$176),"","#") -> # | C192: =+CONCATENATE(" interface fxo IF_FXO_",'Line Table'!A18,CHAR(13),CHAR(10)," route call dest-interface IF_SIP_",'Line Table'!A18,CHAR(13),CHAR(10)," loop-break-duration min 200 max 1000",CHAR(13),CHAR(10)," ",'Line Table'!D18,CHAR(13),CHAR(10)," mute-dialing",CHAR(13),CHAR(10)," disconnect-signal loop-break",CHAR(13),CHAR(10)," disconnect-signal busy-tone",CHAR(13),CHAR(10)," dial-after timeout 1") -> interface fxo IF_FXO_17 route call dest-interface IF_SIP_17 loop-break-duration min 200 max 1000 ring-number on-caller-id mute-dialing disconnect-signal loop-break disconnect-signal busy-tone dial-after timeout 1
A193: 192 | B193: =+IF(Data!$C$5>ROW('3CX'!B193)-ROW('3CX'!$B$176),"","#") -> # | C193: =+CONCATENATE(" interface fxo IF_FXO_",'Line Table'!A19,CHAR(13),CHAR(10)," route call dest-interface IF_SIP_",'Line Table'!A19,CHAR(13),CHAR(10)," loop-break-duration min 200 max 1000",CHAR(13),CHAR(10)," ",'Line Table'!D19,CHAR(13),CHAR(10)," mute-dialing",CHAR(13),CHAR(10)," disconnect-signal loop-break",CHAR(13),CHAR(10)," disconnect-signal busy-tone",CHAR(13),CHAR(10)," dial-after timeout 1") -> interface fxo IF_FXO_18 route call dest-interface IF_SIP_18 loop-break-duration min 200 max 1000 ring-number on-caller-id mute-dialing disconnect-signal loop-break disconnect-signal busy-tone dial-after timeout 1
A194: 193 | B194: =+IF(Data!$C$5>ROW('3CX'!B194)-ROW('3CX'!$B$176),"","#") -> # | C194: =+CONCATENATE(" interface fxo IF_FXO_",'Line Table'!A20,CHAR(13),CHAR(10)," route call dest-interface IF_SIP_",'Line Table'!A20,CHAR(13),CHAR(10)," loop-break-duration min 200 max 1000",CHAR(13),CHAR(10)," ",'Line Table'!D20,CHAR(13),CHAR(10)," mute-dialing",CHAR(13),CHAR(10)," disconnect-signal loop-break",CHAR(13),CHAR(10)," disconnect-signal busy-tone",CHAR(13),CHAR(10)," dial-after timeout 1") -> interface fxo IF_FXO_19 route call dest-interface IF_SIP_19 loop-break-duration min 200 max 1000 ring-number on-caller-id mute-dialing disconnect-signal loop-break disconnect-signal busy-tone dial-after timeout 1
A195: 194 | B195: =+IF(Data!$C$5>ROW('3CX'!B195)-ROW('3CX'!$B$176),"","#") -> # | C195: =+CONCATENATE(" interface fxo IF_FXO_",'Line Table'!A21,CHAR(13),CHAR(10)," route call dest-interface IF_SIP_",'Line Table'!A21,CHAR(13),CHAR(10)," loop-break-duration min 200 max 1000",CHAR(13),CHAR(10)," ",'Line Table'!D21,CHAR(13),CHAR(10)," mute-dialing",CHAR(13),CHAR(10)," disconnect-signal loop-break",CHAR(13),CHAR(10)," disconnect-signal busy-tone",CHAR(13),CHAR(10)," dial-after timeout 1") -> interface fxo IF_FXO_20 route call dest-interface IF_SIP_20 loop-break-duration min 200 max 1000 ring-number on-caller-id mute-dialing disconnect-signal loop-break disconnect-signal busy-tone dial-after timeout 1
A196: 195 | B196: =+IF(Data!$C$5>ROW('3CX'!B196)-ROW('3CX'!$B$176),"","#") -> # | C196: =+CONCATENATE(" interface fxo IF_FXO_",'Line Table'!A22,CHAR(13),CHAR(10)," route call dest-interface IF_SIP_",'Line Table'!A22,CHAR(13),CHAR(10)," loop-break-duration min 200 max 1000",CHAR(13),CHAR(10)," ",'Line Table'!D22,CHAR(13),CHAR(10)," mute-dialing",CHAR(13),CHAR(10)," disconnect-signal loop-break",CHAR(13),CHAR(10)," disconnect-signal busy-tone",CHAR(13),CHAR(10)," dial-after timeout 1") -> interface fxo IF_FXO_21 route call dest-interface IF_SIP_21 loop-break-duration min 200 max 1000 ring-number on-caller-id mute-dialing disconnect-signal loop-break disconnect-signal busy-tone dial-after timeout 1
A197: 196 | B197: =+IF(Data!$C$5>ROW('3CX'!B197)-ROW('3CX'!$B$176),"","#") -> # | C197: =+CONCATENATE(" interface fxo IF_FXO_",'Line Table'!A23,CHAR(13),CHAR(10)," route call dest-interface IF_SIP_",'Line Table'!A23,CHAR(13),CHAR(10)," loop-break-duration min 200 max 1000",CHAR(13),CHAR(10)," ",'Line Table'!D23,CHAR(13),CHAR(10)," mute-dialing",CHAR(13),CHAR(10)," disconnect-signal loop-break",CHAR(13),CHAR(10)," disconnect-signal busy-tone",CHAR(13),CHAR(10)," dial-after timeout 1") -> interface fxo IF_FXO_22 route call dest-interface IF_SIP_22 loop-break-duration min 200 max 1000 ring-number on-caller-id mute-dialing disconnect-signal loop-break disconnect-signal busy-tone dial-after timeout 1
A198: 197 | B198: =+IF(Data!$C$5>ROW('3CX'!B198)-ROW('3CX'!$B$176),"","#") -> # | C198: =+CONCATENATE(" interface fxo IF_FXO_",'Line Table'!A24,CHAR(13),CHAR(10)," route call dest-interface IF_SIP_",'Line Table'!A24,CHAR(13),CHAR(10)," loop-break-duration min 200 max 1000",CHAR(13),CHAR(10)," ",'Line Table'!D24,CHAR(13),CHAR(10)," mute-dialing",CHAR(13),CHAR(10)," disconnect-signal loop-break",CHAR(13),CHAR(10)," disconnect-signal busy-tone",CHAR(13),CHAR(10)," dial-after timeout 1") -> interface fxo IF_FXO_23 route call dest-interface IF_SIP_23 loop-break-duration min 200 max 1000 ring-number on-caller-id mute-dialing disconnect-signal loop-break disconnect-signal busy-tone dial-after timeout 1
A199: 198 | B199: =+IF(Data!$C$5>ROW('3CX'!B199)-ROW('3CX'!$B$176),"","#") -> # | C199: =+CONCATENATE(" interface fxo IF_FXO_",'Line Table'!A25,CHAR(13),CHAR(10)," route call dest-interface IF_SIP_",'Line Table'!A25,CHAR(13),CHAR(10)," loop-break-duration min 200 max 1000",CHAR(13),CHAR(10)," ",'Line Table'!D25,CHAR(13),CHAR(10)," mute-dialing",CHAR(13),CHAR(10)," disconnect-signal loop-break",CHAR(13),CHAR(10)," disconnect-signal busy-tone",CHAR(13),CHAR(10)," dial-after timeout 1") -> interface fxo IF_FXO_24 route call dest-interface IF_SIP_24 loop-break-duration min 200 max 1000 ring-number on-caller-id mute-dialing disconnect-signal loop-break disconnect-signal busy-tone dial-after timeout 1
A200: 199 | B200: =+IF(Data!$C$5>ROW('3CX'!B200)-ROW('3CX'!$B$176),"","#") -> # | C200: =+CONCATENATE(" interface fxo IF_FXO_",'Line Table'!A26,CHAR(13),CHAR(10)," route call dest-interface IF_SIP_",'Line Table'!A26,CHAR(13),CHAR(10)," loop-break-duration min 200 max 1000",CHAR(13),CHAR(10)," ",'Line Table'!D26,CHAR(13),CHAR(10)," mute-dialing",CHAR(13),CHAR(10)," disconnect-signal loop-break",CHAR(13),CHAR(10)," disconnect-signal busy-tone",CHAR(13),CHAR(10)," dial-after timeout 1") -> interface fxo IF_FXO_25 route call dest-interface IF_SIP_25 loop-break-duration min 200 max 1000 ring-number on-caller-id mute-dialing disconnect-signal loop-break disconnect-signal busy-tone dial-after timeout 1
... 312 more rows

Sheet SNOMONE (hidden)
A1: LINE # | B1: DISCARD (#) | C1: COMMAND | D1: Column1
A2: 1 | C2: ####################################################################################
A3: 2 | C3: =+CONCATENATE("# Configuration file for SmartNode with: ",Data!C5," FXO and ", Data!C6," FXS") -> # Configuration file for SmartNode with: 12 FXO and 0 FXS
A4: 3 | C4: =+IF(Data!C7="Y","# With 2 ethernet ports","# With one ethernet port") -> # With one ethernet port
A5: 4 | C5: =+CONCATENATE("# Configuration file name is ",Data!C11) -> # Configuration file name is PattonSample
A6: 5 | C6: # Snome One IPPBX
A7: 6 | C7: ####################################################################################
A8: 7 | C8: =+CONCATENATE("# ",Data!B14," ",Data!C14) -> # LAN Interface Data
A9: 8 | C9: =+CONCATENATE("# ",Data!B15," ",Data!C15) -> # IP Address 10.10.1.10
A10: 9 | C10: =+CONCATENATE("# ",Data!B16," ",Data!C16) -> # IP Mask 255.255.255.0
A11: 10 | C11: ####################################################################################
A12: 11 | C12: =+CONCATENATE("# ",Data!B18," ",Data!C18) -> # WAN Interface Data
A13: 12 | C13: =+CONCATENATE("# ",Data!B19," ",Data!C19) -> # IP Address dhcp
A14: 13 | C14: =+CONCATENATE("# ",Data!B20," ",Data!C20) -> # IP Mask
A15: 14 | C15: ####################################################################################
A16: 15 | C16: =+CONCATENATE("# ",Data!B22," ",Data!C22) -> # Default Gateway
A17: 16 | C17: ####################################################################################
A18: 17 | C18: =+CONCATENATE("# ",Data!B23," ",Data!C23) -> # IP-PBX/SIP PROXY DATA
